Workbook

Sheet Info D (hidden)
B2: Bedienung des Formulars
B27: Allgemeines
B28: Das Nachweisformular ist in vier Teile aufgeteilt:
B29: ❶ | C29: Formularkopf
C30: Hier werden allgemeine Informationen zum Projekt und Status des Nachweises eingegeben.
B31: ❷ | C31: Zusammenstellung / Ergebnis
C32: Hier werden die Resultate der Berechnungen zusammengefasst und angezeigt, ob der Nachweis erfüllt ist.
B33: ❸ | C33: Bestimmung Nettogeschossfläche und einzuhaltende Anforderungen
C34: In dieser Tabelle werden die Nettogeschossflächen des Projektes eingegeben. Je nach Nutzung und vorgesehener Beleuchtungssteuerung werden die Anforderungen an die maximal zulässige installierte Leistung für die Beleuchtung festgelegt. Aus den Anforderungen pro Raum oder Raumgruppe wird dann ein flächengewichteter Mittelwert der Einzelanforderungen berechnet. Dies ist die Anforderung für das gesamte Projekt.
B35: ❹ | C35: Leistung Leuchten, Projektwert
C36: In dieser Tabelle werden die Leistungsdaten aller im Projekt verwendeten Leuchten eingegeben. Daraus wird dann der Projektwert der installierten spezifischen Leistung berechnet. Dieser wird dann für den Nachweis mit der projektspezifischen Anforderung verglichen.
B37: ❺ | C37: Beilagen
A39: ❶ | B39: Formularkopf
B40: Eingabefelder:
B41: à | C41: Projektbezeichnung
C42: Bezeichnung des Projekts, freie Eingabe ohne Vorgabe
B43: à | C43: Bearbeitet durch
C44: Angabe des Sachbearbeiters. Am besten mit Telefon Nr.oder e-mail Adresse, falls Rückfragen erforderlich sind.
B45: à | C45: Datum / Revisionen
C46: Erstellungsdatum des Nachweises und Datum allfälliger Revisionen Tipp: Zum Fixieren des Datums: Datum von Hand einfügen oder [F2] und dann [F9] und [Enter] drücken.
B47: à | C47: Status
C48: Auswahlfeld: - Nachweis in Bearbeitung - Nachweis vollständig und in abgeschlossen Der Nachweis soll erst eingereicht werden, wenn er vollständig und abgeschlossen ist.
B49: à | C49: Bemerkungen/Begründungen für Abweichungen etc.
C50: Hier können Anmerkungen zum Nachweis gemacht werden. Tipp: Zeilenumbruch mit ALT + ENTER
A52: ❺ | B52: à | C52: Beilagen
C53: Ankreuzen, welche Beilagen dem Nachweis angehängt werden.
A55: ❸ | B55: Bestimmung der Nettogeschossfläche und einzuhaltende Anforderungen
B56: Grundsätzlich ist es dem Anwender freigestellt, ob er jeden Raum einzeln eingibt oder ob er Räume gleicher Nutzung zu Raumgruppen zusammenfasst. Es dürfen jedoch nur Räume zusammengefasst werden, die die selbe Nutzung gemäss SIA 2024 aufweisen und im Projekt eine gleichwertige Steuerung aufweisen.
B57: Eingabefelder:
B58: à | C58: Nr.
C59: Nummerierung der Räume oder Raumgruppen. Kann frei gestaltet werden.
B60: à | C60: Raum/Räume
C61: Freie Angabe. Es ist jedoch von Vorteil, wenn die Bezeichnung eine Entsprechung in den beigefügten Unterlagen (z.B. Pläne) hat.
B62: à | C62: Flächen
C63: Eingabe der gesamten Nettogeschossfläche des Raums oder der Raumgruppe. Tipp: Besteht die Gesamtfläche aus mehreren Teilflächen, so kann in der Zelle auch eine Formel mit der Additon der Teilflächen eingegeben werden (z.B. "=150+20+145").
B64: à | C64: Automatische Steuerung nach Präsenz / nach Tageslicht
C65: Je nach Nutzung hat die Beleuchtungssteuerung einen Einfluss auf die Anforderung PV. Ist das Eingabefeld gelb markiert, muss angegeben werden ob eine Entsprechende Beleuchtungssteuerung vorgesehen ist.
B66: à | C66: Nutzung gemäss SIA 2024, Nr.
C67: Auswahlfeld: Wählen Sie die Nummer der entsprechend Gebäudekategorie aus. Eine Liste der verfügbaren Nutzungskategorien ist im Tabellenblatt "Tab-387-4" zu finden.
B68: Infofelder:
B69: à | C69: Nutzung gemäss SIA 2024, Bezeichnung
C70: Ausschreibung der Nutzungskategorie. Wird aufgrund der Kategorienummer automatisch dargestellt.
B71: à | C71: Anforderungen
C72: Anforderung an die Maximal zulässige spezifische Leistung für den jeweiligen Raum oder die Raumgruppe. Der Wert ist Abhängig von der Nutzung und der vorgesehenen Beleuchtungssteuerung. Basis für die Anforderungen ist die Norm SIA 387/4, Tabelle in Anhang A. In dieser Tabelle ist pro Nutzungskategorie ein Grenz- und ein Zielwert definiert (siehe auch Tabellenblatt "Tab-387-4"). Welchen Einluss die Beleuchtungssteuerung auf die Anforderung hat, hängt von der Standardnutzung zugrunde gelegten Präsenz ab. Die untenstehnde Tabelle zeigt den Einfluss der Beleuchtungssteuerung in abhängigkeit der Präsenz auf
H74: Massgebende Anforderung
C75: Präsenz gemäss Norm 387/4 | E75: Beleuchtungssteuerung gemäss Projekt | H75: Grenzwert. | J75: Mittelwert Grenz-/Zielwert | L75: Zielwert
C76: dauernd | E76: keine | H76: ✔
C77: normal | E77: keine | L77: ✔
E78: Präsenzmelder | J78: ✔
E79: Tageslichtsteuerung | J79: ✔
E80: beides | H80: ✔
C81: sporadisch | E81: keine | L81: ✔
E82: Präsenzmelder | H82: ✔
E83: Tageslichtsteuerung | L83: ✔
E84: beides | H84: ✔
B86: à | C86: Summe Anforderung
C87: Maximal zulässige installierte Leistung für den Raum oder die Raumgruppe. Summe Anforderung = Anforderung * Fläche
A89: ❹ | B89: Leistung Leuchten, Projektwert
B90: In dieser Tabelle wird die Anzahl und die Systemleistung der im Projekt effektiv vorgesehenen Leuchten angegeben. Dabei ist bei der Angabe der Leuchten Leistung die Verlustleistung des Betriebsgeräts (Vorschaltgerät) zu berücksichtigen. Grundsätzlich ist es dem User freigestelt die Angaben zu den Leuchten raum- oder raumgruppenweise zu machen oder zusammenfassend pro Leuchtentyp. Wichtig ist, dass alle im Projekt vorkommenden Leuchten in der korrekten Anzahl angegeben werden.
B91: Eingabefelder:
B92: à | C92: Nr.
C93: Nummerierung der Leuchten. Kann frei gestaltet werden.
B94: à | C94: Leuchten-Typ
C95: Freie Angabe. Es ist jedoch von Vorteil, wenn die Bezeichnung eine Entsprechung in den beigefügten Unterlagen (z.B. Leuchtenspezifikation) hat.
B96: à | C96: Anzahl Leuchten
C97: Eingabe der Anzahl Leuchten. Tipp: Sollen mehrere Leuchten aus verschieden Räumen zusammengefasst werden, so kann in der Zelle auch eine Formel mit der Additon der Teilmengen eingegeben werden (z.B. "=150+20+145").
B98: à | C98: Leistung pro Leuchte
C99: Angabe der Systemleistung der Leuchte (inkl. Betriebsgerät)
B101: Infofeld:
B102: à | C102: Pel
C103: Gesamte eletrische Leistung der angegebenen Leuchten Pel = Anzahl Leuchten * Leistung pro Leuchte
A105: ❷ | B105: Ergebnis
B106: Hier werden die Resultate des Nachweises ausgegeben und aufgezeigt ob der Nachweis erfüllt ist.
B107: Resultate:
B108: à | C108: Summe aller Netogeschossflächen
C109: Summe aller Netogeschossflächen des Projekts
B110: à | C110: Summe der elektrischen Leistung
C111: Summe der elektrischen Leistung aller Leuchtenh im Projekt.
B112: à | C112: Projektwert Beleuchtung
C113: Spezifische Leistung der Beleuchtung für das Projekt. Projektwert Beleuchtung = Summe der elektrischen Leistung / Summe aller Nettogeschossflächen
B114: à | C114: Anforderung Beleuchtung
C115: Flächengewichteter Mittelwert aller Einzelanforderungen aus Tabelle "Bestimmung Nettogeschossfläche und einzuhaltende Anforderung".
B116: à | C116: Anforderung Eingehalten?
C117: "Projektwert Beleuchtung" muss kleiner gleich als "Anforderung Beleuchtung" damit der Nachweis erfüllt ist.
B120: Abkürzungen, Formelzeichen
B122: Abkürzung | D122: Beschreibung
B124: PV | D124: Anforderung an die Beleuchtung (max. spezifische Leistung) [W/m²]
B125: Pel | D125: elektrische Leistung [W]
B126: W/Stk. | D126: elektrische Systemleistung (inkl. Betriebsgerät) pro Leuchte
B127: Stk. | D127: Stück

Sheet Info F
B2: Utilisation du formulaire
B27: Généralités
B28: Le formulaire de justification est divisé en quatre parties
B29: ❶ | C29: Entête
C30: Les informations générales sur le projet et le statut de la justification sont à saisir ici
B31: ❷ | C31: Récapitulation/ résultats
C32: Les résultats des calculs sont résumés ici. Il est précisé si l'exigence est respectée ou non.
B33: ❸ | C33: Détermination de la surface nette de plancher et des exigences à respecter
C34: Dans ce tableau, les surfaces nettes de plancher du projet doivent être renseignées. Les exigences relatives à la puissance installée maximale autorisée pour l'éclairage sont définies en fonction de l'affectation des locaux et du système de régulation prévus. À partir des exigences par pièce ou groupe de pièces, la puissance moyenne spécifique est calculée. Cette moyenne correspond à l'exigence pour l'ensemble du projet.
B35: ❹ | C35: Puissance des luminaires, valeur de projet
C36: Dans ce tableau, les données de puissance de tous les luminaires utilisés dans le projet sont saisies. À partir de cela, la valeur de la puissance spécifique installée projetée est calculée. Celle-ci est ensuite comparée avec l'exigence spécifique requise.
B37: ❺ | C37: Annexes
A39: ❶ | B39: Entête
B40: Champs à remplir:
B41: à | C41: Nom du projet
C42: Nom du projet, entrées sans spécification
B43: à | C43: Auteur du justificatif
C44: Données du collaborateur. De préférence le Nr. de téléphone ou l'adressse e-mail, en cas de questions complémentaires
B45: à | C45: Date / Révision
C46: Date d'établissement du justificatif et des révisions Astuce: Pour définir la date: introduire la date manuellement ou [F2] et ensuite [F9] et [Enter].
B47: à | C47: Statut
C48: Champ à sélectionner: - Justification en cours - Justification complète et terminée La justification ne doit pas être soumise avant d'avoir été complétée et terminée
B49: à | C49: Remarques / Justification des écarts, etc.
C50: Ajout de commentaires à la justification. Astuce: Retour à la ligne avec ALT + ENTER
A52: ❺ | B52: à | C52: Annexes
C53: Cocher les annexes qui sont jointes à la justification.
A55: ❸ | B55: Détermination de la surface nette de plancher et des exigences à respecter
B56: En principe, il appartient à l'utilisateur d'entrer chaque pièce individuellement ou de regrouper les pièces avec une affectation identique dans des groupes de pièces. Toutefois, seules les pièces ayant la même affectation conformément à la SIA 2024 et le même type de régulation peuvent être regroupées.
B57: Champs à remplir:
B58: à | C58: Nr.
C59: La numérotation des pièces ou des groupes de pièces est libre
B60: à | C60: Pièce / Pièces
C61: La nomination des pièces est libre mais il est toutefois important que celle-ci soit identique à celle utilisée sur les documents d'accompagnement (par exemple, des plans).
B62: à | C62: Surfaces
C63: Saisir la surface nette totale de la pièce ou du groupe de pièces. Astuce: Si la surface totale est constituée de plusieurs surfaces partielles, une formule avec l'ajout des surfaces partielles peut également être saisie dans la cellule (par exemple, "= 150 + 20 + 145").
B64: à | C64: Régulation en fonction de la présence / de la lumière naturelle
C65: En fonction de l'utilisation, la régulation de l'éclairage a une influence sur l'exigence PV. Si le champ de saisie est jaune, il faut spécifier la commande d'éclairage correspondante.
B66: à | C66: Conditions d'utilisation selon SIA 2024, Nr.
C67: Champ de sélection: Sélectionnez le numéro du type d'utilisation correspondant. Une liste des catégories d'utilisation disponibles se trouve dans la feuille de travail "Tab-387-4".
B68: Champs d'information
B69: à | C69: Conditions d'utilisation selon SIA 2024, désignation
C70: La description des conditions d'utilisation est définie automatiquement sur la base du Nr. du type d'utilisation.
B71: à | C71: Exigences
C72: L'exigence relative à la puissance spécifique maximale admissible pour la pièce ou le groupe de pièces respectif. La valeur dépend de l'utilisation et du contrôle d'éclairage souhaité. Les exigences sont basées sur les tableaux SIA 387/4 (voir l’annexe A). Dans ces tableaux, une valeur limite et une valeur cible sont définies pour chaque affectation (voir aussi la feuille de calcul "Onglet 387-4"). L'influence de la régulation de l'éclairage sur l'exigence dépend de la présence pour laquelle est basée l'utilisation standard. Le tableau ci-dessous montre l’influence de la commande de l’éclairage en fonction de la présence.
H74: Exigences à prendre en compte
C75: Présence selon norme 387/4 | E75: Régulation de l'éclairage selon projet | H75: Valeur limite | J75: Valeur moyenne limite / cible | L75: Valeur cible
C76: permanante | E76: Pas d'influence | H76: ✔
C77: normale | E77: Aucune | L77: ✔
E78: Détecteur de présence | J78: ✔
E79: Lumière naturelle | J79: ✔
E80: Les deux | H80: ✔
C81: sporadique | E81: Aucune | L81: ✔
E82: Détecteur de présence | H82: ✔
E83: Lumière naturelle | L83: ✔
E84: Les deux | H84: ✔
B86: à | C86: Exigence globale
C87: Puissance installée maximale autorisée pour la pièce ou le groupe de pièces. Exigence globale = exigence * surface
A89: ❹ | B89: Puissance des luminaires, valeur du projet
B90: Ce tableau indique le nombre et les performances des luminaires prévus dans le projet. Lors de la spécification de la puissance du luminaire, il convient de prendre en compte la perte de puissance du ballast. En principe, l’utilisateur est libre de regrouper les informations par pièce ou groupe de pièces ou de les résumer par type de luminaire. Il est important que tous les luminaires du projet soient indiqués avec le numéro correct.
B91: Champ à remplir:
B92: à | C92: Nr.
C93: Numérotation des lumières. Le choix de la numérotation est libre.
B94: à | C94: Type de luminaires
C95: Indication facultative. Cependant, il est préférable que la désignation ait une correspondance dans les documents d'accompagnement (par exemple, spécification des luminaires).
B96: à | C96: Nombre de luminaires
C97: Entrez le nombre de lumières. Astuce: Si plusieurs luminaires de différentes pièces doivent être combinés, une formule avec addition des sous-ensembles peut également être entrée dans la cellule (par exemple, "= 150 + 20 + 145").
B98: à | C98: Puissance par luminaire
C99: Indication de la puissance du luminaire (y compris le ballast)
B101: Champ d'information:
B102: à | C102: Pel
C103: Puissance électrique totale des luminaires spécifiés Pel = nombre de luminiares* puissance par luminaire
A105: ❷ | B105: Puissance des luminaires, valeur de projet
B106: Les résultats de la justification sont indiqués et il est précisé si l'exigence est remplie ou non.
B107: Résultat:
B108: à | C108: Somme des surfaces nettes de plancher
C109: Somme des surfaces nettes de plancher du projet
B110: à | C110: Somme de la puissance électrique
C111: Somme de la puissance électrique des luminaires du projet
B112: à | C112: Eclairage, valeur du projet
C113: Puissance électrique spécifique de l'éclairage du projet. Valeur de projet de l'éclairage = somme de la puissance électrique / somme des surfaces nettes de plancher
B114: à | C114: Exigence pour l'éclairage
C115: Moyenne pondérée en fonction de la surface de toutes les exigences individuelles du tableau "Détermination de la surface de plancher nette et de l'exigence à respecter".
B116: à | C116: Exigence requise
C117: "La valeur du projet de l'éclairage" doit être inférieure ou égal à "l'exigence requise" pour que la justification soit acceptée.
B120: Abréviations, symboles
B122: Abréviation | D122: Description
B124: PV | D124: Exigence pour l'éclairage (puissance spécifique maximale) en [W/m²]
B125: Pel | D125: puissance électrique en [W]
B126: W/Stk. | D126: puissance électrique (inclus ballast) par luminaire
B127: Stk. | D127: nombre

Sheet Info I (hidden)
B2: Utilizzo del formulario
B27: Generale
B28: Il formulario di verifica è suddiviso in quattro parti
B29: ❶ | C29: Intestazione
C30: Qui si inseriscono le informazioni generali sul progetto e sullo stato della verifica.
B31: ❷ | C31: Riassunto / Risultato
C32: Qui vengono riassunti i risultati dei calcoli e viene indicato se la verifica è soddisfatta.
B33: ❸ | C33: Definizione delle superfici nette e dei requisiti da rispettare
C34: In questa tabella si definiscono le superfici nette del progetto. I requisiti per la potenza massima consentita vengono stabiliti in base all'utilizzo dei locali e alla regolazione prevista per l'illuminazione. Dai requisiti per ogni singolo locale o per gruppi di locali viene estrapolato un valore medio ponderato sulle superfici. Questo valore corrisponde all'esigenza da rispettare per l'intero progetto.
B35: ❹ | C35: Potenza dei corpi illuminanti, valori di progetto
C36: In questa tabella si inseriscono le potenze di tutti i corpi illuminanti utilizzati nel progetto, da cui viene calcolata la potenza specifica installata. Questo valore viene poi confrontato con il valore limite da rispettare per il progetto.
B37: ❺ | C37: Allegati
A39: ❶ | B39: Intestazione
B40: Campi da compilare:
B41: à | C41: Titolo del progetto
C42: Nome del progetto (descrizione libera)
B43: à | C43: Elaborato da
C44: Dati dell'esecutore della verifica. Indicare nr. di telefono o indirizzo mail a cui rivolgersi in caso di domande
B45: à | C45: Data / Revisione
C46: Data di creazione della verifica e date delle eventuali revisioni Suggerimento: Inserire la data a mano oppure premere [F2] seguito da [F9] e [Enter]
B47: à | C47: Stato
C48: Campo di selezione: - Verifica in allestimento - Verifica completata La verifica può essere trasmessa solo se completata.
B49: à | C49: Note / Motivazioni per scostamenti, ecc.
C50: Qui si possono inserire annotazioni alla verifica. Suggerimento: Per andare a capo premere ALT + ENTER
A52: ❺ | B52: à | C52: Allegati
C53: Selezionare gli allegati
A55: ❸ | B55: Definizione delle superfici nette e dei requisiti da rispettare
B56: Di principio spetta all'esecutore della verifica scegliere se inserire ogni singolo locale o raggruppare i locali con lo stesso utilizzo. In ogni caso è possibile raggruppare unicamente i locali con lo stesso utilizzo definito secondo la SIA 2024 e che all'interno del progetto sono soggetti allo stesso tipo di regolazione.
B57: Campi da compilare:
B58: à | C58: Nr.
C59: Numerazione dei locali o dei gruppi di locali. La numerazione è libera.
B60: à | C60: Locale/Locali
C61: Testo libero. E' in ogni caso utile che la descrizione trovi una corrispondenza negli allegati (es. planimetrie).
B62: à | C62: Superfici
C63: Indicazione della superficie netta totale del locale o dei gruppi di locali. Suggerimento: Se la superficie totale è composta da più superfici parziali, nella cella può essere inserita una formula con la somma delle superfici parziali (es. "=150+20+145").
B64: à | C64: Regolazione automatica a seconda del movimento / luce naturale
C65: A seconda dell'utilizzo, la regolazione dell'illluminazione ha un influsso sull'esigenza PV. Se il campo è giallo bisogna indicare se è prevista una regolazione dell'illuminazione.
B66: à | C66: Utilizzo secondo la SIA 2024, Numero
C67: Menu a tendina: Selezionare il numero corrispondente alla categoria di edificio. Nel foglio Excel "Tab-387-4" è riportata una lista delle categorie di utilizzo disponibili.
B68: Campi informativi:
B69: à | C69: Utilizzo secondo la SIA 2024, Descrizione
C70: Indicazione della categoria di utilizzo. Viene visualizzato automaticamente in base al numero di categoria.
B71: à | C71: Requisiti
C72: Requisiti per la potenza specifica massima consentita per il rispettivo locale o gruppo di locali. Il valore dipende dall'utilizzo e dalla regolazione prevista. La base per la definizione dei requisiti è la norma SIA 387/4, Allegato A, nella quale sono riportati i valori limite e i valori mirati per le diverse categorie di utilizzo (cfr. anche foglio Excel "Tab-387-4"). L'influsso della regolazione dell'illuminazione sui requisiti dipende dalla presenza definita secondo l'utilizzo standard. La tabella sottostante mostra l'influsso della regolazione dell'illuminazione a dipendenza della presenza.
H74: Requisito determinante
C75: Presenza secondo la 387/4 | E75: Regolaz. dell'illuminazione secondo progetto | H75: Valore limite | J75: Valore medio limite/mirato | L75: Valore mirato
C76: continua | E76: nessuna | H76: ✔
C77: normale | E77: nessuna | L77: ✔
E78: rilevatori movimento | J78: ✔
E79: rilevatori luce naturale | J79: ✔
E80: entrambi | H80: ✔
C81: sporadica | E81: nessuna | L81: ✔
E82: rilevatori movimento | H82: ✔
E83: rilevatori luce naturale | L83: ✔
E84: entrambi | H84: ✔
B86: à | C86: Somma requisiti
C87: Potenza massima consentita per il locale o gruppo di locali. Somma requisiti = Requisiti * Superficie
A89: ❹ | B89: Potenza dei corpi illuminanti, valori di progetto
B90: In questa tabella viene riportato il numero e la potenza dei corpi illuminanti effettivamente previsti dal progetto. Nell'inserimento delle potenze dei corpi illuminanti vanno incluse le potenze richieste dagli alimentatori (reattori). L'esecutore ha libera scelta di effettuare un raggruppamento per corpi illuminanti o per locali o gruppi di locali. L'importante è che venga inserita la quantità corretta dei corpi illuminanti previsti dal progetto.
B91: Campi da compilare:
B92: à | C92: Nr.
C93: Numerazione dei corpi illuminanti. La numerazione è libera.
B94: à | C94: Corpi illuminanti
C95: Testo libero. E' in ogni caso utile che la descrizione trovi una corrispondenza negli allegati (es. specifiche tecniche).
B96: à | C96: Quantità corpi illuminanti
C97: Indicazione della quantità dei corpi illuminanti. Suggerimento: Se si raggruppano più corpi illuminanti di locali diversi, nella cella può essere inserita una formula con le somme parziali dei corpi illuminanti (es. "=150+20+145").
B98: à | C98: Potenza dei corpi illuminanti
C99: Indicazione della potenza dei corpi illuminanti (incl. alimentatore)
B101: Campi informativi:
B102: à | C102: Pel
C103: Potenza elettrica totale dei corpi illuminanti Pel = Quantità corpi illuminanti * Potenza del corpo illuminante
A105: ❷ | B105: Riassunto / Risultato
B106: Qui vengono riassunti i risultati dei calcoli e viene indicato se la verifica è soddisfatta.
B107: Risultati:
B108: à | C108: Somma di tutte le superfici nette
C109: Somma di tutte le superfici nette del progetto
B110: à | C110: Somma delle potenze elettriche
C111: Somma delle potenze elettriche di tutti i corpi illuminanti del progetto.
B112: à | C112: Valore di progetto per l'illuminazione
C113: Potenza specifica dell'illuminazione per il progetto. Valore di progetto per l'illuminazione = Somma delle potenze elettriche / Somma delle superfici nette
B114: à | C114: Requisito illuminazione
C115: Valore medio dei singoli requisiti ponderato sulle superfici secondo la tabella "Definizione delle superfici nette e dei requisiti da rispettare".
B116: à | C116: Requisiti rispettati?
C117: Affinché la verifica sia soddisfatta il "Valore di progetto per l'illuminazione" deve essere inferiore al "Requisito per l'illuminazione".
B120: Abbreviazioni, simbologia
B122: Abbreviaz. | D122: Descrizione
B124: PV | D124: Requisito per l'illuminazione (potenza specifica massima) [W/m²]
B125: Pel | D125: Potenza elettrica [W]
B126: W/Pz. | D126: Potenza dei singoli corpi illuminanti (incl. alimentatore)
B127: Pz. | D127: Pezzo

Sheet Calc
A1: =Language!D10 -> EN-111a | N1: =IF(G11>0,IF(G13<=G14,T_erfüllt_2,T_n_erfüllt_2),"") ->  | T1: =Log!H2 -> V 1.04
A2: =OFFSET(Language!D12,Anfind,0) -> Justification de l'éclairage Performances pontuelles | T2: =Language!D14&" "&TEXT(Log!H4,"TT.MM.JJJJ") -> Valable jusqu'à 31.12.2024
N3: =Language!D35 -> Remarques / justification des écarts etc.
A4: =Language!D15 -> Description du projet
A6: =Language!D16 -> Etabli par:
A7: =Language!D17 -> Date / révision | C7: =TODAY() -> 2022-12-15
A8: Status: | C8: Justification en cours
A10: =Language!D20 -> Récapitulation / Résultat: | N10: =Language!D36 -> Annexes:
A11: =Language!D21 -> Somme des surfaces nettes de plancher | D11: =Language!D26 -> ① Somme colonne C | G11: =SUM(C22:C106) -> 0 | H11: m² | N11: =Language!D37 -> Plans avec les données du concept d'éclairage (A3/A4)
A12: =Language!D22 -> Somme des puissances électriques | D12: =Language!D27 -> ② Somme colonne T | G12: =SUM(T22:T106) -> 0 | H12: W | N12: =Language!D38 -> Plans avec les données des surfaces nettes de plancher (A3/A4)
A13: =Language!D23 -> Eclairage valeur du projet | D13: =Language!D28 -> ③ = ②/① | G13: =IF(G11>0,ROUND(G12/G11,2),"--") -> -- | H13: W/m² | N13: =Language!D39 -> Données des luminaires
A14: =Language!D24 -> Exigence éclairage | D14: =Language!D29 -> ④ Valeur moyenne pondérée par les surfaces | G14: =IF(G11>0,ROUND(SUMPRODUCT(C22:C106,M22:M106)/G11,2),"--") -> -- | H14: W/m²
A15: =Language!D25 -> Exigence respectée ? | D15: =Language!D30 -> Contrôle: ③ inférieur ou égal à ④ | G15: =IF(G11>0,IF(G13<G14,T_erfüllt,T_n_erfüllt),"") -> 
A17: =Language!D44 -> Détermination de la surface nette de plancher et exigence à remplir | P17: =Language!D73 -> Puissance luminaire, valeur du projet
A18: =Language!D45 ->  | C18: =Language!D49 -> ① | D18: =Language!D52 -> Commande automatique | F18: =Language!D58 ->  | K18: =Language!D61 -> système de | L18: =Language!D64 -> système de | M18: =Language!D67 -> ④ | N18: =Language!D69 -> somme | P18: =Language!D75 -> Type de luminaire | R18: =Language!D78 ->  | S18: =Language!D82 -> Puissance | T18: ② Pel
A19: =Language!D46 -> Pièce/pièces | C19: =Language!D50 ->  | D19: =Language!D53 -> par | E19: =Language!D56 -> par | F19: =Language!D59 -> Condition d'utilisation selon SIA 2024 | I19: Text | K19: =Language!D62 -> régulation | L19: =Language!D65 -> régulation | M19: =Language!D68 -> Exigence | N19: =Language!D70 -> exigence | P19: =Language!D76 -> Luminaire par utilisation | R19: =Language!D79 -> nombre | S19: =Language!D83 -> par
A20: =Language!D47 -> Nr. | B20: =Language!D48 -> Désignation | C20: =Language!D51 -> Surface | D20: =Language!D54 -> présence | E20: =Language!D57 -> lumière naturelle | F20: =Language!D60 -> (voir onglet "Tab-387-4") | I20: Glätten | J20: Index | K20: =Language!D63 -> selon norme | L20: =Language!D66 -> installée | M20: PV | N20: Pel | P20: =Language!D74 -> Nr. | R20: =Language!D80 -> luminaire | S20: =Language!D84 -> Luminaire
C21: m² | D21: =Language!D71 -> 0 = non; 1 =oui | F21: =Language!D74 -> Nr. | G21: =Language!D48 -> Désignation | M21: W/m² | N21: W | R21: =Language!D81 -> pièce | S21: =Language!D85 -> W/pièce | T21: W
A22: 1 | D22: 0 | E22: 0 | G22: =OFFSET('Tab-387-4'!$C$13,Calc!J22,0) ->  | I22: =TRIM(F22) ->  | J22: =IF(I22="",0,MATCH(I22,L_Raumnutzung_Vergl,0)) -> 0 | K22: =OFFSET('Tab-387-4'!$I$13,J22,0) -> 0 | L22: =IF(K22=1,D22,IF(K22=2,(D22+E22),0)) -> 0 | M22: =OFFSET('Tab-387-4'!$J$13,J22,IF(K22=1,(K22-L22)*2,IF(K22=2,K22-L22,0))) -> 0 | N22: =M22*C22 -> 0 | T22: =R22*S22 -> 0
A23: 2 | G23: =OFFSET('Tab-387-4'!$C$13,Calc!J23,0) ->  | I23: =TRIM(F23) ->  | J23: 0 | K23: =OFFSET('Tab-387-4'!$I$13,J23,0) -> 0 | L23: =IF(K23=1,D23,IF(K23=2,(D23+E23),0)) -> 0 | M23: =OFFSET('Tab-387-4'!$J$13,J23,IF(K23=1,(K23-L23)*2,IF(K23=2,K23-L23,0))) -> 0 | N23: =M23*C23 -> 0 | T23: =R23*S23 -> 0
A24: 3 | E24: 0 | G24: =OFFSET('Tab-387-4'!$C$13,Calc!J24,0) ->  | J24: 0 | K24: =OFFSET('Tab-387-4'!$I$13,J24,0) -> 0 | L24: =IF(K24=1,D24,IF(K24=2,(D24+E24),0)) -> 0 | M24: =OFFSET('Tab-387-4'!$J$13,J24,IF(K24=1,(K24-L24)*2,IF(K24=2,K24-L24,0))) -> 0 | N24: 0 | T24: 0
A25: 4 | E25: 0 | G25: =OFFSET('Tab-387-4'!$C$13,Calc!J25,0) ->  | J25: 0 | K25: =OFFSET('Tab-387-4'!$I$13,J25,0) -> 0 | L25: 0 | M25: =OFFSET('Tab-387-4'!$J$13,J25,IF(K25=1,(K25-L25)*2,IF(K25=2,K25-L25,0))) -> 0 | N25: 0 | T25: 0
A26: 5 | D26: 0 | E26: 0 | G26: =OFFSET('Tab-387-4'!$C$13,Calc!J26,0) ->  | J26: 0 | K26: =OFFSET('Tab-387-4'!$I$13,J26,0) -> 0 | L26: 0 | M26: =OFFSET('Tab-387-4'!$J$13,J26,IF(K26=1,(K26-L26)*2,IF(K26=2,K26-L26,0))) -> 0 | N26: 0 | T26: 0
A27: 6 | D27: 0 | E27: 0 | G27: =OFFSET('Tab-387-4'!$C$13,Calc!J27,0) ->  | J27: 0 | K27: =OFFSET('Tab-387-4'!$I$13,J27,0) -> 0 | L27: 0 | M27: =OFFSET('Tab-387-4'!$J$13,J27,IF(K27=1,(K27-L27)*2,IF(K27=2,K27-L27,0))) -> 0 | N27: 0 | T27: 0
A28: 7 | D28: 0 | E28: 0 | G28: =OFFSET('Tab-387-4'!$C$13,Calc!J28,0) ->  | J28: 0 | K28: =OFFSET('Tab-387-4'!$I$13,J28,0) -> 0 | L28: 0 | M28: =OFFSET('Tab-387-4'!$J$13,J28,IF(K28=1,(K28-L28)*2,IF(K28=2,K28-L28,0))) -> 0 | N28: 0 | T28: 0
A29: 8 | D29: 0 | E29: 0 | G29: =OFFSET('Tab-387-4'!$C$13,Calc!J29,0) ->  | J29: 0 | K29: =OFFSET('Tab-387-4'!$I$13,J29,0) -> 0 | L29: 0 | M29: =OFFSET('Tab-387-4'!$J$13,J29,IF(K29=1,(K29-L29)*2,IF(K29=2,K29-L29,0))) -> 0 | N29: 0 | T29: 0
A30: 9 | D30: 0 | E30: 0 | G30: =OFFSET('Tab-387-4'!$C$13,Calc!J30,0) ->  | J30: 0 | K30: =OFFSET('Tab-387-4'!$I$13,J30,0) -> 0 | L30: 0 | M30: =OFFSET('Tab-387-4'!$J$13,J30,IF(K30=1,(K30-L30)*2,IF(K30=2,K30-L30,0))) -> 0 | N30: 0 | T30: 0
A31: 10 | D31: 0 | E31: 0 | G31: =OFFSET('Tab-387-4'!$C$13,Calc!J31,0) ->  | J31: 0 | K31: =OFFSET('Tab-387-4'!$I$13,J31,0) -> 0 | L31: 0 | M31: =OFFSET('Tab-387-4'!$J$13,J31,IF(K31=1,(K31-L31)*2,IF(K31=2,K31-L31,0))) -> 0 | N31: 0 | T31: 0
A32: 11 | D32: 0 | E32: 0 | G32: =OFFSET('Tab-387-4'!$C$13,Calc!J32,0) ->  | J32: 0 | K32: =OFFSET('Tab-387-4'!$I$13,J32,0) -> 0 | L32: 0 | M32: =OFFSET('Tab-387-4'!$J$13,J32,IF(K32=1,(K32-L32)*2,IF(K32=2,K32-L32,0))) -> 0 | N32: 0 | T32: 0
A33: 12 | D33: 0 | E33: 0 | G33: =OFFSET('Tab-387-4'!$C$13,Calc!J33,0) ->  | J33: 0 | K33: =OFFSET('Tab-387-4'!$I$13,J33,0) -> 0 | L33: 0 | M33: =OFFSET('Tab-387-4'!$J$13,J33,IF(K33=1,(K33-L33)*2,IF(K33=2,K33-L33,0))) -> 0 | N33: 0 | T33: 0
A34: 13 | D34: 0 | E34: 0 | G34: =OFFSET('Tab-387-4'!$C$13,Calc!J34,0) ->  | J34: 0 | K34: =OFFSET('Tab-387-4'!$I$13,J34,0) -> 0 | L34: 0 | M34: =OFFSET('Tab-387-4'!$J$13,J34,IF(K34=1,(K34-L34)*2,IF(K34=2,K34-L34,0))) -> 0 | N34: 0 | T34: 0
A35: 14 | D35: 0 | E35: 0 | G35: =OFFSET('Tab-387-4'!$C$13,Calc!J35,0) ->  | J35: 0 | K35: =OFFSET('Tab-387-4'!$I$13,J35,0) -> 0 | L35: 0 | M35: =OFFSET('Tab-387-4'!$J$13,J35,IF(K35=1,(K35-L35)*2,IF(K35=2,K35-L35,0))) -> 0 | N35: 0 | T35: 0
A36: 15 | D36: 0 | E36: 0 | G36: =OFFSET('Tab-387-4'!$C$13,Calc!J36,0) ->  | J36: 0 | K36: =OFFSET('Tab-387-4'!$I$13,J36,0) -> 0 | L36: 0 | M36: =OFFSET('Tab-387-4'!$J$13,J36,IF(K36=1,(K36-L36)*2,IF(K36=2,K36-L36,0))) -> 0 | N36: 0 | T36: 0
A37: 16 | D37: 0 | E37: 0 | G37: =OFFSET('Tab-387-4'!$C$13,Calc!J37,0) ->  | J37: 0 | K37: =OFFSET('Tab-387-4'!$I$13,J37,0) -> 0 | L37: 0 | M37: =OFFSET('Tab-387-4'!$J$13,J37,IF(K37=1,(K37-L37)*2,IF(K37=2,K37-L37,0))) -> 0 | N37: 0 | T37: 0
A38: 17 | D38: 0 | E38: 0 | G38: =OFFSET('Tab-387-4'!$C$13,Calc!J38,0) ->  | J38: 0 | K38: =OFFSET('Tab-387-4'!$I$13,J38,0) -> 0 | L38: 0 | M38: =OFFSET('Tab-387-4'!$J$13,J38,IF(K38=1,(K38-L38)*2,IF(K38=2,K38-L38,0))) -> 0 | N38: 0 | T38: 0
A39: 18 | D39: 0 | E39: 0 | G39: =OFFSET('Tab-387-4'!$C$13,Calc!J39,0) ->  | J39: 0 | K39: =OFFSET('Tab-387-4'!$I$13,J39,0) -> 0 | L39: 0 | M39: =OFFSET('Tab-387-4'!$J$13,J39,IF(K39=1,(K39-L39)*2,IF(K39=2,K39-L39,0))) -> 0 | N39: 0 | T39: 0
A40: 19 | D40: 0 | E40: 0 | G40: =OFFSET('Tab-387-4'!$C$13,Calc!J40,0) ->  | J40: 0 | K40: =OFFSET('Tab-387-4'!$I$13,J40,0) -> 0 | L40: 0 | M40: =OFFSET('Tab-387-4'!$J$13,J40,IF(K40=1,(K40-L40)*2,IF(K40=2,K40-L40,0))) -> 0 | N40: 0 | T40: 0
A41: 20 | D41: 0 | E41: 0 | G41: =OFFSET('Tab-387-4'!$C$13,Calc!J41,0) ->  | J41: 0 | K41: =OFFSET('Tab-387-4'!$I$13,J41,0) -> 0 | L41: 0 | M41: =OFFSET('Tab-387-4'!$J$13,J41,IF(K41=1,(K41-L41)*2,IF(K41=2,K41-L41,0))) -> 0 | N41: 0 | T41: 0
A42: 21 | D42: 0 | E42: 0 | G42: =OFFSET('Tab-387-4'!$C$13,Calc!J42,0) ->  | J42: 0 | K42: =OFFSET('Tab-387-4'!$I$13,J42,0) -> 0 | L42: 0 | M42: =OFFSET('Tab-387-4'!$J$13,J42,IF(K42=1,(K42-L42)*2,IF(K42=2,K42-L42,0))) -> 0 | N42: 0 | T42: 0
A43: 22 | D43: 0 | E43: 0 | G43: =OFFSET('Tab-387-4'!$C$13,Calc!J43,0) ->  | J43: 0 | K43: =OFFSET('Tab-387-4'!$I$13,J43,0) -> 0 | L43: 0 | M43: =OFFSET('Tab-387-4'!$J$13,J43,IF(K43=1,(K43-L43)*2,IF(K43=2,K43-L43,0))) -> 0 | N43: 0 | T43: 0
A44: 23 | D44: 0 | E44: 0 | G44: =OFFSET('Tab-387-4'!$C$13,Calc!J44,0) ->  | J44: 0 | K44: =OFFSET('Tab-387-4'!$I$13,J44,0) -> 0 | L44: 0 | M44: =OFFSET('Tab-387-4'!$J$13,J44,IF(K44=1,(K44-L44)*2,IF(K44=2,K44-L44,0))) -> 0 | N44: 0 | T44: 0
A45: 24 | D45: 0 | E45: 0 | G45: =OFFSET('Tab-387-4'!$C$13,Calc!J45,0) ->  | J45: 0 | K45: =OFFSET('Tab-387-4'!$I$13,J45,0) -> 0 | L45: 0 | M45: =OFFSET('Tab-387-4'!$J$13,J45,IF(K45=1,(K45-L45)*2,IF(K45=2,K45-L45,0))) -> 0 | N45: 0 | T45: 0
A46: 25 | D46: 0 | E46: 0 | G46: =OFFSET('Tab-387-4'!$C$13,Calc!J46,0) ->  | J46: 0 | K46: =OFFSET('Tab-387-4'!$I$13,J46,0) -> 0 | L46: 0 | M46: =OFFSET('Tab-387-4'!$J$13,J46,IF(K46=1,(K46-L46)*2,IF(K46=2,K46-L46,0))) -> 0 | N46: 0 | T46: 0
A47: 26 | D47: 0 | E47: 0 | G47: =OFFSET('Tab-387-4'!$C$13,Calc!J47,0) ->  | J47: 0 | K47: =OFFSET('Tab-387-4'!$I$13,J47,0) -> 0 | L47: 0 | M47: =OFFSET('Tab-387-4'!$J$13,J47,IF(K47=1,(K47-L47)*2,IF(K47=2,K47-L47,0))) -> 0 | N47: 0 | T47: 0
A48: 27 | D48: 0 | E48: 0 | G48: =OFFSET('Tab-387-4'!$C$13,Calc!J48,0) ->  | J48: 0 | K48: =OFFSET('Tab-387-4'!$I$13,J48,0) -> 0 | L48: 0 | M48: =OFFSET('Tab-387-4'!$J$13,J48,IF(K48=1,(K48-L48)*2,IF(K48=2,K48-L48,0))) -> 0 | N48: 0 | T48: 0
A49: 28 | D49: 0 | E49: 0 | G49: =OFFSET('Tab-387-4'!$C$13,Calc!J49,0) ->  | J49: 0 | K49: =OFFSET('Tab-387-4'!$I$13,J49,0) -> 0 | L49: 0 | M49: =OFFSET('Tab-387-4'!$J$13,J49,IF(K49=1,(K49-L49)*2,IF(K49=2,K49-L49,0))) -> 0 | N49: 0 | T49: 0
A50: 29 | D50: 0 | E50: 0 | G50: =OFFSET('Tab-387-4'!$C$13,Calc!J50,0) ->  | J50: 0 | K50: =OFFSET('Tab-387-4'!$I$13,J50,0) -> 0 | L50: 0 | M50: =OFFSET('Tab-387-4'!$J$13,J50,IF(K50=1,(K50-L50)*2,IF(K50=2,K50-L50,0))) -> 0 | N50: 0 | T50: 0
A51: 30 | D51: 0 | E51: 0 | G51: =OFFSET('Tab-387-4'!$C$13,Calc!J51,0) ->  | J51: 0 | K51: =OFFSET('Tab-387-4'!$I$13,J51,0) -> 0 | L51: 0 | M51: =OFFSET('Tab-387-4'!$J$13,J51,IF(K51=1,(K51-L51)*2,IF(K51=2,K51-L51,0))) -> 0 | N51: 0 | T51: 0
D52: 0 | E52: 0 | G52: =OFFSET('Tab-387-4'!$C$13,Calc!J52,0) ->  | J52: 0 | K52: =OFFSET('Tab-387-4'!$I$13,J52,0) -> 0 | L52: 0 | M52: =OFFSET('Tab-387-4'!$J$13,J52,IF(K52=1,(K52-L52)*2,IF(K52=2,K52-L52,0))) -> 0 | N52: 0 | T52: 0
D53: 0 | E53: 0 | G53: =OFFSET('Tab-387-4'!$C$13,Calc!J53,0) ->  | J53: 0 | K53: =OFFSET('Tab-387-4'!$I$13,J53,0) -> 0 | L53: 0 | M53: =OFFSET('Tab-387-4'!$J$13,J53,IF(K53=1,(K53-L53)*2,IF(K53=2,K53-L53,0))) -> 0 | N53: 0 | T53: 0
D54: 0 | E54: 0 | G54: =OFFSET('Tab-387-4'!$C$13,Calc!J54,0) ->  | J54: =IF(I54="",0,MATCH(I54,L_Raumnutzung_Vergl,0)) -> 0 | K54: =OFFSET('Tab-387-4'!$I$13,J54,0) -> 0 | L54: 0 | M54: =OFFSET('Tab-387-4'!$J$13,J54,IF(K54=1,(K54-L54)*2,IF(K54=2,K54-L54,0))) -> 0 | N54: 0 | T54: 0
D55: 0 | E55: 0 | G55: =OFFSET('Tab-387-4'!$C$13,Calc!J55,0) ->  | J55: 0 | K55: =OFFSET('Tab-387-4'!$I$13,J55,0) -> 0 | L55: 0 | M55: =OFFSET('Tab-387-4'!$J$13,J55,IF(K55=1,(K55-L55)*2,IF(K55=2,K55-L55,0))) -> 0 | N55: 0 | T55: 0
D56: 0 | E56: 0 | G56: =OFFSET('Tab-387-4'!$C$13,Calc!J56,0) ->  | J56: 0 | K56: =OFFSET('Tab-387-4'!$I$13,J56,0) -> 0 | L56: 0 | M56: =OFFSET('Tab-387-4'!$J$13,J56,IF(K56=1,(K56-L56)*2,IF(K56=2,K56-L56,0))) -> 0 | N56: 0 | T56: 0
D57: 0 | E57: 0 | G57: =OFFSET('Tab-387-4'!$C$13,Calc!J57,0) ->  | J57: 0 | K57: =OFFSET('Tab-387-4'!$I$13,J57,0) -> 0 | L57: 0 | M57: =OFFSET('Tab-387-4'!$J$13,J57,IF(K57=1,(K57-L57)*2,IF(K57=2,K57-L57,0))) -> 0 | N57: 0 | T57: 0
D58: 0 | E58: 0 | G58: =OFFSET('Tab-387-4'!$C$13,Calc!J58,0) ->  | J58: 0 | K58: =OFFSET('Tab-387-4'!$I$13,J58,0) -> 0 | L58: 0 | M58: =OFFSET('Tab-387-4'!$J$13,J58,IF(K58=1,(K58-L58)*2,IF(K58=2,K58-L58,0))) -> 0 | N58: 0 | T58: 0
D59: 0 | E59: 0 | G59: =OFFSET('Tab-387-4'!$C$13,Calc!J59,0) ->  | J59: 0 | K59: =OFFSET('Tab-387-4'!$I$13,J59,0) -> 0 | L59: 0 | M59: =OFFSET('Tab-387-4'!$J$13,J59,IF(K59=1,(K59-L59)*2,IF(K59=2,K59-L59,0))) -> 0 | N59: 0 | T59: 0
D60: 0 | E60: 0 | G60: =OFFSET('Tab-387-4'!$C$13,Calc!J60,0) ->  | J60: 0 | K60: =OFFSET('Tab-387-4'!$I$13,J60,0) -> 0 | L60: 0 | M60: =OFFSET('Tab-387-4'!$J$13,J60,IF(K60=1,(K60-L60)*2,IF(K60=2,K60-L60,0))) -> 0 | N60: 0 | T60: 0
D61: 0 | E61: 0 | G61: =OFFSET('Tab-387-4'!$C$13,Calc!J61,0) ->  | J61: 0 | K61: =OFFSET('Tab-387-4'!$I$13,J61,0) -> 0 | L61: 0 | M61: =OFFSET('Tab-387-4'!$J$13,J61,IF(K61=1,(K61-L61)*2,IF(K61=2,K61-L61,0))) -> 0 | N61: 0 | T61: 0
D62: 0 | E62: 0 | G62: =OFFSET('Tab-387-4'!$C$13,Calc!J62,0) ->  | J62: 0 | K62: =OFFSET('Tab-387-4'!$I$13,J62,0) -> 0 | L62: 0 | M62: =OFFSET('Tab-387-4'!$J$13,J62,IF(K62=1,(K62-L62)*2,IF(K62=2,K62-L62,0))) -> 0 | N62: 0 | T62: 0
D63: 0 | E63: 0 | G63: =OFFSET('Tab-387-4'!$C$13,Calc!J63,0) ->  | J63: 0 | K63: =OFFSET('Tab-387-4'!$I$13,J63,0) -> 0 | L63: 0 | M63: =OFFSET('Tab-387-4'!$J$13,J63,IF(K63=1,(K63-L63)*2,IF(K63=2,K63-L63,0))) -> 0 | N63: 0 | T63: 0
D64: 0 | E64: 0 | G64: =OFFSET('Tab-387-4'!$C$13,Calc!J64,0) ->  | J64: 0 | K64: =OFFSET('Tab-387-4'!$I$13,J64,0) -> 0 | L64: 0 | M64: =OFFSET('Tab-387-4'!$J$13,J64,IF(K64=1,(K64-L64)*2,IF(K64=2,K64-L64,0))) -> 0 | N64: 0 | T64: 0
D65: 0 | E65: 0 | G65: =OFFSET('Tab-387-4'!$C$13,Calc!J65,0) ->  | J65: 0 | K65: =OFFSET('Tab-387-4'!$I$13,J65,0) -> 0 | L65: 0 | M65: =OFFSET('Tab-387-4'!$J$13,J65,IF(K65=1,(K65-L65)*2,IF(K65=2,K65-L65,0))) -> 0 | N65: 0 | T65: 0
D66: 0 | E66: 0 | G66: =OFFSET('Tab-387-4'!$C$13,Calc!J66,0) ->  | J66: 0 | K66: =OFFSET('Tab-387-4'!$I$13,J66,0) -> 0 | L66: 0 | M66: =OFFSET('Tab-387-4'!$J$13,J66,IF(K66=1,(K66-L66)*2,IF(K66=2,K66-L66,0))) -> 0 | N66: 0 | T66: 0
D67: 0 | E67: 0 | G67: =OFFSET('Tab-387-4'!$C$13,Calc!J67,0) ->  | J67: 0 | K67: =OFFSET('Tab-387-4'!$I$13,J67,0) -> 0 | L67: 0 | M67: =OFFSET('Tab-387-4'!$J$13,J67,IF(K67=1,(K67-L67)*2,IF(K67=2,K67-L67,0))) -> 0 | N67: 0 | T67: 0
D68: 0 | E68: 0 | G68: =OFFSET('Tab-387-4'!$C$13,Calc!J68,0) ->  | J68: 0 | K68: =OFFSET('Tab-387-4'!$I$13,J68,0) -> 0 | L68: 0 | M68: =OFFSET('Tab-387-4'!$J$13,J68,IF(K68=1,(K68-L68)*2,IF(K68=2,K68-L68,0))) -> 0 | N68: 0 | T68: 0
D69: 0 | E69: 0 | G69: =OFFSET('Tab-387-4'!$C$13,Calc!J69,0) ->  | J69: 0 | K69: =OFFSET('Tab-387-4'!$I$13,J69,0) -> 0 | L69: 0 | M69: =OFFSET('Tab-387-4'!$J$13,J69,IF(K69=1,(K69-L69)*2,IF(K69=2,K69-L69,0))) -> 0 | N69: 0 | T69: 0
D70: 0 | E70: 0 | G70: =OFFSET('Tab-387-4'!$C$13,Calc!J70,0) ->  | J70: 0 | K70: =OFFSET('Tab-387-4'!$I$13,J70,0) -> 0 | L70: 0 | M70: =OFFSET('Tab-387-4'!$J$13,J70,IF(K70=1,(K70-L70)*2,IF(K70=2,K70-L70,0))) -> 0 | N70: 0 | T70: 0
D71: 0 | E71: 0 | G71: =OFFSET('Tab-387-4'!$C$13,Calc!J71,0) ->  | J71: 0 | K71: =OFFSET('Tab-387-4'!$I$13,J71,0) -> 0 | L71: 0 | M71: =OFFSET('Tab-387-4'!$J$13,J71,IF(K71=1,(K71-L71)*2,IF(K71=2,K71-L71,0))) -> 0 | N71: 0 | T71: 0
D72: 0 | E72: 0 | G72: =OFFSET('Tab-387-4'!$C$13,Calc!J72,0) ->  | J72: 0 | K72: =OFFSET('Tab-387-4'!$I$13,J72,0) -> 0 | L72: 0 | M72: =OFFSET('Tab-387-4'!$J$13,J72,IF(K72=1,(K72-L72)*2,IF(K72=2,K72-L72,0))) -> 0 | N72: 0 | T72: 0
D73: 0 | E73: 0 | G73: =OFFSET('Tab-387-4'!$C$13,Calc!J73,0) ->  | J73: 0 | K73: =OFFSET('Tab-387-4'!$I$13,J73,0) -> 0 | L73: 0 | M73: =OFFSET('Tab-387-4'!$J$13,J73,IF(K73=1,(K73-L73)*2,IF(K73=2,K73-L73,0))) -> 0 | N73: 0 | T73: 0
D74: 0 | E74: 0 | G74: =OFFSET('Tab-387-4'!$C$13,Calc!J74,0) ->  | J74: 0 | K74: =OFFSET('Tab-387-4'!$I$13,J74,0) -> 0 | L74: 0 | M74: =OFFSET('Tab-387-4'!$J$13,J74,IF(K74=1,(K74-L74)*2,IF(K74=2,K74-L74,0))) -> 0 | N74: 0 | T74: 0
D75: 0 | E75: 0 | G75: =OFFSET('Tab-387-4'!$C$13,Calc!J75,0) ->  | J75: 0 | K75: =OFFSET('Tab-387-4'!$I$13,J75,0) -> 0 | L75: 0 | M75: =OFFSET('Tab-387-4'!$J$13,J75,IF(K75=1,(K75-L75)*2,IF(K75=2,K75-L75,0))) -> 0 | N75: 0 | T75: 0
D76: 0 | E76: 0 | G76: =OFFSET('Tab-387-4'!$C$13,Calc!J76,0) ->  | J76: 0 | K76: =OFFSET('Tab-387-4'!$I$13,J76,0) -> 0 | L76: 0 | M76: =OFFSET('Tab-387-4'!$J$13,J76,IF(K76=1,(K76-L76)*2,IF(K76=2,K76-L76,0))) -> 0 | N76: 0 | T76: 0
D77: 0 | E77: 0 | G77: =OFFSET('Tab-387-4'!$C$13,Calc!J77,0) ->  | J77: 0 | K77: =OFFSET('Tab-387-4'!$I$13,J77,0) -> 0 | L77: 0 | M77: =OFFSET('Tab-387-4'!$J$13,J77,IF(K77=1,(K77-L77)*2,IF(K77=2,K77-L77,0))) -> 0 | N77: 0 | T77: 0
D78: 0 | E78: 0 | G78: =OFFSET('Tab-387-4'!$C$13,Calc!J78,0) ->  | J78: 0 | K78: =OFFSET('Tab-387-4'!$I$13,J78,0) -> 0 | L78: 0 | M78: =OFFSET('Tab-387-4'!$J$13,J78,IF(K78=1,(K78-L78)*2,IF(K78=2,K78-L78,0))) -> 0 | N78: 0 | T78: 0
D79: 0 | E79: 0 | G79: =OFFSET('Tab-387-4'!$C$13,Calc!J79,0) ->  | J79: 0 | K79: =OFFSET('Tab-387-4'!$I$13,J79,0) -> 0 | L79: 0 | M79: =OFFSET('Tab-387-4'!$J$13,J79,IF(K79=1,(K79-L79)*2,IF(K79=2,K79-L79,0))) -> 0 | N79: 0 | T79: 0
D80: 0 | E80: 0 | G80: =OFFSET('Tab-387-4'!$C$13,Calc!J80,0) ->  | J80: 0 | K80: =OFFSET('Tab-387-4'!$I$13,J80,0) -> 0 | L80: 0 | M80: =OFFSET('Tab-387-4'!$J$13,J80,IF(K80=1,(K80-L80)*2,IF(K80=2,K80-L80,0))) -> 0 | N80: 0 | T80: 0
D81: 0 | E81: 0 | G81: =OFFSET('Tab-387-4'!$C$13,Calc!J81,0) ->  | J81: 0 | K81: =OFFSET('Tab-387-4'!$I$13,J81,0) -> 0 | L81: 0 | M81: =OFFSET('Tab-387-4'!$J$13,J81,IF(K81=1,(K81-L81)*2,IF(K81=2,K81-L81,0))) -> 0 | N81: 0 | T81: 0
D82: 0 | E82: 0 | G82: =OFFSET('Tab-387-4'!$C$13,Calc!J82,0) ->  | J82: 0 | K82: =OFFSET('Tab-387-4'!$I$13,J82,0) -> 0 | L82: 0 | M82: =OFFSET('Tab-387-4'!$J$13,J82,IF(K82=1,(K82-L82)*2,IF(K82=2,K82-L82,0))) -> 0 | N82: 0 | T82: 0
D83: 0 | E83: 0 | G83: =OFFSET('Tab-387-4'!$C$13,Calc!J83,0) ->  | J83: 0 | K83: =OFFSET('Tab-387-4'!$I$13,J83,0) -> 0 | L83: 0 | M83: =OFFSET('Tab-387-4'!$J$13,J83,IF(K83=1,(K83-L83)*2,IF(K83=2,K83-L83,0))) -> 0 | N83: 0 | T83: 0
D84: 0 | E84: 0 | G84: =OFFSET('Tab-387-4'!$C$13,Calc!J84,0) ->  | J84: 0 | K84: =OFFSET('Tab-387-4'!$I$13,J84,0) -> 0 | L84: 0 | M84: =OFFSET('Tab-387-4'!$J$13,J84,IF(K84=1,(K84-L84)*2,IF(K84=2,K84-L84,0))) -> 0 | N84: 0 | T84: 0
D85: 0 | E85: 0 | G85: =OFFSET('Tab-387-4'!$C$13,Calc!J85,0) ->  | J85: 0 | K85: =OFFSET('Tab-387-4'!$I$13,J85,0) -> 0 | L85: 0 | M85: =OFFSET('Tab-387-4'!$J$13,J85,IF(K85=1,(K85-L85)*2,IF(K85=2,K85-L85,0))) -> 0 | N85: 0 | T85: 0
D86: 0 | E86: 0 | G86: =OFFSET('Tab-387-4'!$C$13,Calc!J86,0) ->  | J86: =IF(I86="",0,MATCH(I86,L_Raumnutzung_Vergl,0)) -> 0 | K86: =OFFSET('Tab-387-4'!$I$13,J86,0) -> 0 | L86: 0 | M86: =OFFSET('Tab-387-4'!$J$13,J86,IF(K86=1,(K86-L86)*2,IF(K86=2,K86-L86,0))) -> 0 | N86: 0 | T86: 0
D87: 0 | E87: 0 | G87: =OFFSET('Tab-387-4'!$C$13,Calc!J87,0) ->  | I87: =TRIM(F87) ->  | J87: 0 | K87: =OFFSET('Tab-387-4'!$I$13,J87,0) -> 0 | L87: 0 | M87: =OFFSET('Tab-387-4'!$J$13,J87,IF(K87=1,(K87-L87)*2,IF(K87=2,K87-L87,0))) -> 0 | N87: =M87*C87 -> 0 | T87: =R87*S87 -> 0
D88: 0 | E88: 0 | G88: =OFFSET('Tab-387-4'!$C$13,Calc!J88,0) ->  | J88: 0 | K88: =OFFSET('Tab-387-4'!$I$13,J88,0) -> 0 | L88: =IF(K88=1,D88,IF(K88=2,(D88+E88),0)) -> 0 | M88: =OFFSET('Tab-387-4'!$J$13,J88,IF(K88=1,(K88-L88)*2,IF(K88=2,K88-L88,0))) -> 0 | N88: 0 | T88: 0
D89: 0 | E89: 0 | G89: =OFFSET('Tab-387-4'!$C$13,Calc!J89,0) ->  | J89: 0 | K89: =OFFSET('Tab-387-4'!$I$13,J89,0) -> 0 | L89: 0 | M89: =OFFSET('Tab-387-4'!$J$13,J89,IF(K89=1,(K89-L89)*2,IF(K89=2,K89-L89,0))) -> 0 | N89: 0 | T89: 0
D90: 0 | E90: 0 | G90: =OFFSET('Tab-387-4'!$C$13,Calc!J90,0) ->  | J90: 0 | K90: =OFFSET('Tab-387-4'!$I$13,J90,0) -> 0 | L90: 0 | M90: =OFFSET('Tab-387-4'!$J$13,J90,IF(K90=1,(K90-L90)*2,IF(K90=2,K90-L90,0))) -> 0 | N90: 0 | T90: 0
D91: 0 | E91: 0 | G91: =OFFSET('Tab-387-4'!$C$13,Calc!J91,0) ->  | J91: 0 | K91: =OFFSET('Tab-387-4'!$I$13,J91,0) -> 0 | L91: 0 | M91: =OFFSET('Tab-387-4'!$J$13,J91,IF(K91=1,(K91-L91)*2,IF(K91=2,K91-L91,0))) -> 0 | N91: 0 | T91: 0
D92: 0 | E92: 0 | G92: =OFFSET('Tab-387-4'!$C$13,Calc!J92,0) ->  | J92: 0 | K92: =OFFSET('Tab-387-4'!$I$13,J92,0) -> 0 | L92: 0 | M92: =OFFSET('Tab-387-4'!$J$13,J92,IF(K92=1,(K92-L92)*2,IF(K92=2,K92-L92,0))) -> 0 | N92: 0 | T92: 0
D93: 0 | E93: 0 | G93: =OFFSET('Tab-387-4'!$C$13,Calc!J93,0) ->  | J93: 0 | K93: =OFFSET('Tab-387-4'!$I$13,J93,0) -> 0 | L93: 0 | M93: =OFFSET('Tab-387-4'!$J$13,J93,IF(K93=1,(K93-L93)*2,IF(K93=2,K93-L93,0))) -> 0 | N93: 0 | T93: 0
D94: 0 | E94: 0 | G94: =OFFSET('Tab-387-4'!$C$13,Calc!J94,0) ->  | J94: 0 | K94: =OFFSET('Tab-387-4'!$I$13,J94,0) -> 0 | L94: 0 | M94: =OFFSET('Tab-387-4'!$J$13,J94,IF(K94=1,(K94-L94)*2,IF(K94=2,K94-L94,0))) -> 0 | N94: 0 | T94: 0
D95: 0 | E95: 0 | G95: =OFFSET('Tab-387-4'!$C$13,Calc!J95,0) ->  | J95: 0 | K95: =OFFSET('Tab-387-4'!$I$13,J95,0) -> 0 | L95: 0 | M95: =OFFSET('Tab-387-4'!$J$13,J95,IF(K95=1,(K95-L95)*2,IF(K95=2,K95-L95,0))) -> 0 | N95: 0 | T95: 0
D96: 0 | E96: 0 | G96: =OFFSET('Tab-387-4'!$C$13,Calc!J96,0) ->  | J96: 0 | K96: =OFFSET('Tab-387-4'!$I$13,J96,0) -> 0 | L96: 0 | M96: =OFFSET('Tab-387-4'!$J$13,J96,IF(K96=1,(K96-L96)*2,IF(K96=2,K96-L96,0))) -> 0 | N96: 0 | T96: 0
D97: 0 | E97: 0 | G97: =OFFSET('Tab-387-4'!$C$13,Calc!J97,0) ->  | J97: 0 | K97: =OFFSET('Tab-387-4'!$I$13,J97,0) -> 0 | L97: 0 | M97: =OFFSET('Tab-387-4'!$J$13,J97,IF(K97=1,(K97-L97)*2,IF(K97=2,K97-L97,0))) -> 0 | N97: 0 | T97: 0
D98: 0 | E98: 0 | G98: =OFFSET('Tab-387-4'!$C$13,Calc!J98,0) ->  | J98: 0 | K98: =OFFSET('Tab-387-4'!$I$13,J98,0) -> 0 | L98: 0 | M98: =OFFSET('Tab-387-4'!$J$13,J98,IF(K98=1,(K98-L98)*2,IF(K98=2,K98-L98,0))) -> 0 | N98: 0 | T98: 0
D99: 0 | E99: 0 | G99: =OFFSET('Tab-387-4'!$C$13,Calc!J99,0) ->  | J99: 0 | K99: =OFFSET('Tab-387-4'!$I$13,J99,0) -> 0 | L99: 0 | M99: =OFFSET('Tab-387-4'!$J$13,J99,IF(K99=1,(K99-L99)*2,IF(K99=2,K99-L99,0))) -> 0 | N99: 0 | T99: 0
D100: 0 | E100: 0 | G100: =OFFSET('Tab-387-4'!$C$13,Calc!J100,0) ->  | J100: 0 | K100: =OFFSET('Tab-387-4'!$I$13,J100,0) -> 0 | L100: 0 | M100: =OFFSET('Tab-387-4'!$J$13,J100,IF(K100=1,(K100-L100)*2,IF(K100=2,K100-L100,0))) -> 0 | N100: 0 | T100: 0
D101: 0 | E101: 0 | G101: =OFFSET('Tab-387-4'!$C$13,Calc!J101,0) ->  | J101: 0 | K101: =OFFSET('Tab-387-4'!$I$13,J101,0) -> 0 | L101: 0 | M101: =OFFSET('Tab-387-4'!$J$13,J101,IF(K101=1,(K101-L101)*2,IF(K101=2,K101-L101,0))) -> 0 | N101: 0 | T101: 0
D102: 0 | E102: 0 | G102: =OFFSET('Tab-387-4'!$C$13,Calc!J102,0) ->  | J102: 0 | K102: =OFFSET('Tab-387-4'!$I$13,J102,0) -> 0 | L102: 0 | M102: =OFFSET('Tab-387-4'!$J$13,J102,IF(K102=1,(K102-L102)*2,IF(K102=2,K102-L102,0))) -> 0 | N102: 0 | T102: 0
D103: 0 | E103: 0 | G103: =OFFSET('Tab-387-4'!$C$13,Calc!J103,0) ->  | J103: 0 | K103: =OFFSET('Tab-387-4'!$I$13,J103,0) -> 0 | L103: 0 | M103: =OFFSET('Tab-387-4'!$J$13,J103,IF(K103=1,(K103-L103)*2,IF(K103=2,K103-L103,0))) -> 0 | N103: 0 | T103: 0
D104: 0 | E104: 0 | G104: =OFFSET('Tab-387-4'!$C$13,Calc!J104,0) ->  | J104: 0 | K104: =OFFSET('Tab-387-4'!$I$13,J104,0) -> 0 | L104: 0 | M104: =OFFSET('Tab-387-4'!$J$13,J104,IF(K104=1,(K104-L104)*2,IF(K104=2,K104-L104,0))) -> 0 | N104: 0 | T104: 0
D105: 0 | E105: 0 | G105: =OFFSET('Tab-387-4'!$C$13,Calc!J105,0) ->  | J105: 0 | K105: =OFFSET('Tab-387-4'!$I$13,J105,0) -> 0 | L105: 0 | M105: =OFFSET('Tab-387-4'!$J$13,J105,IF(K105=1,(K105-L105)*2,IF(K105=2,K105-L105,0))) -> 0 | N105: 0 | T105: 0
D106: 0 | E106: 0 | G106: =OFFSET('Tab-387-4'!$C$13,Calc!J106,0) ->  | J106: 0 | K106: =OFFSET('Tab-387-4'!$I$13,J106,0) -> 0 | L106: 0 | M106: =OFFSET('Tab-387-4'!$J$13,J106,IF(K106=1,(K106-L106)*2,IF(K106=2,K106-L106,0))) -> 0 | N106: 0 | T106: 0

Sheet Tab-387-4
I1: =Language!D91 -> Retour au calcul
B6: =Language!D88 -> Données liées aux conditions d'utilisation
B7: =Language!D89 -> pour le calcul de l'exigence:
B8: =Language!D90 -> (selon SIA 387/4, tableau Annexe A) | J8: =IF(U13=1,Q8,"") ->  | N8: =Language!D112 -> Exigence légale requise | Q8: =Language!D113 -> Exigence accrue
A9: Nr ohne | B9: =Language!D92 -> Nr. | C9: =Language!D117 -> Conditions d'utilisation | D9: =Language!D94 -> Puissance spécifique | F9: =Language!D96 -> Conditions d'utilisation standard avec présence | I9: =Language!D108 -> Exigence | J9: =Language!D114 -> Influence de la régulation | N9: =J9 -> Influence de la régulation | Q9: =N9 -> Influence de la régulation
A10: Leerschläge | B10: =Language!D93 ->  | C10: =Language!D118 ->  | D10: =Language!D95 -> W/m² | F10: =Language!D97 ->  | I10: =Language!D109 -> commance | J10: =Language!D115 -> W/m² | N10: =J10 -> W/m² | Q10: =N10 -> W/m²
A11: Text | D11: =Language!D98 -> pour la valeur limite | E11: =Language!D100 -> pour la valeur cible | F11: =Language!D102 -> Présence | G11: =Language!D104 -> Présence | H11: =Language!D106 -> Présence | I11: =Language!D110 ->  | J11: 0 | K11: 1 | L11: 2 | N11: 0 | O11: 1 | P11: 2 | Q11: 0 | R11: 1 | S11: 2
D12: =Language!D99 ->  | E12: =Language!D101 ->  | F12: =Language!D103 -> permanente | G12: =Language!D105 -> usuelle | H12: =Language!D107 -> sporadique | I12: =Language!D111 -> 
A13: =TRIM(B13) -> Leerzeile | B13: Leerzeile | C13: ="" ->  | I13: 0 | J13: 0 | K13: 0 | L13: 0 | N13: 0 | O13: 0 | P13: 0 | Q13: 0 | R13: 0 | S13: 0 | T13: Index Anforderung | U13: =Anfind -> 0
A14: =TRIM(B14) -> 2.1 | B14: 2.1 | C14: =Language!D119 -> Chambre d’hôtel | D14: 7.7 | E14: 5 | F14: x | I14: 0 | J14: =OFFSET(N14,0,Anfind*3) -> 7.7 | K14: =OFFSET(O14,0,Anfind*3) -> 6.4 | L14: =OFFSET(P14,0,Anfind*3) -> 5 | N14: =D14 -> 7.7 | O14: =ROUND((N14+P14)/2,1) -> 6.4 | P14: =E14 -> 5 | Q14: =P14 -> 5 | R14: =ROUND((Q14+S14)/2,1) -> 4.3 | S14: =Q14-(O14-P14) -> 3.6
A15: =TRIM(B15) -> 2.2 | B15: 2.2 | C15: =Language!D120 -> Réception, zone d’accueil | D15: 6.6 | E15: 4.3 | F15: x | I15: 0 | J15: 6.6 | K15: 5.5 | L15: 4.3 | N15: =D15 -> 6.6 | O15: =ROUND((N15+P15)/2,1) -> 5.5 | P15: =E15 -> 4.3 | Q15: =P15 -> 4.3 | R15: =ROUND((Q15+S15)/2,1) -> 3.7 | S15: =Q15-(O15-P15) -> 3.1
A16: 3.1 | B16: 3.1 | C16: =Language!D121 -> Bureau individuel, collectif | D16: 12.5 | E16: 8.1 | G16: x | I16: 2 | J16: 12.5 | K16: 10.3 | L16: 8.1 | N16: 12.5 | O16: 10.3 | P16: 8.1 | Q16: 8.1 | R16: 7 | S16: 5.9
A17: 3.2 | B17: 3.2 | C17: =Language!D122 -> Bureau paysagé | D17: 9.8 | E17: 6.4 | G17: x | I17: 2 | J17: 9.8 | K17: 8.1 | L17: 6.4 | N17: 9.8 | O17: 8.1 | P17: 6.4 | Q17: 6.4 | R17: 5.6 | S17: 4.7
A18: 3.3 | B18: 3.3 | C18: =Language!D123 -> Salle de réunion | D18: 12.5 | E18: 8.1 | G18: x | I18: 2 | J18: 12.5 | K18: 10.3 | L18: 8.1 | N18: 12.5 | O18: 10.3 | P18: 8.1 | Q18: 8.1 | R18: 7 | S18: 5.9
A19: 3.4 | B19: 3.4 | C19: =Language!D124 -> Hall des guichets, zone clientèle | D19: 7.1 | E19: 4.6 | F19: x | I19: 0 | J19: 7.1 | K19: 5.9 | L19: 4.6 | N19: 7.1 | O19: 5.9 | P19: 4.6 | Q19: 4.6 | R19: 4 | S19: 3.3
A20: 4.1 | B20: 4.1 | C20: =Language!D125 -> Salle d’école | D20: 11 | E20: 7.2 | G20: x | I20: 2 | J20: 11 | K20: 9.1 | L20: 7.2 | N20: 11 | O20: 9.1 | P20: 7.2 | Q20: 7.2 | R20: 6.3 | S20: 5.3
A21: 4.2 | B21: 4.2 | C21: =Language!D126 -> Salle des maîtres | D21: 7.5 | E21: 4.9 | G21: x | I21: 2 | J21: 7.5 | K21: 6.2 | L21: 4.9 | N21: 7.5 | O21: 6.2 | P21: 4.9 | Q21: 4.9 | R21: 4.3 | S21: 3.6
A22: 4.3 | B22: 4.3 | C22: =Language!D127 -> Bibliothèque | D22: 5.9 | E22: 3.8 | G22: x | I22: 2 | J22: 5.9 | K22: 4.9 | L22: 3.8 | N22: 5.9 | O22: 4.9 | P22: 3.8 | Q22: 3.8 | R22: 3.3 | S22: 2.7
A23: 4.4 | B23: 4.4 | C23: =Language!D128 -> Auditoire | D23: 9.8 | E23: 6.4 | G23: x | I23: 2 | J23: 9.8 | K23: 8.1 | L23: 6.4 | N23: 9.8 | O23: 8.1 | P23: 6.4 | Q23: 6.4 | R23: 5.6 | S23: 4.7
A24: 4.5 | B24: 4.5 | C24: =Language!D129 -> Locaux spéciaux | D24: 11 | E24: 7.2 | G24: x | I24: 2 | J24: 11 | K24: 9.1 | L24: 7.2 | N24: 11 | O24: 9.1 | P24: 7.2 | Q24: 7.2 | R24: 6.3 | S24: 5.3
A25: 5.1 | B25: 5.1 | C25: =Language!D130 -> Magasin d’alimentation | D25: 14.9 | E25: 9.7 | F25: x | I25: 0 | J25: 14.9 | K25: 12.3 | L25: 9.7 | N25: 14.9 | O25: 12.3 | P25: 9.7 | Q25: 9.7 | R25: 8.4 | S25: 7.1
A26: 5.2 | B26: 5.2 | C26: =Language!D131 -> Magasin spécialisé | D26: 14.9 | E26: 9.7 | F26: x | I26: 0 | J26: 14.9 | K26: 12.3 | L26: 9.7 | N26: 14.9 | O26: 12.3 | P26: 9.7 | Q26: 9.7 | R26: 8.4 | S26: 7.1
A27: 5.3 | B27: 5.3 | C27: =Language!D132 -> Magasin meubles, bricolage, jardin | D27: 12 | E27: 7.8 | F27: x | I27: 0 | J27: 12 | K27: 9.9 | L27: 7.8 | N27: 12 | O27: 9.9 | P27: 7.8 | Q27: 7.8 | R27: 6.8 | S27: 5.7
A28: 6.1 | B28: 6.1 | C28: =Language!D133 -> Restaurant | D28: 5.9 | E28: 3.8 | G28: x | I28: 2 | J28: 5.9 | K28: 4.9 | L28: 3.8 | N28: 5.9 | O28: 4.9 | P28: 3.8 | Q28: 3.8 | R28: 3.3 | S28: 2.7
A29: 6.2 | B29: 6.2 | C29: =Language!D134 -> Restaurant self-service | D29: 5.3 | E29: 3.4 | G29: x | I29: 2 | J29: 5.3 | K29: 4.4 | L29: 3.4 | N29: 5.3 | O29: 4.4 | P29: 3.4 | Q29: 3.4 | R29: 2.9 | S29: 2.4
A30: 6.3 | B30: 6.3 | C30: =Language!D135 -> Cuisine de 6.1 | D30: 12.5 | E30: 8.1 | I30: 0 | J30: 12.5 | K30: 10.3 | L30: 8.1 | N30: 12.5 | O30: 10.3 | P30: 8.1 | Q30: 8.1 | R30: 7 | S30: 5.9
A31: 6.4 | B31: 6.4 | C31: =Language!D136 -> Cuisine de 6.2 | D31: 9.8 | E31: 6.4 | I31: 0 | J31: 9.8 | K31: 8.1 | L31: 6.4 | N31: 9.8 | O31: 8.1 | P31: 6.4 | Q31: 6.4 | R31: 5.6 | S31: 4.7
A32: 7.1 | B32: 7.1 | C32: =Language!D137 -> Salle de spectacles | D32: 7 | E32: 4.5 | I32: 0 | J32: 7 | K32: 5.8 | L32: 4.5 | N32: 7 | O32: 5.8 | P32: 4.5 | Q32: 4.5 | R32: 3.9 | S32: 3.2
A33: 7.2 | B33: 7.2 | C33: =Language!D138 -> Salle polyvalente | D33: 7 | E33: 4.5 | I33: 0 | J33: 7 | K33: 5.8 | L33: 4.5 | N33: 7 | O33: 5.8 | P33: 4.5 | Q33: 4.5 | R33: 3.9 | S33: 3.2
A34: 7.3 | B34: 7.3 | C34: =Language!D139 -> Halle d’exposition | D34: 13.9 | E34: 9 | I34: 0 | J34: 13.9 | K34: 11.5 | L34: 9 | N34: 13.9 | O34: 11.5 | P34: 9 | Q34: 9 | R34: 7.8 | S34: 6.5
A35: 8.1 | B35: 8.1 | C35: =Language!D140 -> Chambre d’hôpital | D35: 6.8 | E35: 4.4 | I35: 0 | J35: 6.8 | K35: 5.6 | L35: 4.4 | N35: 6.8 | O35: 5.6 | P35: 4.4 | Q35: 4.4 | R35: 3.8 | S35: 3.2
A36: 8.2 | B36: 8.2 | C36: =Language!D141 -> Bureau de service hospitalier | D36: 12.5 | E36: 8.1 | I36: 0 | J36: 12.5 | K36: 10.3 | L36: 8.1 | N36: 12.5 | O36: 10.3 | P36: 8.1 | Q36: 8.1 | R36: 7 | S36: 5.9
A37: 8.3 | B37: 8.3 | C37: =Language!D142 -> Locaux médicaux | D37: 18.8 | E37: 12.2 | I37: 0 | J37: 18.8 | K37: 15.5 | L37: 12.2 | N37: 18.8 | O37: 15.5 | P37: 12.2 | Q37: 12.2 | R37: 10.6 | S37: 8.9
A38: 9.1 | B38: 9.1 | C38: =Language!D143 -> Production (travail lourd) | D38: 7 | E38: 4.5 | G38: x | I38: 2 | J38: 7 | K38: 5.8 | L38: 4.5 | N38: 7 | O38: 5.8 | P38: 4.5 | Q38: 4.5 | R38: 3.9 | S38: 3.2
A39: 9.2 | B39: 9.2 | C39: =Language!D144 -> Production (travail fin) | D39: 11.6 | E39: 7.5 | G39: x | I39: 2 | J39: 11.6 | K39: 9.6 | L39: 7.5 | N39: 11.6 | O39: 9.6 | P39: 7.5 | Q39: 7.5 | R39: 6.5 | S39: 5.4
A40: 9.3 | B40: 9.3 | C40: =Language!D145 -> Laboratoire | D40: 12.8 | E40: 8.3 | F40: x | I40: 0 | J40: 12.8 | K40: 10.6 | L40: 8.3 | N40: 12.8 | O40: 10.6 | P40: 8.3 | Q40: 8.3 | R40: 7.2 | S40: 6
A41: 10.1 | B41: 10.1 | C41: =Language!D146 -> Entrepôt | D41: 7.3 | E41: 4.7 | G41: x | I41: 2 | J41: 7.3 | K41: 6 | L41: 4.7 | N41: 7.3 | O41: 6 | P41: 4.7 | Q41: 4.7 | R41: 4.1 | S41: 3.4
A42: 11.1 | B42: 11.1 | C42: =Language!D147 -> Salle de gymnastique | D42: 11.3 | E42: 7.3 | G42: x | I42: 2 | J42: 11.3 | K42: 9.3 | L42: 7.3 | N42: 11.3 | O42: 9.3 | P42: 7.3 | Q42: 7.3 | R42: 6.3 | S42: 5.3
A43: 11.2 | B43: 11.2 | C43: =Language!D148 -> Salle de fitness | D43: 6.4 | E43: 4.1 | G43: x | I43: 2 | J43: 6.4 | K43: 5.3 | L43: 4.1 | N43: 6.4 | O43: 5.3 | P43: 4.1 | Q43: 4.1 | R43: 3.5 | S43: 2.9
A44: 11.3 | B44: 11.3 | C44: =Language!D149 -> Piscine couverte | D44: 7.3 | E44: 4.7 | G44: x | I44: 2 | J44: 7.3 | K44: 6 | L44: 4.7 | N44: 7.3 | O44: 6 | P44: 4.7 | Q44: 4.7 | R44: 4.1 | S44: 3.4
A45: 12.1 | B45: 12.1 | C45: =Language!D150 -> Surfaces de dégagement | D45: 3.5 | E45: 2.3 | H45: x | I45: 1 | J45: 3.5 | K45: 2.9 | L45: 2.3 | N45: 3.5 | O45: 2.9 | P45: 2.3 | Q45: 2.3 | R45: 2 | S45: 1.7
A46: 12.2 | B46: 12.2 | C46: =Language!D151 -> Surfaces de dégagement 24h | D46: 7.1 | E46: 4.6 | H46: x | I46: 1 | J46: 7.1 | K46: 5.9 | L46: 4.6 | N46: 7.1 | O46: 5.9 | P46: 4.6 | Q46: 4.6 | R46: 4 | S46: 3.3
A47: 12.3 | B47: 12.3 | C47: =Language!D152 -> Cage d’escalier | D47: 3.5 | E47: 2.3 | H47: x | I47: 1 | J47: 3.5 | K47: 2.9 | L47: 2.3 | N47: 3.5 | O47: 2.9 | P47: 2.3 | Q47: 2.3 | R47: 2 | S47: 1.7
A48: 12.4 | B48: 12.4 | C48: =Language!D153 -> Locaux secondaires | D48: 3 | E48: 1.9 | H48: x | I48: 1 | J48: 3 | K48: 2.5 | L48: 1.9 | N48: 3 | O48: 2.5 | P48: 1.9 | Q48: 1.9 | R48: 1.6 | S48: 1.3
A49: 12.5 | B49: 12.5 | C49: =Language!D154 -> Cuisine, cuisine à thé | D49: 5.1 | E49: 3.3 | H49: x | I49: 1 | J49: 5.1 | K49: 4.2 | L49: 3.3 | N49: 5.1 | O49: 4.2 | P49: 3.3 | Q49: 3.3 | R49: 2.9 | S49: 2.4
A50: 12.6 | B50: 12.6 | C50: =Language!D155 -> WC, salle de bain, douche | D50: 6 | E50: 3.9 | H50: x | I50: 1 | J50: 6 | K50: 5 | L50: 3.9 | N50: 6 | O50: 5 | P50: 3.9 | Q50: 3.9 | R50: 3.4 | S50: 2.8
A51: 12.7 | B51: 12.7 | C51: =Language!D156 -> WC | D51: 9.9 | E51: 6.4 | H51: x | I51: 1 | J51: 9.9 | K51: 8.2 | L51: 6.4 | N51: 9.9 | O51: 8.2 | P51: 6.4 | Q51: 6.4 | R51: 5.5 | S51: 4.6
A52: 12.8 | B52: 12.8 | C52: =Language!D157 -> Vestiaires, douches | D52: 5.7 | E52: 3.7 | H52: x | I52: 1 | J52: 5.7 | K52: 4.7 | L52: 3.7 | N52: 5.7 | O52: 4.7 | P52: 3.7 | Q52: 3.7 | R52: 3.2 | S52: 2.7
A53: 12.9 | B53: 12.9 | C53: =Language!D158 -> Garage collectif | D53: 1.4 | E53: 0.9 | H53: x | I53: 1 | J53: 1.4 | K53: 1.2 | L53: 0.9 | N53: 1.4 | O53: 1.2 | P53: 0.9 | Q53: 0.9 | R53: 0.8 | S53: 0.6
A54: 12.10 | B54: 12.10 | C54: =Language!D159 -> Buanderie, séchoir | D54: 8.5 | E54: 5.5 | H54: x | I54: 1 | J54: 8.5 | K54: 7 | L54: 5.5 | N54: 8.5 | O54: 7 | P54: 5.5 | Q54: 5.5 | R54: 4.8 | S54: 4
A55: 12.11 | B55: 12.11 | C55: =Language!D160 -> Chambre froide | D55: 2.8 | E55: 1.8 | H55: x | I55: 1 | J55: 2.8 | K55: 2.3 | L55: 1.8 | N55: 2.8 | O55: 2.3 | P55: 1.8 | Q55: 1.8 | R55: 1.6 | S55: 1.3
A56: 12.12 | B56: 12.12 | C56: =Language!D161 -> Salle de serveurs | D56: 3.3 | E56: 2.2 | F56: x | I56: 0 | J56: 3.3 | K56: 2.8 | L56: 2.2 | N56: 3.3 | O56: 2.8 | P56: 2.2 | Q56: 2.2 | R56: 1.9 | S56: 1.6

Sheet Language (hidden)
C2: Anforderungen | D2: Sprachversion
C3: gesetzliche Anforderungen | D3: français
C4: =IF(C3=D113,1,0) -> 0 | D4: =MATCH(D3,L_Sprachen,0)-1 -> 1
B7: Betrifft Zelle | C7: Hilfsformeln/Bem. | D7: Auswahl | E7: deutsch | F7: français | G7: italiano | H7: english | I7: rumantsch
B9: Blatt "Calc"
A10: =CELL("address",Calc!A1) -> '[EN-111a_F.xlsm]Calc'!$A$1 | B10: =MID(A10,SEARCH("]",A10)+1,30) -> Calc'!$A$1 | D10: =OFFSET(E10,0,Spind)&"" -> EN-111a | E10: EN-111a | F10: EN-111a | G10: EN-111a | H10: EN-111a | I10: EN-111a
D11: fr | E11: de | F11: fr | G11: it | H11: en | I11: ro
A12: =CELL("address",Calc!A2) -> '[EN-111a_F.xlsm]Calc'!$A$2 | B12: =MID(A12,SEARCH("]",A12)+1,30) -> Calc'!$A$2 | D12: Justification de l'éclairage Performances pontuelles | E12: Beleuchtungsnachweis Einzelanforderung gemäss SIA 387/4 | F12: Justification de l'éclairage Performances pontuelles | G12: Verifica puntuale dell'illuminazione
A13: =CELL("address",Calc!A2) -> '[EN-111a_F.xlsm]Calc'!$A$2 | B13: Calc'!$A$2 | D13: =OFFSET(E13,0,Spind)&"" -> Exigence accrue, selon les valeurs cibles de la norme SIA 387/4, annexe A | E13: (Erhöhte Anforderung auf Basis der Zielwerte der Norm SIA 387/4, Anhang A) | F13: Exigence accrue, selon les valeurs cibles de la norme SIA 387/4, annexe A | G13: (esigenze elevate su base dei valori mirati della norma SIA 387/4, allegato A)
A14: =CELL("address",Calc!T2) -> '[EN-111a_F.xlsm]Calc'!$T$2 | B14: =MID(A14,SEARCH("]",A14)+1,30) -> Calc'!$T$2 | D14: =OFFSET(E14,0,Spind)&"" -> Valable jusqu'à | E14: Gültig bis | F14: Valable jusqu'à | G14: Valevole fino a
A15: =CELL("address",Calc!A4) -> '[EN-111a_F.xlsm]Calc'!$A$4 | B15: Calc'!$A$4 | D15: Description du projet | E15: Projektbezeichnung: | F15: Description du projet | G15: Titolo del progetto:
A16: =CELL("address",Calc!A6) -> '[EN-111a_F.xlsm]Calc'!$A$6 | B16: Calc'!$A$6 | D16: Etabli par: | E16: Bearbeitet durch: | F16: Etabli par: | G16: Elaborato da:
A17: =CELL("address",Calc!A7) -> '[EN-111a_F.xlsm]Calc'!$A$7 | B17: Calc'!$A$7 | D17: Date / révision | E17: Datum / Revisionen: | F17: Date / révision | G17: Data / Revisione:
A18: =CELL("address",Calc!C8) -> '[EN-111a_F.xlsm]Calc'!$C$8 | B18: Calc'!$C$8 | C18: L_Status | D18: Justification en cours | E18: Nachweis in Bearbeitung | F18: Justification en cours | G18: Verifica in allestimento
C19: F_Status | D19: Justification complète et terminée | E19: Nachweis vollständig und abgeschlossen | F19: Justification complète et terminée | G19: Verifica completata
A20: =CELL("address",Calc!A10) -> '[EN-111a_F.xlsm]Calc'!$A$10 | B20: Calc'!$A$10 | D20: Récapitulation / Résultat: | E20: Zusammenstellung / Ergebnis: | F20: Récapitulation / Résultat: | G20: Riassunto / Risultato
A21: =CELL("address",Calc!A11) -> '[EN-111a_F.xlsm]Calc'!$A$11 | B21: Calc'!$A$11 | D21: Somme des surfaces nettes de plancher | E21: Summe aller Nettogeschossflächen | F21: Somme des surfaces nettes de plancher | G21: Somma di tutte le superfici nette
A22: =CELL("address",Calc!A12) -> '[EN-111a_F.xlsm]Calc'!$A$12 | B22: Calc'!$A$12 | D22: Somme des puissances électriques | E22: Summe der elektrischen Leistungen | F22: Somme des puissances électriques | G22: Somma delle potenze elettriche
A23: =CELL("address",Calc!A13) -> '[EN-111a_F.xlsm]Calc'!$A$13 | B23: Calc'!$A$13 | D23: Eclairage valeur du projet | E23: Projektwert Beleuchtung | F23: Eclairage valeur du projet | G23: Valore di progetto per l'illuminazione
A24: =CELL("address",Calc!A14) -> '[EN-111a_F.xlsm]Calc'!$A$14 | B24: Calc'!$A$14 | D24: Exigence éclairage | E24: Anforderung Beleuchtung | F24: Exigence éclairage | G24: Requisito per l'illuminazione
A25: =CELL("address",Calc!A15) -> '[EN-111a_F.xlsm]Calc'!$A$15 | B25: Calc'!$A$15 | D25: Exigence respectée ? | E25: Anforderung eingehalten? | F25: Exigence respectée ? | G25: Requisito rispettato?
A26: =CELL("address",Calc!D11) -> '[EN-111a_F.xlsm]Calc'!$D$11 | B26: Calc'!$D$11 | D26: ① Somme colonne C | E26: ① Summe aus Spalte C | F26: ① Somme colonne C | G26: ① Somma dalla colonna C
A27: =CELL("address",Calc!D12) -> '[EN-111a_F.xlsm]Calc'!$D$12 | B27: Calc'!$D$12 | D27: ② Somme colonne T | E27: ② Summe aus Spalte T | F27: ② Somme colonne T | G27: ② Somma dalla colonna T
A28: =CELL("address",Calc!D13) -> '[EN-111a_F.xlsm]Calc'!$D$13 | B28: Calc'!$D$13 | D28: ③ = ②/① | E28: ③ = ②/① | F28: ③ = ②/① | G28: ③ = ②/① | H28: ③ = ②/① | I28: ③ = ②/①
A29: =CELL("address",Calc!D14) -> '[EN-111a_F.xlsm]Calc'!$D$14 | B29: Calc'!$D$14 | D29: ④ Valeur moyenne pondérée par les surfaces | E29: ④ flächengewichteter Mittelwert | F29: ④ Valeur moyenne pondérée par les surfaces | G29: ④ Valore medio ponderato
A30: =CELL("address",Calc!D15) -> '[EN-111a_F.xlsm]Calc'!$D$15 | B30: =MID(A30,SEARCH("]",A30)+1,30) -> Calc'!$D$15 | D30: Contrôle: ③ inférieur ou égal à ④ | E30: Prüfung: ③ kleiner gleich ④ | F30: Contrôle: ③ inférieur ou égal à ④ | G30: Verifica: ③ minore uguale ④
A31: =CELL("address",Calc!G15) -> '[EN-111a_F.xlsm]Calc'!$G$15 | B31: =MID(A31,SEARCH("]",A31)+1,30) -> Calc'!$G$15 | C31: T_n_erfüllt | D31: pas correct | E31: nicht i.O. | F31: pas correct | G31: Non rispettato
C32: T_erfüllt | D32: respecté | E32: erfüllt | F32: respecté | G32: Rispettato
A33: =CELL("address",Calc!N1) -> '[EN-111a_F.xlsm]Calc'!$N$1 | B33: =MID(A33,SEARCH("]",A33)+1,30) -> Calc'!$N$1 | C33: T_n_erfüllt_2 | D33: =OFFSET(E33,0,Spind)&"" -> Exigence pas respectée | E33: Nachweis nicht erfüllt | F33: Exigence pas respectée | G33: Verifica non soddisfatta
C34: T_erfüllt_2 | D34: =OFFSET(E34,0,Spind)&"" -> Exigence respectée | E34: Nachweis erfüllt | F34: Exigence respectée | G34: Verifica soddisfatta
A35: =CELL("address",Calc!N3) -> '[EN-111a_F.xlsm]Calc'!$N$3 | B35: =MID(A35,SEARCH("]",A35)+1,30) -> Calc'!$N$3 | D35: Remarques / justification des écarts etc. | E35: Bemerkungen/Begründungen für Abweichungen etc.: | F35: Remarques / justification des écarts etc. | G35: Note / Motivazioni per scostamenti, ecc.
A36: =CELL("address",Calc!N10) -> '[EN-111a_F.xlsm]Calc'!$N$10 | B36: =MID(A36,SEARCH("]",A36)+1,30) -> Calc'!$N$10 | D36: Annexes: | E36: Beilagen: | F36: Annexes: | G36: Allegati:
A37: =CELL("address",Calc!N11) -> '[EN-111a_F.xlsm]Calc'!$N$11 | B37: =MID(A37,SEARCH("]",A37)+1,30) -> Calc'!$N$11 | D37: Plans avec les données du concept d'éclairage (A3/A4) | E37: Pläne mit Angaben zum Beleuchtungskonzept (A3/A4) | F37: Plans avec les données du concept d'éclairage (A3/A4) | G37: Planimetrie con indicazioni sul concetto di illuminazione (A3/A4)
A38: =CELL("address",Calc!N12) -> '[EN-111a_F.xlsm]Calc'!$N$12 | B38: Calc'!$N$12 | D38: Plans avec les données des surfaces nettes de plancher (A3/A4) | E38: Pläne mit Angaben zur Nettogeschossfläche (A3/A4) | F38: Plans avec les données des surfaces nettes de plancher (A3/A4) | G38: Planimetrie con indicazioni sulle superfici nette (A3/A4)
A39: =CELL("address",Calc!N13) -> '[EN-111a_F.xlsm]Calc'!$N$13 | B39: Calc'!$N$13 | D39: Données des luminaires | E39: Leuchtendatenblätter | F39: Données des luminaires | G39: Dati tecnici corpi illuminanti
A40: =CELL("address",Calc!N14) -> '[EN-111a_F.xlsm]Calc'!$N$14 | B40: Calc'!$N$14
A41: =CELL("address",Calc!N15) -> '[EN-111a_F.xlsm]Calc'!$N$15 | B41: Calc'!$N$15
A42: =CELL("address",Calc!N16) -> '[EN-111a_F.xlsm]Calc'!$N$16 | B42: Calc'!$N$16
A44: =CELL("address",Calc!A17) -> '[EN-111a_F.xlsm]Calc'!$A$17 | B44: =MID(A44,SEARCH("]",A44)+1,30) -> Calc'!$A$17 | D44: Détermination de la surface nette de plancher et exigence à remplir | E44: Bestimmung Nettogeschossfläche und einzuhaltende Anforderung | F44: Détermination de la surface nette de plancher et exigence à remplir | G44: Definizione delle superfici nette e dei requisiti da rispettare
A45: =CELL("address",Calc!A18) -> '[EN-111a_F.xlsm]Calc'!$A$18 | B45: Calc'!$A$18
A46: =CELL("address",Calc!A19) -> '[EN-111a_F.xlsm]Calc'!$A$19 | B46: =MID(A46,SEARCH("]",A46)+1,30) -> Calc'!$A$19 | D46: Pièce/pièces | E46: Raum/Räume | F46: Pièce/pièces | G46: Locale/Locali
A47: =CELL("address",Calc!A20) -> '[EN-111a_F.xlsm]Calc'!$A$20 | B47: =MID(A47,SEARCH("]",A47)+1,30) -> Calc'!$A$20 | D47: =OFFSET(E47,0,Spind)&"" -> Nr. | E47: Nr. | F47: Nr. | G47: Nr.
A48: =CELL("address",Calc!B20) -> '[EN-111a_F.xlsm]Calc'!$B$20 | B48: =MID(A48,SEARCH("]",A48)+1,30) -> Calc'!$B$20 | D48: Désignation | E48: Bezeichnung | F48: Désignation | G48: Descrizione
A49: =CELL("address",Calc!C18) -> '[EN-111a_F.xlsm]Calc'!$C$18 | B49: Calc'!$C$18 | D49: ① | E49: ① | F49: ① | G49: ① | H49: ① | I49: ①
A50: =CELL("address",Calc!C19) -> '[EN-111a_F.xlsm]Calc'!$C$19 | B50: =MID(A50,SEARCH("]",A50)+1,30) -> Calc'!$C$19
A51: =CELL("address",Calc!C20) -> '[EN-111a_F.xlsm]Calc'!$C$20 | B51: =MID(A51,SEARCH("]",A51)+1,30) -> Calc'!$C$20 | D51: Surface | E51: Flächen | F51: Surface | G51: Superf.
A52: =CELL("address",Calc!D18) -> '[EN-111a_F.xlsm]Calc'!$D$18 | B52: Calc'!$D$18 | D52: Commande automatique | E52: Automatische Steuerung | F52: Commande automatique | G52: Ragolaz. automatizzata
A53: =CELL("address",Calc!D19) -> '[EN-111a_F.xlsm]Calc'!$D$19 | B53: =MID(A53,SEARCH("]",A53)+1,30) -> Calc'!$D$19 | D53: par | E53: nach | F53: par
A54: =CELL("address",Calc!D20) -> '[EN-111a_F.xlsm]Calc'!$D$20 | B54: =MID(A54,SEARCH("]",A54)+1,30) -> Calc'!$D$20 | D54: présence | E54: Präsenz | F54: présence | G54: movimento
A55: =CELL("address",Calc!E18) -> '[EN-111a_F.xlsm]Calc'!$E$18 | B55: Calc'!$E$18
A56: =CELL("address",Calc!E19) -> '[EN-111a_F.xlsm]Calc'!$E$19 | B56: =MID(A56,SEARCH("]",A56)+1,30) -> Calc'!$E$19 | D56: par | E56: nach | F56: par | G56: luce
A57: =CELL("address",Calc!E20) -> '[EN-111a_F.xlsm]Calc'!$E$20 | B57: =MID(A57,SEARCH("]",A57)+1,30) -> Calc'!$E$20 | D57: lumière naturelle | E57: Tageslicht | F57: lumière naturelle | G57: naturale
A58: =CELL("address",Calc!F18) -> '[EN-111a_F.xlsm]Calc'!$F$18 | B58: Calc'!$F$18
A59: =CELL("address",Calc!F19) -> '[EN-111a_F.xlsm]Calc'!$F$19 | B59: =MID(A59,SEARCH("]",A59)+1,30) -> Calc'!$F$19 | D59: =OFFSET(E59,0,Spind)&"" -> Condition d'utilisation selon SIA 2024 | E59: Nutzung gemäss SIA 2024 | F59: Condition d'utilisation selon SIA 2024 | G59: Utilizzo secondo SIA 2024
A60: =CELL("address",Calc!F20) -> '[EN-111a_F.xlsm]Calc'!$F$20 | B60: Calc'!$F$20 | D60: (voir onglet "Tab-387-4") | E60: (siehe Blatt "Tab-387-4") | F60: (voir onglet "Tab-387-4") | G60: (cfr. foglio "Tab-387-4")
A61: =CELL("address",Calc!K18) -> '[EN-111a_F.xlsm]Calc'!$K$18 | B61: =MID(A61,SEARCH("]",A61)+1,30) -> Calc'!$K$18 | D61: =OFFSET(E61,0,Spind)&"" -> système de | E61: Steuerungs- | F61: système de | G61: Punteggio
A62: =CELL("address",Calc!K19) -> '[EN-111a_F.xlsm]Calc'!$K$19 | B62: Calc'!$K$19 | D62: régulation | E62: punkte ge- | F62: régulation | G62: regolaz.
A63: =CELL("address",Calc!K20) -> '[EN-111a_F.xlsm]Calc'!$K$20 | B63: Calc'!$K$20 | D63: selon norme | E63: mäss Norm | F63: selon norme | G63: da norma
A64: =CELL("address",Calc!L18) -> '[EN-111a_F.xlsm]Calc'!$L$18 | B64: Calc'!$L$18 | D64: système de | E64: installierte | F64: système de | G64: Regolaz.
A65: =CELL("address",Calc!L19) -> '[EN-111a_F.xlsm]Calc'!$L$19 | B65: Calc'!$L$19 | D65: régulation | E65: Steue- | F65: régulation | G65: installata
A66: =CELL("address",Calc!L20) -> '[EN-111a_F.xlsm]Calc'!$L$20 | B66: Calc'!$L$20 | D66: installée | E66: rung | F66: installée
A67: =CELL("address",Calc!M18) -> '[EN-111a_F.xlsm]Calc'!$M$18 | B67: Calc'!$M$18 | D67: ④ | E67: ④ | F67: ④ | G67: ④ | H67: ④ | I67: ④
A68: =CELL("address",Calc!M19) -> '[EN-111a_F.xlsm]Calc'!$M$19 | B68: =MID(A68,SEARCH("]",A68)+1,30) -> Calc'!$M$19 | D68: Exigence | E68: Anforderung | F68: Exigence | G68: Requisiti
A69: =CELL("address",Calc!N18) -> '[EN-111a_F.xlsm]Calc'!$N$18 | B69: Calc'!$N$18 | D69: somme | E69: Summe | F69: somme | G69: Somma
A70: =CELL("address",Calc!N19) -> '[EN-111a_F.xlsm]Calc'!$N$19 | B70: =MID(A70,SEARCH("]",A70)+1,30) -> Calc'!$N$19 | D70: =OFFSET(E70,0,Spind)&"" -> exigence | E70: Anforderung | F70: exigence | G70: requisiti
A71: =CELL("address",Calc!D21) -> '[EN-111a_F.xlsm]Calc'!$D$21 | B71: Calc'!$D$21 | D71: 0 = non; 1 =oui | E71: 0 = Nein; 1 =Ja | F71: 0 = non; 1 =oui | G71: 0 = No; 1 = Si
A72: =CELL("address",Calc!G21) -> '[EN-111a_F.xlsm]Calc'!$G$21 | B72: =MID(A72,SEARCH("]",A72)+1,30) -> Calc'!$G$21 | D72: =OFFSET(E72,0,Spind)&"" -> Désignation | E72: Bezeichnung | F72: Désignation | G72: Descrizione
A73: =CELL("address",Calc!P17) -> '[EN-111a_F.xlsm]Calc'!$P$17 | B73: =MID(A73,SEARCH("]",A73)+1,30) -> Calc'!$P$17 | D73: =OFFSET(E73,0,Spind)&"" -> Puissance luminaire, valeur du projet | E73: Leistung Leuchten, Projektwert | F73: Puissance luminaire, valeur du projet | G73: Potenza dei corpi illuminanti, valori di progetto
A74: =CELL("address",Calc!F21) -> '[EN-111a_F.xlsm]Calc'!$F$21 | B74: Calc'!$F$21 | D74: Nr. | E74: Nr. | F74: Nr. | G74: Nr.
A75: =CELL("address",Calc!P18) -> '[EN-111a_F.xlsm]Calc'!$P$18 | B75: Calc'!$P$18 | D75: Type de luminaire | E75: Leuchten-Typ / | F75: Type de luminaire | G75: Tipo di corpo illuminante /
A76: =CELL("address",Calc!P19) -> '[EN-111a_F.xlsm]Calc'!$P$19 | B76: =MID(A76,SEARCH("]",A76)+1,30) -> Calc'!$P$19 | D76: =OFFSET(E76,0,Spind)&"" -> Luminaire par utilisation | E76: Leuchten pro Nutzung | F76: Luminaire par utilisation | G76: Corpi illuminanti per utilizzo
A77: =CELL("address",Calc!Q20) -> '[EN-111a_F.xlsm]Calc'!$Q$20 | B77: =MID(A77,SEARCH("]",A77)+1,30) -> Calc'!$Q$20 | D77: =OFFSET(E77,0,Spind)&"" -> Condition d'utilisation | E77: Nutzung | F77: Condition d'utilisation | G77: Utilizzo
A78: =CELL("address",Calc!R18) -> '[EN-111a_F.xlsm]Calc'!$R$18 | B78: Calc'!$R$18 | G78: Quantità
A79: =CELL("address",Calc!R19) -> '[EN-111a_F.xlsm]Calc'!$R$19 | B79: =MID(A79,SEARCH("]",A79)+1,30) -> Calc'!$R$19 | D79: =OFFSET(E79,0,Spind)&"" -> nombre | E79: Anzahl | F79: nombre | G79: corpi
A80: =CELL("address",Calc!R20) -> '[EN-111a_F.xlsm]Calc'!$R$20 | B80: =MID(A80,SEARCH("]",A80)+1,30) -> Calc'!$R$20 | D80: =OFFSET(E80,0,Spind)&"" -> luminaire | E80: Leuchten | F80: luminaire | G80: illumin.
A81: =CELL("address",Calc!R21) -> '[EN-111a_F.xlsm]Calc'!$R$21 | B81: Calc'!$R$21 | D81: pièce | E81: Stück | F81: pièce | G81: Qtà
A82: =CELL("address",Calc!S18) -> '[EN-111a_F.xlsm]Calc'!$S$18 | B82: Calc'!$S$18 | D82: Puissance | E82: Leistung | F82: Puissance | G82: Potenza
A83: =CELL("address",Calc!S19) -> '[EN-111a_F.xlsm]Calc'!$S$19 | B83: =MID(A83,SEARCH("]",A83)+1,30) -> Calc'!$S$19 | D83: =OFFSET(E83,0,Spind)&"" -> par | E83: pro | F83: par | G83: per corpo
A84: =CELL("address",Calc!S20) -> '[EN-111a_F.xlsm]Calc'!$S$20 | B84: =MID(A84,SEARCH("]",A84)+1,30) -> Calc'!$S$20 | D84: =OFFSET(E84,0,Spind)&"" -> Luminaire | E84: Leuchte | F84: Luminaire | G84: illlumin.
A85: =CELL("address",Calc!S21) -> '[EN-111a_F.xlsm]Calc'!$S$21 | B85: =MID(A85,SEARCH("]",A85)+1,30) -> Calc'!$S$21 | D85: =OFFSET(E85,0,Spind)&"" -> W/pièce | E85: W/Stk. | F85: W/pièce | G85: W/Pz.
B87: Blatt "Tab-387-4"
A88: =CELL("address",'Tab-387-4'!B6) -> '[EN-111a_F.xlsm]Tab-387-4'!$B$6 | B88: Tab-387-4'!$B$6 | D88: Données liées aux conditions d'utilisation | E88: Daten der Raumnutzungen | F88: Données liées aux conditions d'utilisation | G88: Dati delle tipologie di utilizzo
A89: =CELL("address",'Tab-387-4'!B7) -> '[EN-111a_F.xlsm]Tab-387-4'!$B$7 | B89: Tab-387-4'!$B$7 | D89: pour le calcul de l'exigence: | E89: für die Berechnung der Anforderung: | F89: pour le calcul de l'exigence: | G89: per il calcolo deli requisiti:
A90: =CELL("address",'Tab-387-4'!B8) -> '[EN-111a_F.xlsm]Tab-387-4'!$B$8 | B90: =MID(A90,SEARCH("]",A90)+1,30) -> Tab-387-4'!$B$8 | D90: =OFFSET(E90,0,Spind)&"" -> (selon SIA 387/4, tableau Annexe A) | E90: (Auf Basis SIA 387/4, Tabelle Anhang A) | F90: (selon SIA 387/4, tableau Annexe A) | G90: (su base SIA 387/4, tabella in Allegato A)
A91: =CELL("address",'Tab-387-4'!I6:K6) -> '[EN-111a_F.xlsm]Tab-387-4'!$I$6 | B91: =MID(A91,SEARCH("]",A91)+1,30) -> Tab-387-4'!$I$6 | D91: =OFFSET(E91,0,Spind)&"" -> Retour au calcul | E91: Zurück zur Berechnung | F91: Retour au calcul | G91: Ritorna alla verifica
A92: =CELL("address",'Tab-387-4'!B9) -> '[EN-111a_F.xlsm]Tab-387-4'!$B$9 | B92: Tab-387-4'!$B$9 | D92: Nr. | E92: Nr. | F92: Nr. | G92: Nr.
A93: =CELL("address",'Tab-387-4'!B10) -> '[EN-111a_F.xlsm]Tab-387-4'!$B$10 | B93: =MID(A93,SEARCH("]",A93)+1,30) -> Tab-387-4'!$B$10 | D93: =OFFSET(E93,0,Spind)&"" -> 
A94: =CELL("address",'Tab-387-4'!D9) -> '[EN-111a_F.xlsm]Tab-387-4'!$D$9 | B94: Tab-387-4'!$D$9 | D94: Puissance spécifique | E94: spezifische Leistung | F94: Puissance spécifique | G94: Potenza specifica
A95: =CELL("address",'Tab-387-4'!D10) -> '[EN-111a_F.xlsm]Tab-387-4'!$D$10 | B95: =MID(A95,SEARCH("]",A95)+1,30) -> Tab-387-4'!$D$10 | D95: =OFFSET(E95,0,Spind)&"" -> W/m² | E95: W/m² | F95: W/m² | G95: W/m² | H95: W/m² | I95: W/m²
A96: =CELL("address",'Tab-387-4'!F9) -> '[EN-111a_F.xlsm]Tab-387-4'!$F$9 | B96: Tab-387-4'!$F$9 | D96: Conditions d'utilisation standard avec présence | E96: Standardnutzungen mit Präsenz | F96: Conditions d'utilisation standard avec présence | G96: Utilizzo standard con presenza
A97: =CELL("address",'Tab-387-4'!F10) -> '[EN-111a_F.xlsm]Tab-387-4'!$F$10 | B97: =MID(A97,SEARCH("]",A97)+1,30) -> Tab-387-4'!$F$10 | D97: =OFFSET(E97,0,Spind)&"" -> 
A98: =CELL("address",'Tab-387-4'!D11) -> '[EN-111a_F.xlsm]Tab-387-4'!$D$11 | B98: Tab-387-4'!$D$11 | D98: pour la valeur limite | E98: für Grenzwert | F98: pour la valeur limite | G98: per valore
A99: =CELL("address",'Tab-387-4'!D12) -> '[EN-111a_F.xlsm]Tab-387-4'!$D$12 | B99: =MID(A99,SEARCH("]",A99)+1,30) -> Tab-387-4'!$D$12 | D99: =OFFSET(E99,0,Spind)&"" ->  | G99: limite
A100: =CELL("address",'Tab-387-4'!E11) -> '[EN-111a_F.xlsm]Tab-387-4'!$E$11 | B100: Tab-387-4'!$E$11 | D100: pour la valeur cible | E100: für Zielwert | F100: pour la valeur cible | G100: per valore
A101: =CELL("address",'Tab-387-4'!E12) -> '[EN-111a_F.xlsm]Tab-387-4'!$E$12 | B101: =MID(A101,SEARCH("]",A101)+1,30) -> Tab-387-4'!$E$12 | D101: =OFFSET(E101,0,Spind)&"" ->  | G101: mirato
A102: =CELL("address",'Tab-387-4'!F11) -> '[EN-111a_F.xlsm]Tab-387-4'!$F$11 | B102: Tab-387-4'!$F$11 | D102: Présence | E102: dauernde | F102: Présence | G102: presenza
A103: =CELL("address",'Tab-387-4'!F12) -> '[EN-111a_F.xlsm]Tab-387-4'!$F$12 | B103: =MID(A103,SEARCH("]",A103)+1,30) -> Tab-387-4'!$F$12 | D103: =OFFSET(E103,0,Spind)&"" -> permanente | E103: Präsenz | F103: permanente | G103: continua
A104: =CELL("address",'Tab-387-4'!G11) -> '[EN-111a_F.xlsm]Tab-387-4'!$G$11 | B104: Tab-387-4'!$G$11 | D104: Présence | E104: normale | F104: Présence | G104: presenza
A105: =CELL("address",'Tab-387-4'!G12) -> '[EN-111a_F.xlsm]Tab-387-4'!$G$12 | B105: =MID(A105,SEARCH("]",A105)+1,30) -> Tab-387-4'!$G$12 | D105: =OFFSET(E105,0,Spind)&"" -> usuelle | E105: Präsenz | F105: usuelle | G105: normale
A106: =CELL("address",'Tab-387-4'!H11) -> '[EN-111a_F.xlsm]Tab-387-4'!$H$11 | B106: Tab-387-4'!$H$11 | D106: Présence | E106: sporadische | F106: Présence | G106: presenza
A107: =CELL("address",'Tab-387-4'!H12) -> '[EN-111a_F.xlsm]Tab-387-4'!$H$12 | B107: =MID(A107,SEARCH("]",A107)+1,30) -> Tab-387-4'!$H$12 | D107: =OFFSET(E107,0,Spind)&"" -> sporadique | E107: Präsenz | F107: sporadique | G107: sporadica
A108: =CELL("address",'Tab-387-4'!I9) -> '[EN-111a_F.xlsm]Tab-387-4'!$I$9 | B108: =MID(A108,SEARCH("]",A108)+1,30) -> Tab-387-4'!$I$9 | D108: Exigence | E108: Anforderung | F108: Exigence | G108: Esigenza
A109: =CELL("address",'Tab-387-4'!I10) -> '[EN-111a_F.xlsm]Tab-387-4'!$I$10 | B109: =MID(A109,SEARCH("]",A109)+1,30) -> Tab-387-4'!$I$10 | D109: commance | E109: Steuerung | F109: commance | G109: regolazione
A110: =CELL("address",'Tab-387-4'!I11) -> '[EN-111a_F.xlsm]Tab-387-4'!$I$11 | B110: Tab-387-4'!$I$11
A111: =CELL("address",'Tab-387-4'!I12) -> '[EN-111a_F.xlsm]Tab-387-4'!$I$12 | B111: Tab-387-4'!$I$12
A112: =CELL("address",'Tab-387-4'!N8) -> '[EN-111a_F.xlsm]Tab-387-4'!$N$8 | B112: Tab-387-4'!$N$8 | C112: L_Anforderung | D112: =OFFSET(E112,0,Spind)&"" -> Exigence légale requise | E112: gesetzliche Anforderungen | F112: Exigence légale requise | G112: Esigenze secondo norma
A113: =CELL("address",'Tab-387-4'!Q8) -> '[EN-111a_F.xlsm]Tab-387-4'!$Q$8 | B113: Tab-387-4'!$Q$8 | D113: =OFFSET(E113,0,Spind)&"" -> Exigence accrue | E113: erhöhte Anforderungen | F113: Exigence accrue | G113: Esigenze elevate
A114: =CELL("address",'Tab-387-4'!J9:L9) -> '[EN-111a_F.xlsm]Tab-387-4'!$J$9 | B114: Tab-387-4'!$J$9 | D114: Influence de la régulation | E114: Einfluss Steuerung | F114: Influence de la régulation | G114: Influsso regolazione
A115: =CELL("address",'Tab-387-4'!J10:L10) -> '[EN-111a_F.xlsm]Tab-387-4'!$J$10 | B115: =MID(A115,SEARCH("]",A115)+1,30) -> Tab-387-4'!$J$10 | D115: W/m² | E115: W/m² | F115: W/m² | G115: W/m² | H115: W/m² | I115: W/m²
A117: =CELL("address",'Tab-387-4'!C9) -> '[EN-111a_F.xlsm]Tab-387-4'!$C$9 | B117: =MID(A117,SEARCH("]",A117)+1,30) -> Tab-387-4'!$C$9 | D117: Conditions d'utilisation | E117: Raumnutzung | F117: Conditions d'utilisation | G117: Tipologia d'utilizzo
A118: =CELL("address",'Tab-387-4'!C10) -> '[EN-111a_F.xlsm]Tab-387-4'!$C$10 | B118: =MID(A118,SEARCH("]",A118)+1,30) -> Tab-387-4'!$C$10
A119: =CELL("address",'Tab-387-4'!C14) -> '[EN-111a_F.xlsm]Tab-387-4'!$C$14 | B119: Tab-387-4'!$C$14 | D119: Chambre d’hôtel | E119: Hotelzimmer | F119: Chambre d’hôtel | G119: Camera d’albergo
A120: =CELL("address",'Tab-387-4'!C15) -> '[EN-111a_F.xlsm]Tab-387-4'!$C$15 | B120: Tab-387-4'!$C$15 | D120: Réception, zone d’accueil | E120: Empfang, Lobby | F120: Réception, zone d’accueil | G120: Ricezione, lobby
A121: =CELL("address",'Tab-387-4'!C16) -> '[EN-111a_F.xlsm]Tab-387-4'!$C$16 | B121: Tab-387-4'!$C$16 | D121: Bureau individuel, collectif | E121: Einzel-, Gruppenbüro | F121: Bureau individuel, collectif | G121: Ufficio individuale, collettivo
A122: =CELL("address",'Tab-387-4'!C17) -> '[EN-111a_F.xlsm]Tab-387-4'!$C$17 | B122: Tab-387-4'!$C$17 | D122: Bureau paysagé | E122: Grossraumbüro | F122: Bureau paysagé | G122: Open space
A123: =CELL("address",'Tab-387-4'!C18) -> '[EN-111a_F.xlsm]Tab-387-4'!$C$18 | B123: Tab-387-4'!$C$18 | D123: Salle de réunion | E123: Sitzungszimmer | F123: Salle de réunion | G123: Sala riunioni
A124: =CELL("address",'Tab-387-4'!C19) -> '[EN-111a_F.xlsm]Tab-387-4'!$C$19 | B124: Tab-387-4'!$C$19 | D124: Hall des guichets, zone clientèle | E124: Schalterhalle, Empfang | F124: Hall des guichets, zone clientèle | G124: Sala sportelli, accoglienza
A125: =CELL("address",'Tab-387-4'!C20) -> '[EN-111a_F.xlsm]Tab-387-4'!$C$20 | B125: Tab-387-4'!$C$20 | D125: Salle d’école | E125: Schulzimmer | F125: Salle d’école | G125: Locale d’insegnamento
A126: =CELL("address",'Tab-387-4'!C21) -> '[EN-111a_F.xlsm]Tab-387-4'!$C$21 | B126: Tab-387-4'!$C$21 | D126: Salle des maîtres | E126: Lehrerzimmer | F126: Salle des maîtres | G126: Sala docenti
A127: =CELL("address",'Tab-387-4'!C22) -> '[EN-111a_F.xlsm]Tab-387-4'!$C$22 | B127: Tab-387-4'!$C$22 | D127: Bibliothèque | E127: Bibliothek | F127: Bibliothèque | G127: Biblioteca
A128: =CELL("address",'Tab-387-4'!C23) -> '[EN-111a_F.xlsm]Tab-387-4'!$C$23 | B128: Tab-387-4'!$C$23 | D128: Auditoire | E128: Hörsaal | F128: Auditoire | G128: Auditorio
A129: =CELL("address",'Tab-387-4'!C24) -> '[EN-111a_F.xlsm]Tab-387-4'!$C$24 | B129: Tab-387-4'!$C$24 | D129: Locaux spéciaux | E129: Schulfachraum | F129: Locaux spéciaux | G129: Aula speciale
A130: =CELL("address",'Tab-387-4'!C25) -> '[EN-111a_F.xlsm]Tab-387-4'!$C$25 | B130: Tab-387-4'!$C$25 | D130: =OFFSET(E130,0,Spind)&"" -> Magasin d’alimentation | E130: Lebensmittelverkauf | F130: Magasin d’alimentation | G130: Negozio alimentare
A131: =CELL("address",'Tab-387-4'!C26) -> '[EN-111a_F.xlsm]Tab-387-4'!$C$26 | B131: Tab-387-4'!$C$26 | D131: Magasin spécialisé | E131: Fachgeschäft | F131: Magasin spécialisé | G131: Negozio specializzato
A132: =CELL("address",'Tab-387-4'!C27) -> '[EN-111a_F.xlsm]Tab-387-4'!$C$27 | B132: Tab-387-4'!$C$27 | D132: Magasin meubles, bricolage, jardin | E132: Verkauf Möbel, Bau, Garten | F132: Magasin meubles, bricolage, jardin | G132: Vendita mobili, materiali da costruzione e giardinaggio
A133: =CELL("address",'Tab-387-4'!C28) -> '[EN-111a_F.xlsm]Tab-387-4'!$C$28 | B133: Tab-387-4'!$C$28 | D133: Restaurant | E133: Restaurant | F133: Restaurant | G133: Ristorante
A134: =CELL("address",'Tab-387-4'!C29) -> '[EN-111a_F.xlsm]Tab-387-4'!$C$29 | B134: Tab-387-4'!$C$29 | D134: Restaurant self-service | E134: Selbstbedienungsrestaurant | F134: Restaurant self-service | G134: Ristorante self-service
A135: =CELL("address",'Tab-387-4'!C30) -> '[EN-111a_F.xlsm]Tab-387-4'!$C$30 | B135: Tab-387-4'!$C$30 | D135: Cuisine de 6.1 | E135: Küche zu Restaurant | F135: Cuisine de 6.1 | G135: Cucina da ristorante
A136: =CELL("address",'Tab-387-4'!C31) -> '[EN-111a_F.xlsm]Tab-387-4'!$C$31 | B136: Tab-387-4'!$C$31 | D136: Cuisine de 6.2 | E136: Küche zu SB-Restaurant | F136: Cuisine de 6.2 | G136: Cucina da ristorante self-service
A137: =CELL("address",'Tab-387-4'!C32) -> '[EN-111a_F.xlsm]Tab-387-4'!$C$32 | B137: Tab-387-4'!$C$32 | D137: Salle de spectacles | E137: Vorstellungsraum | F137: Salle de spectacles | G137: Sala spettacoli
A138: =CELL("address",'Tab-387-4'!C33) -> '[EN-111a_F.xlsm]Tab-387-4'!$C$33 | B138: Tab-387-4'!$C$33 | D138: Salle polyvalente | E138: Mehrzweckhalle | F138: Salle polyvalente | G138: Sala multiuso
A139: =CELL("address",'Tab-387-4'!C34) -> '[EN-111a_F.xlsm]Tab-387-4'!$C$34 | B139: Tab-387-4'!$C$34 | D139: Halle d’exposition | E139: Ausstellungshalle | F139: Halle d’exposition | G139: Padiglione d’esposizione
A140: =CELL("address",'Tab-387-4'!C35) -> '[EN-111a_F.xlsm]Tab-387-4'!$C$35 | B140: Tab-387-4'!$C$35 | D140: Chambre d’hôpital | E140: Bettenzimmer | F140: Chambre d’hôpital | G140: Camera d’ospedale
A141: =CELL("address",'Tab-387-4'!C36) -> '[EN-111a_F.xlsm]Tab-387-4'!$C$36 | B141: Tab-387-4'!$C$36 | D141: Bureau de service hospitalier | E141: Stationszimmer | F141: Bureau de service hospitalier | G141: Camera di reparto
A142: =CELL("address",'Tab-387-4'!C37) -> '[EN-111a_F.xlsm]Tab-387-4'!$C$37 | B142: Tab-387-4'!$C$37 | D142: Locaux médicaux | E142: Behandlungsraum | F142: Locaux médicaux | G142: Ambulatorio
A143: =CELL("address",'Tab-387-4'!C38) -> '[EN-111a_F.xlsm]Tab-387-4'!$C$38 | B143: Tab-387-4'!$C$38 | D143: Production (travail lourd) | E143: Produktion (grobe Arbeit) | F143: Production (travail lourd) | G143: Produzione (lavoro pesante)
A144: =CELL("address",'Tab-387-4'!C39) -> '[EN-111a_F.xlsm]Tab-387-4'!$C$39 | B144: Tab-387-4'!$C$39 | D144: Production (travail fin) | E144: Produktion (feine Arbeit) | F144: Production (travail fin) | G144: Produzione (lavoro fine)
A145: =CELL("address",'Tab-387-4'!C40) -> '[EN-111a_F.xlsm]Tab-387-4'!$C$40 | B145: Tab-387-4'!$C$40 | D145: Laboratoire | E145: Laborraum | F145: Laboratoire | G145: Laboratorio
A146: =CELL("address",'Tab-387-4'!C41) -> '[EN-111a_F.xlsm]Tab-387-4'!$C$41 | B146: =MID(A146,SEARCH("]",A146)+1,30) -> Tab-387-4'!$C$41 | D146: Entrepôt | E146: Lagerhalle | F146: Entrepôt | G146: Magazzino
A147: =CELL("address",'Tab-387-4'!C42) -> '[EN-111a_F.xlsm]Tab-387-4'!$C$42 | B147: Tab-387-4'!$C$42 | D147: Salle de gymnastique | E147: Turnhalle | F147: Salle de gymnastique | G147: Palestra
A148: =CELL("address",'Tab-387-4'!C43) -> '[EN-111a_F.xlsm]Tab-387-4'!$C$43 | B148: Tab-387-4'!$C$43 | D148: Salle de fitness | E148: Fitnessraum | F148: Salle de fitness | G148: Locale fitness
A149: =CELL("address",'Tab-387-4'!C44) -> '[EN-111a_F.xlsm]Tab-387-4'!$C$44 | B149: Tab-387-4'!$C$44 | D149: Piscine couverte | E149: Schwimmhalle | F149: Piscine couverte | G149: Piscina coperta
A150: =CELL("address",'Tab-387-4'!C45) -> '[EN-111a_F.xlsm]Tab-387-4'!$C$45 | B150: Tab-387-4'!$C$45 | D150: Surfaces de dégagement | E150: Verkehrsfläche | F150: Surfaces de dégagement | G150: Superficie di circolazione
A151: =CELL("address",'Tab-387-4'!C46) -> '[EN-111a_F.xlsm]Tab-387-4'!$C$46 | B151: Tab-387-4'!$C$46 | D151: Surfaces de dégagement 24h | E151: Verkehrsfläche 24h | F151: Surfaces de dégagement 24h | G151: Superficie di circolazione 24h
A152: =CELL("address",'Tab-387-4'!C47) -> '[EN-111a_F.xlsm]Tab-387-4'!$C$47 | B152: Tab-387-4'!$C$47 | D152: Cage d’escalier | E152: Treppenhaus | F152: Cage d’escalier | G152: Vano scala
A153: =CELL("address",'Tab-387-4'!C48) -> '[EN-111a_F.xlsm]Tab-387-4'!$C$48 | B153: Tab-387-4'!$C$48 | D153: Locaux secondaires | E153: Nebenraum | F153: Locaux secondaires | G153: Locale secondario
A154: =CELL("address",'Tab-387-4'!C49) -> '[EN-111a_F.xlsm]Tab-387-4'!$C$49 | B154: Tab-387-4'!$C$49 | D154: Cuisine, cuisine à thé | E154: Küche, Teeküche | F154: Cuisine, cuisine à thé | G154: Cucina, piano cottura
A155: =CELL("address",'Tab-387-4'!C50) -> '[EN-111a_F.xlsm]Tab-387-4'!$C$50 | B155: Tab-387-4'!$C$50 | D155: WC, salle de bain, douche | E155: WC, Bad, Dusche | F155: WC, salle de bain, douche | G155: WC, bagno, doccia
A156: =CELL("address",'Tab-387-4'!C51) -> '[EN-111a_F.xlsm]Tab-387-4'!$C$51 | B156: Tab-387-4'!$C$51 | D156: WC | E156: WC | F156: WC | G156: WC
A157: =CELL("address",'Tab-387-4'!C52) -> '[EN-111a_F.xlsm]Tab-387-4'!$C$52 | B157: Tab-387-4'!$C$52 | D157: Vestiaires, douches | E157: Garderobe, Dusche | F157: Vestiaires, douches | G157: Vestiario, doccia
A158: =CELL("address",'Tab-387-4'!C53) -> '[EN-111a_F.xlsm]Tab-387-4'!$C$53 | B158: Tab-387-4'!$C$53 | D158: Garage collectif | E158: Parkhaus | F158: Garage collectif | G158: Autorimessa
A159: =CELL("address",'Tab-387-4'!C54) -> '[EN-111a_F.xlsm]Tab-387-4'!$C$54 | B159: Tab-387-4'!$C$54 | D159: Buanderie, séchoir | E159: Wasch- und Trockenraum | F159: Buanderie, séchoir | G159: Lavanderia e stenditoio
A160: =CELL("address",'Tab-387-4'!C55) -> '[EN-111a_F.xlsm]Tab-387-4'!$C$55 | B160: Tab-387-4'!$C$55 | D160: Chambre froide | E160: Kühlraum | F160: Chambre froide | G160: Cella frigorifera
A161: =CELL("address",'Tab-387-4'!C56) -> '[EN-111a_F.xlsm]Tab-387-4'!$C$56 | B161: Tab-387-4'!$C$56 | D161: Salle de serveurs | E161: Serverraum | F161: Salle de serveurs | G161: Locale server
A162: =CELL("address",'Tab-387-4'!C13) -> '[EN-111a_F.xlsm]Tab-387-4'!$C$13 | B162: Tab-387-4'!$C$13 | C162: (Platz frei halten)
A163: =CELL("address",'Tab-387-4'!C57) -> '[EN-111a_F.xlsm]Tab-387-4'!$C$57 | B163: Tab-387-4'!$C$57
A164: =CELL("address",'Tab-387-4'!C58) -> '[EN-111a_F.xlsm]Tab-387-4'!$C$58 | B164: Tab-387-4'!$C$58
A165: =CELL("address",'Tab-387-4'!C59) -> '[EN-111a_F.xlsm]Tab-387-4'!$C$59 | B165: Tab-387-4'!$C$59
A166: =CELL("address",'Tab-387-4'!C60) -> '[EN-111a_F.xlsm]Tab-387-4'!$C$60 | B166: Tab-387-4'!$C$60
A167: =CELL("address",'Tab-387-4'!C61) -> '[EN-111a_F.xlsm]Tab-387-4'!$C$61 | B167: Tab-387-4'!$C$61
A168: =CELL("address",'Tab-387-4'!C62) -> '[EN-111a_F.xlsm]Tab-387-4'!$C$62 | B168: Tab-387-4'!$C$62
A169: =CELL("address",'Tab-387-4'!C63) -> '[EN-111a_F.xlsm]Tab-387-4'!$C$63 | B169: Tab-387-4'!$C$63
A170: =CELL("address",'Tab-387-4'!C64) -> '[EN-111a_F.xlsm]Tab-387-4'!$C$64 | B170: Tab-387-4'!$C$64
A171: =CELL("address",'Tab-387-4'!C65) -> '[EN-111a_F.xlsm]Tab-387-4'!$C$65 | B171: Tab-387-4'!$C$65
A172: =CELL("address",'Tab-387-4'!C66) -> '[EN-111a_F.xlsm]Tab-387-4'!$C$66 | B172: Tab-387-4'!$C$66
A173: =CELL("address",'Tab-387-4'!C67) -> '[EN-111a_F.xlsm]Tab-387-4'!$C$67 | B173: Tab-387-4'!$C$67
A174: =CELL("address",'Tab-387-4'!C68) -> '[EN-111a_F.xlsm]Tab-387-4'!$C$68 | B174: Tab-387-4'!$C$68 | D174: =OFFSET(E174,0,Spind)&"" -> 
A175: =CELL("address",'Tab-387-4'!C69) -> '[EN-111a_F.xlsm]Tab-387-4'!$C$69 | B175: Tab-387-4'!$C$69
A176: =CELL("address",'Tab-387-4'!C70) -> '[EN-111a_F.xlsm]Tab-387-4'!$C$70 | B176: Tab-387-4'!$C$70
A177: =CELL("address",'Tab-387-4'!C71) -> '[EN-111a_F.xlsm]Tab-387-4'!$C$71 | B177: Tab-387-4'!$C$71
D194: =OFFSET(E194,0,Spind)&"" -> 
D258: =OFFSET(E258,0,Spind)&"" -> 
D322: =OFFSET(E322,0,Spind)&"" -> 
D386: =OFFSET(E386,0,Spind)&"" -> 

Sheet Log (hidden)
H1: aktuelle Version
B2: Update Log | H2: =OFFSET(H6,H5,0) -> V 1.04
H3: Gültig Bis
H4: 2024-12-31
H5: =COUNTA(H7:H1087) -> 6
B6: von | C6: Datum | D6: Problem | E6: Lösung | F6: erledigt durch | G6: datum | H6: Version
C7: 2018-08-29 | E7: Erstpublikation | F7: SGe | G7: 2018-08-29 | H7: V 1.00
C8: 2018-09-18 | E8: Übersetzung italienisch | F8: MFa | H8: V 1.00
C9: 2018-11-07 | D9: Bereitstellung für öffentliche Publikation | E9: Passwortschutz eingeschaltet | F9: CG | G9: 2018-11-07 | H9: V 1.01
C10: 2018-12-04 | D10: Bereitstellung für öffentliche Publikation | E10: Passwortschutz eingeschaltet | F10: SGe | G10: 2018-12-04 | H10: V 1.02
C11: 2019-01-09 | D11: Korrigenda SIA 387/4, Werte der spez. Leistung (Tab. 387/4) angepasst. | E11: Passwortschutz eingeschaltet | F11: SGe | G11: 2019-01-09 | H11: V 1.03
C12: 2019-12-06 | D12: Ablauf des Tools | E12: Laufzeit um 3 Jahre verlängert | F12: SGe | G12: 2019-12-06 | H12: V 1.04

Sheet Tabelle2 (hidden)
A1: Haftungsausschluss
A3: Diese Exceltabelle steht zur freien Verfügung. Die Excelfunktionen sind nicht gesperrt, so dass Manipulationen an der Tabelle möglich sind. Für die Anwendung kann deshalb keine Haftung übernommen werden.
A5: Fehler sind per Email zu melden an:
A6: mailto:energie@bd.zh.ch?body=Fehlermeldung%20%0A%0AFehlerart%3A%20%0A%0AZelle%3A%20%0A%0ABeschreibung%3A%20%0A%0AName%2FVorname%3A%0A%0AFirma%2FAdresse%3A%0A%0ATelefon-Nr.%3A%20%0A%0A&subject=Fehlermeldung%20an%20Ch.%20Gm%C3%BCr
A8: Zürich, 01.02.2018

Sheet Zielwert (hidden)
A1: Nachweis spezifische Leistung für Beleuchtungsanlagen (Anforderung im Sinne der Norm SIA 387/4) | K1: =IF(H12=0,"",IF(H12<H13,"Nachweis erfüllt","Nachweis nicht erfüllt.")) ->  | V1: Daten der Raumnutzungen:
V2: für die Berechnung der Anforderung:
A3: Projektbezeichnung: | C3: Beispiel Präsentation
V4: Nr. | W4: Raumnutzung | X4: spezif. Leistung W/m2 | Z4: Standardnutzungen mit Präsenz
A5: Verantwortlich für Nachweis: | X5: für Grenzwert | Y5: für Zielwert | Z5: Dauernde Präsenz | AA5: normale Präsenz | AB5: sporadische Präsenz
A6: Datum / Unterschrift: | C6: =TODAY() -> 2022-12-15 | V6: 2.1 | W6: Hotelzimmer | X6: 7.7 | Y6: 5 | Z6: x | AC6: 0
V7: 2.2 | W7: Empfang, Lobby | X7: 6.6 | Y7: 4.3 | Z7: x | AC7: 0
V8: 3.1 | W8: Einzel-, Gruppenbüro | X8: 12.5 | Y8: 8.1 | AA8: x | AC8: 2
A9: Zusammenstellung / Ergebnis: | V9: 3.2 | W9: Grossraumbüro | X9: 9.8 | Y9: 6.4 | AA9: x | AC9: 2
A10: Summe aller Nettogeschossflächen | G10: ① Summe aus Spalte C | J10: =SUM(C19:C103) -> 300 | K10: m² | V10: 3.3 | W10: Sitzungszimmer | X10: 12.5 | Y10: 8.1 | AA10: x | AC10: 2
A11: Summe der elektrischen Leistungen | G11: ② Summe aus Spalte P | J11: =SUM(P19:P103) -> 2020 | K11: W | V11: 3.4 | W11: Schalterhalle, Empfang | X11: 7.1 | Y11: 4.6 | Z11: x | AC11: 0
A12: Projektwert Beleuchtung | G12: ③ = ②/① | J12: =J11/J10 -> 6.733333333 | K12: W/ m² | V12: x | X12: 0 | Y12: 0
A13: Anforderung Beleuchtung | G13: ④ flächengewichteter Mittelwert | J13: =SUMPRODUCT(C19:C103,J19:J103)/J10 -> 4.9 | K13: W/ m² | V13: 4.1 | W13: Schulzimmer | X13: 11 | Y13: 7.2 | AA13: x | AC13: 2
A14: Anforderung eingehalten? | G14: Prüfung ③ kleiner gleich ④ | J14: =IF(J12=0,"",IF(J12<J13,"erfüllt","nicht i.O.")) -> nicht i.O. | V14: 4.2 | W14: Lehrerzimmer | X14: 7.5 | Y14: 4.9 | AA14: x | AC14: 2
V15: 4.3 | W15: Bibliothek | X15: 5.9 | Y15: 3.8 | AA15: x | AC15: 2
A16: Bestimmung Nettogeschossfläche und Grenzwert: | M16: Leuchten | P16: evtl. Berechnung der Leistung | V16: 4.4 | W16: Hörsaal | X16: 9.8 | Y16: 6.4 | AA16: x | AC16: 2
A17: Nr. | B17: Raum/Räume | C17: ① Flächen | D17: Präsenz- melder | E17: Tages- licht- steuerung | F17: Nutzung gemäss SIA 2024 | H17: Steuerungs punkt gemäss Norm | I17: installierte Steuerung | J17: ④ Anforderung pV | K17: Summe Anforderung P_el | M17: Nr. | N17: Leuchten-Typ / Leuchten pro Nutzung | O17: Leistung Pel Total | P17: ② Pel | Q17: Anzahl Leuchten | R17: Leistung Leuchte | S17: Projekt wert | V17: 4.5 | W17: Schulfachraum | X17: 11 | Y17: 7.2 | AA17: x | AC17: 2
C18: m² | D18: 0 = Nein; 1 =Ja | F18: Nr. | G18: Bezeichnung | J18: W/m² | K18: W | O18: W | P18: W | Q18: Stück | R18: W | S18: W/m2 | V18: 5.1 | W18: Lebensmittelverkauf | X18: 14.9 | Y18: 9.7 | Z18: x | AC18: 0
A19: 1 | B19: Empfang | C19: 100 | D19: 1 | E19: 0 | F19: 2.2 | G19: =VLOOKUP(F19,$V$6:$Y$49,2,FALSE) -> Empfang, Lobby | H19: =VLOOKUP(F19,$V$6:$AC$49,8,FALSE) -> 0 | I19: =IF(H19=1,H19+1-(2*D19+E19),H19-(D19+E19)) -> -1 | J19: =VLOOKUP(F19,$V$6:$Y$49,4,FALSE) -> 4.3 | K19: =J19*C19 -> 430 | M19: 1.1 | N19: Stehleuchte | P19: =IF(O19<=0,Q19*R19,O19) -> 1000 | Q19: 10 | R19: 100 | S19: =IF(C19=0,0,P19/C19) -> 10 | V19: 5.2 | W19: Fachgeschäft | X19: 14.9 | Y19: 9.7 | Z19: x | AC19: 0
A20: 2 | B20: Gang | C20: 100 | D20: 0 | E20: 0 | F20: 12.1 | G20: Verkehrsfläche | H20: 1 | I20: =IF(H20=1,H20+1-(2*D20+E20),H20-(D20+E20)) -> 2 | J20: =VLOOKUP(F20,$V$6:$Y$49,4,FALSE) -> 2.3 | K20: 230 | M20: 1.2 | N20: Empfangleuchten | O20: 600 | P20: 600 | S20: 6 | V20: 5.3 | W20: Verkauf Möbel, Bau, Garten | X20: 12 | Y20: 7.8 | Z20: x | AC20: 0
A21: 3 | B21: Büro | C21: 100 | D21: 0 | E21: 0 | F21: 3.1 | G21: Einzel-, Gruppenbüro | H21: 2 | I21: 2 | J21: =VLOOKUP(F21,$V$6:$Y$49,4,FALSE) -> 8.1 | K21: 810 | M21: 1.3 | N21: Downlight | P21: 420 | Q21: 20 | R21: 21 | S21: 4.2 | V21: 6.1 | W21: Restaurant | X21: 5.9 | Y21: 3.8 | AA21: x | AC21: 2
D22: 0 | E22: 0 | F22: x | G22: 0 | H22: 0 | I22: 0 | J22: =IF(I22<=0,VLOOKUP(F22,$V$6:$Y$49,3,FALSE),IF(I22=2,(VLOOKUP(F22,$V$6:$Y$49,4,FALSE)),IF(I22=1,(((VLOOKUP(F22,$V$6:$Y$49,3,FALSE))-(VLOOKUP(F22,$V$6:$Y$49,4,FALSE)))/2+(VLOOKUP(F22,$V$6:$Y$49,4,FALSE)))))) -> 0 | K22: 0 | P22: 0 | S22: 0 | V22: 6.2 | W22: Selbstbedienungsrestaurant | X22: 3.5 | Y22: 2.3 | AA22: x | AC22: 2
D23: 0 | E23: 0 | F23: x | G23: 0 | H23: 0 | I23: 0 | J23: 0 | K23: 0 | P23: 0 | S23: 0 | V23: 6.3 | W23: Küche zu Restaurant | X23: 18.8 | Y23: 12.2 | AC23: 0
D24: 0 | E24: 0 | F24: x | G24: 0 | H24: 0 | I24: 0 | J24: 0 | K24: 0 | P24: 0 | S24: 0 | V24: 6.4 | W24: Küche zu SB-Restaurant | X24: 14.7 | Y24: 9.5 | AC24: 0
D25: 0 | E25: 0 | F25: x | G25: 0 | H25: 0 | I25: 0 | J25: 0 | K25: 0 | P25: 0 | S25: 0 | V25: 7.1 | W25: Vorstellungsraum | X25: 7 | Y25: 4.5 | AC25: 0
D26: 0 | E26: 0 | F26: x | G26: 0 | H26: 0 | I26: 0 | J26: 0 | K26: 0 | P26: 0 | S26: 0 | V26: 7.2 | W26: Mehrzweckhalle | X26: 7 | Y26: 4.5 | AC26: 0
D27: 0 | E27: 0 | F27: x | G27: 0 | I27: 0 | J27: 0 | K27: 0 | P27: 0 | S27: 0 | V27: 7.3 | W27: Ausstellungshalle | X27: 7 | Y27: 4.5 | AC27: 0
D28: 0 | E28: 0 | F28: x | G28: 0 | H28: =VLOOKUP(F28,$V$6:$AC$49,8,FALSE) -> 0 | I28: 0 | J28: 0 | K28: 0 | P28: =IF(O28>=0,Q28*R28,O28) -> 0 | S28: 0 | V28: 8.1 | W28: Bettenzimmer | X28: 6.8 | Y28: 4.4 | AC28: 0
D29: 0 | E29: 0 | F29: x | G29: 0 | H29: 0 | I29: 0 | J29: 0 | K29: 0 | P29: 0 | S29: 0 | V29: 8.2 | W29: Stationszimmer | X29: 12.5 | Y29: 8.1 | AC29: 0
D30: 0 | E30: 0 | F30: x | G30: 0 | H30: 0 | I30: 0 | J30: 0 | K30: 0 | P30: 0 | S30: 0 | V30: 8.3 | W30: Behandlungsraum | X30: 12.5 | Y30: 8.1 | AC30: 0
D31: 0 | E31: 0 | F31: x | G31: 0 | H31: 0 | I31: 0 | J31: 0 | K31: 0 | P31: 0 | S31: 0 | V31: 9.1 | W31: Produktion (grobe Arbeit) | X31: 7 | Y31: 4.5 | AA31: x | AC31: 2
D32: 0 | E32: 0 | F32: x | G32: 0 | H32: 0 | I32: 0 | J32: 0 | K32: 0 | P32: 0 | S32: 0 | V32: 9.2 | W32: Produktion (feine Arbeit) | X32: 11.6 | Y32: 7.5 | AA32: x | AC32: 2
D33: 0 | E33: 0 | F33: x | G33: 0 | H33: 0 | I33: 0 | J33: 0 | K33: 0 | P33: 0 | S33: 0 | V33: 9.3 | W33: Laborraum | X33: 12.8 | Y33: 8.3 | Z33: x | AC33: 0
D34: 0 | E34: 0 | F34: x | G34: 0 | H34: 0 | I34: 0 | J34: 0 | K34: 0 | P34: 0 | S34: 0 | V34: 10.1 | W34: Lagerhalle | X34: 7.3 | Y34: 4.7 | AA34: x | AC34: 2
D35: 0 | E35: 0 | F35: x | G35: 0 | H35: 0 | I35: 0 | J35: 0 | K35: 0 | P35: 0 | S35: 0 | V35: 11.1 | W35: Turnhalle | X35: 11.3 | Y35: 7.3 | AA35: x | AC35: 2
D36: 0 | E36: 0 | F36: x | G36: 0 | H36: 0 | I36: 0 | J36: 0 | K36: 0 | P36: 0 | S36: 0 | V36: 11.2 | W36: Fitnessraum | X36: 6.4 | Y36: 4.1 | AA36: x | AC36: 2
D37: 0 | E37: 0 | F37: x | G37: 0 | H37: 0 | I37: 0 | J37: 0 | K37: 0 | P37: 0 | S37: 0 | V37: 11.3 | W37: Schwimmhalle | X37: 7.3 | Y37: 4.7 | AA37: x | AC37: 2
D38: 0 | E38: 0 | F38: x | G38: 0 | H38: 0 | I38: 0 | J38: 0 | K38: 0 | P38: 0 | S38: 0 | V38: 12.1 | W38: Verkehrsfläche | X38: 3.5 | Y38: 2.3 | AB38: x | AC38: 1
D39: 0 | E39: 0 | F39: x | G39: 0 | H39: 0 | I39: 0 | J39: 0 | K39: 0 | P39: 0 | S39: 0 | V39: 12.2 | W39: Verkehrsfläche 24h (Spitäler) | X39: 7.1 | Y39: 4.6 | AB39: x | AC39: 1
D40: 0 | E40: 0 | F40: x | G40: 0 | H40: 0 | I40: 0 | J40: 0 | K40: 0 | P40: 0 | S40: 0 | V40: 12.3 | W40: Treppenhaus | X40: 7.1 | Y40: 4.6 | AB40: x | AC40: 1
D41: 0 | E41: 0 | F41: x | G41: 0 | H41: 0 | I41: 0 | J41: 0 | K41: 0 | P41: 0 | S41: 0 | V41: 12.4 | W41: Nebenraum | X41: 3 | Y41: 1.9 | AB41: x | AC41: 1
D42: 0 | E42: 0 | F42: x | G42: 0 | H42: 0 | I42: 0 | J42: 0 | K42: 0 | P42: 0 | S42: 0 | V42: 12.5 | W42: Küche, Teeküche | X42: 5.1 | Y42: 3.3 | AB42: x | AC42: 1
D43: 0 | E43: 0 | F43: x | G43: 0 | H43: 0 | I43: 0 | J43: 0 | K43: 0 | P43: 0 | S43: 0 | V43: 12.6 | W43: WC, Bad, Dusche | X43: 6 | Y43: 3.9 | AB43: x | AC43: 1
D44: 0 | E44: 0 | F44: x | G44: 0 | H44: 0 | I44: 0 | J44: 0 | K44: 0 | P44: 0 | S44: 0 | V44: 12.7 | W44: WC | X44: 9.9 | Y44: 6.4 | AB44: x | AC44: 1
D45: 0 | E45: 0 | F45: x | G45: 0 | H45: 0 | I45: 0 | J45: 0 | K45: 0 | P45: 0 | S45: 0 | V45: 12.8 | W45: Garderobe, Dusche | X45: 5.7 | Y45: 3.7 | AB45: x | AC45: 1
D46: 0 | E46: 0 | F46: x | G46: 0 | H46: 0 | I46: 0 | J46: 0 | K46: 0 | P46: 0 | S46: 0 | V46: 12.9 | W46: Parkhaus | X46: 1.4 | Y46: 0.9 | AB46: x | AC46: 1
D47: 0 | E47: 0 | F47: x | G47: 0 | H47: 0 | I47: 0 | J47: 0 | K47: 0 | P47: 0 | S47: 0 | V47: 13.1 | W47: Wasch- und Trockenraum | X47: 8.5 | Y47: 5.5 | AB47: x | AC47: 1
D48: 0 | E48: 0 | F48: x | G48: 0 | H48: 0 | I48: 0 | J48: 0 | K48: 0 | P48: 0 | S48: 0 | V48: 12.11 | W48: Kühlraum | X48: 2.8 | Y48: 1.8 | AB48: x | AC48: 1
D49: 0 | E49: 0 | F49: x | G49: 0 | H49: 0 | I49: 0 | J49: 0 | K49: 0 | P49: 0 | S49: 0 | V49: 12.12 | W49: Serverraum | X49: 3.3 | Y49: 2.2 | Z49: x | AC49: 0
D50: 0 | E50: 0 | F50: x | G50: 0 | H50: 0 | I50: 0 | J50: 0 | K50: 0 | P50: 0 | S50: 0
D51: 0 | E51: 0 | F51: x | G51: 0 | H51: 0 | I51: 0 | J51: 0 | K51: 0 | P51: 0 | S51: 0
D52: 0 | E52: 0 | F52: x | G52: 0 | H52: 0 | I52: 0 | J52: 0 | K52: 0 | P52: 0 | S52: 0
D53: 0 | E53: 0 | F53: x | G53: 0 | H53: 0 | I53: 0 | J53: 0 | K53: 0 | P53: 0 | S53: 0
D54: 0 | E54: 0 | F54: x | G54: 0 | H54: 0 | I54: 0 | J54: 0 | K54: 0 | P54: 0 | S54: 0
D55: 0 | E55: 0 | F55: x | G55: 0 | H55: 0 | I55: 0 | J55: 0 | K55: 0 | P55: 0 | S55: 0
D56: 0 | E56: 0 | F56: x | G56: 0 | H56: 0 | I56: 0 | J56: 0 | K56: 0 | P56: 0 | S56: 0
D57: 0 | E57: 0 | F57: x | G57: 0 | H57: 0 | I57: 0 | J57: 0 | K57: 0 | P57: 0 | S57: 0
D58: 0 | E58: 0 | F58: x | G58: 0 | H58: 0 | I58: 0 | J58: 0 | K58: 0 | P58: 0 | S58: 0
D59: 0 | E59: 0 | F59: x | G59: 0 | H59: 0 | I59: 0 | J59: 0 | K59: 0 | P59: 0 | S59: 0
D60: 0 | E60: 0 | F60: x | G60: 0 | H60: 0 | I60: 0 | J60: 0 | K60: 0 | P60: 0 | S60: 0
D61: 0 | E61: 0 | F61: x | G61: 0 | H61: 0 | I61: 0 | J61: 0 | K61: 0 | P61: 0 | S61: 0
D62: 0 | E62: 0 | F62: x | G62: 0 | H62: 0 | I62: 0 | J62: 0 | K62: 0 | P62: 0 | S62: 0
D63: 0 | E63: 0 | F63: x | G63: 0 | H63: 0 | I63: 0 | J63: 0 | K63: 0 | P63: 0 | S63: 0
D64: 0 | E64: 0 | F64: x | G64: 0 | H64: 0 | I64: 0 | J64: 0 | K64: 0 | P64: 0 | S64: 0
D65: 0 | E65: 0 | F65: x | G65: 0 | H65: 0 | I65: 0 | J65: 0 | K65: 0 | P65: 0 | S65: 0
D66: 0 | E66: 0 | F66: x | G66: 0 | H66: 0 | I66: 0 | J66: 0 | K66: 0 | P66: 0 | S66: 0
D67: 0 | E67: 0 | F67: x | G67: 0 | H67: 0 | I67: 0 | J67: 0 | K67: 0 | P67: 0 | S67: 0
D68: 0 | E68: 0 | F68: x | G68: 0 | H68: 0 | I68: 0 | J68: 0 | K68: 0 | P68: 0 | S68: 0
D69: 0 | E69: 0 | F69: x | G69: 0 | H69: 0 | I69: 0 | J69: 0 | K69: 0 | P69: 0 | S69: 0
D70: 0 | E70: 0 | F70: x | G70: 0 | H70: 0 | I70: 0 | J70: 0 | K70: 0 | P70: 0 | S70: 0
D71: 0 | E71: 0 | F71: x | G71: 0 | H71: 0 | I71: 0 | J71: 0 | K71: 0 | P71: 0 | S71: 0
D72: 0 | E72: 0 | F72: x | G72: 0 | H72: 0 | I72: 0 | J72: 0 | K72: 0 | P72: 0 | S72: 0
D73: 0 | E73: 0 | F73: x | G73: 0 | H73: 0 | I73: 0 | J73: 0 | K73: 0 | P73: 0 | S73: 0
D74: 0 | E74: 0 | F74: x | G74: 0 | H74: 0 | I74: 0 | J74: 0 | K74: 0 | P74: 0 | S74: 0
D75: 0 | E75: 0 | F75: x | G75: 0 | H75: 0 | I75: 0 | J75: 0 | K75: 0 | P75: 0 | S75: 0
D76: 0 | E76: 0 | F76: x | G76: 0 | H76: 0 | I76: 0 | J76: 0 | K76: 0 | P76: 0 | S76: 0
D77: 0 | E77: 0 | F77: x | G77: 0 | H77: 0 | I77: 0 | J77: 0 | K77: 0 | P77: 0 | S77: 0
D78: 0 | E78: 0 | F78: x | G78: 0 | H78: 0 | I78: 0 | J78: 0 | K78: 0 | P78: 0 | S78: 0
D79: 0 | E79: 0 | F79: x | G79: 0 | H79: 0 | I79: 0 | J79: 0 | K79: 0 | P79: 0 | S79: 0
D80: 0 | E80: 0 | F80: x | G80: 0 | H80: 0 | I80: 0 | J80: 0 | K80: 0 | P80: 0 | S80: 0
D81: 0 | E81: 0 | F81: x | G81: 0 | H81: 0 | I81: 0 | J81: 0 | K81: 0 | P81: 0 | S81: 0
D82: 0 | E82: 0 | F82: x | G82: 0 | H82: 0 | I82: 0 | J82: 0 | K82: 0 | P82: 0 | S82: 0
D83: 0 | E83: 0 | F83: x | G83: =VLOOKUP(F83,$V$6:$Y$49,2,FALSE) -> 0 | H83: 0 | I83: 0 | J83: =IF(I83<=0,VLOOKUP(F83,$V$6:$Y$49,3,FALSE),IF(I83=2,(VLOOKUP(F83,$V$6:$Y$49,4,FALSE)),IF(I83=1,(((VLOOKUP(F83,$V$6:$Y$49,3,FALSE))-(VLOOKUP(F83,$V$6:$Y$49,4,FALSE)))/2+(VLOOKUP(F83,$V$6:$Y$49,4,FALSE)))))) -> 0 | K83: =J83*C83 -> 0 | P83: 0 | S83: =IF(C83=0,0,P83/C83) -> 0
D84: 0 | E84: 0 | F84: x | G84: 0 | H84: 0 | I84: =IF(H84=1,H84+1-(2*D84+E84),H84-(D84+E84)) -> 0 | J84: 0 | K84: 0 | P84: 0 | S84: 0
D85: 0 | E85: 0 | F85: x | G85: 0 | H85: 0 | I85: 0 | J85: 0 | K85: 0 | P85: 0 | S85: 0
D86: 0 | E86: 0 | F86: x | G86: 0 | H86: 0 | I86: 0 | J86: 0 | K86: 0 | P86: 0 | S86: 0
D87: 0 | E87: 0 | F87: x | G87: 0 | H87: 0 | I87: 0 | J87: 0 | K87: 0 | P87: 0 | S87: 0
D88: 0 | E88: 0 | F88: x | G88: 0 | H88: 0 | I88: 0 | J88: 0 | K88: 0 | P88: 0 | S88: 0
D89: 0 | E89: 0 | F89: x | G89: 0 | H89: 0 | I89: 0 | J89: 0 | K89: 0 | P89: 0 | S89: 0
D90: 0 | E90: 0 | F90: x | G90: 0 | H90: 0 | I90: 0 | J90: 0 | K90: 0 | P90: 0 | S90: 0
D91: 0 | E91: 0 | F91: x | G91: 0 | H91: 0 | I91: 0 | J91: 0 | K91: 0 | P91: 0 | S91: 0
D92: 0 | E92: 0 | F92: x | G92: 0 | H92: =VLOOKUP(F92,$V$6:$AC$49,8,FALSE) -> 0 | I92: 0 | J92: 0 | K92: 0 | P92: =IF(O92>=0,Q92*R92,O92) -> 0 | S92: 0
D93: 0 | E93: 0 | F93: x | G93: 0 | H93: 0 | I93: 0 | J93: 0 | K93: 0 | P93: 0 | S93: 0
D94: 0 | E94: 0 | F94: x | G94: 0 | H94: 0 | I94: 0 | J94: 0 | K94: 0 | P94: 0 | S94: 0
D95: 0 | E95: 0 | F95: x | G95: 0 | H95: 0 | I95: 0 | J95: 0 | K95: 0 | P95: 0 | S95: 0
D96: 0 | E96: 0 | F96: x | G96: 0 | H96: 0 | I96: 0 | J96: 0 | K96: 0 | P96: 0 | S96: 0
D97: 0 | E97: 0 | F97: x | G97: 0 | H97: 0 | I97: 0 | J97: 0 | K97: 0 | P97: 0 | S97: 0
D98: 0 | E98: 0 | F98: x | G98: 0 | H98: 0 | I98: 0 | J98: 0 | K98: 0 | P98: 0 | S98: 0
D99: 0 | E99: 0 | F99: x | G99: 0 | H99: 0 | I99: 0 | J99: 0 | K99: 0 | P99: 0 | S99: 0
D100: 0 | E100: 0 | F100: x | G100: 0 | H100: 0 | I100: 0 | J100: 0 | K100: 0 | P100: 0 | S100: 0
D101: 0 | E101: 0 | F101: x | G101: 0 | H101: 0 | I101: 0 | J101: 0 | K101: 0 | P101: 0 | S101: 0
D102: 0 | E102: 0 | F102: x | G102: 0 | H102: 0 | I102: 0 | J102: 0 | K102: 0 | P102: 0 | S102: 0
D103: 0 | E103: 0 | F103: x | G103: 0 | H103: 0 | I103: 0 | J103: 0 | K103: 0 | P103: 0 | S103: 0

Sheet Minergie (hidden)
A1: Nachweis spezifische Leistung für Beleuchtungsanlagen (Anforderung im Sinne der Norm SIA 387/4) | K1: =IF(H12=0,"",IF(H12<H13,"Nachweis erfüllt","Nachweis nicht erfüllt.")) ->  | V1: Daten der Raumnutzungen:
V2: für die Berechnung der Anforderung:
A3: Projektbezeichnung: | C3: Beispiel Präsentation
V4: Nr. | W4: Raumnutzung | X4: spezif. Leistung W/m2 | Z4: Standardnutzungen mit Präsenz
A5: Verantwortlich für Nachweis: | X5: für Grenzwert | Y5: für Zielwert | Z5: Dauernde Präsenz | AA5: normale Präsenz | AB5: sporadische Präsenz
A6: Datum / Unterschrift: | C6: =TODAY() -> 2022-12-15 | V6: 2.1 | W6: Hotelzimmer | X6: 7.7 | Y6: 5 | Z6: x | AC6: 0
V7: 2.2 | W7: Empfang, Lobby | X7: 6.6 | Y7: 4.3 | Z7: x | AC7: 0
V8: 3.1 | W8: Einzel-, Gruppenbüro | X8: 12.5 | Y8: 8.1 | AA8: x | AC8: 2
A9: Zusammenstellung / Ergebnis: | V9: 3.2 | W9: Grossraumbüro | X9: 9.8 | Y9: 6.4 | AA9: x | AC9: 2
A10: Summe aller Nettogeschossflächen | G10: ① Summe aus Spalte C | J10: =SUM(C19:C103) -> 300 | K10: m² | V10: 3.3 | W10: Sitzungszimmer | X10: 12.5 | Y10: 8.1 | AA10: x | AC10: 2
A11: Summe der elektrischen Leistungen | G11: ② Summe aus Spalte P | J11: =SUM(P19:P103) -> 2020 | K11: W | V11: 3.4 | W11: Schalterhalle, Empfang | X11: 7.1 | Y11: 4.6 | Z11: x | AC11: 0
A12: Projektwert Beleuchtung | G12: ③ = ②/① | J12: =J11/J10 -> 6.733333333 | K12: W/ m² | V12: x | X12: 0 | Y12: 0
A13: Anforderung Beleuchtung | G13: ④ flächengewichteter Mittelwert | J13: =SUMPRODUCT(C19:C103,J19:J103)/J10 -> 6.216666667 | K13: W/ m² | V13: 4.1 | W13: Schulzimmer | X13: 11 | Y13: 7.2 | AA13: x | AC13: 2
A14: Anforderung eingehalten? | G14: Prüfung ③ kleiner gleich ④ | J14: =IF(J12=0,"",IF(J12<J13,"erfüllt","nicht i.O.")) -> nicht i.O. | V14: 4.2 | W14: Lehrerzimmer | X14: 7.5 | Y14: 4.9 | AA14: x | AC14: 2
V15: 4.3 | W15: Bibliothek | X15: 5.9 | Y15: 3.8 | AA15: x | AC15: 2
A16: Bestimmung Nettogeschossfläche und Grenzwert: | M16: Leuchten | P16: evtl. Berechnung der Leistung | V16: 4.4 | W16: Hörsaal | X16: 9.8 | Y16: 6.4 | AA16: x | AC16: 2
A17: Nr. | B17: Raum/Räume | C17: ① Flächen | D17: Präsenz- melder | E17: Tages- licht- steuerung | F17: Nutzung gemäss SIA 2024 | H17: Steuerungs punkt gemäss Norm | I17: installierte Steuerung | J17: ④ Anforderung pV | K17: Summe Anforderung P_el | M17: Nr. | N17: Leuchten-Typ / Leuchten pro Nutzung | O17: Leistung Pel Total | P17: ② Pel | Q17: Anzahl Leuchten | R17: Leistung Leuchte | S17: Projekt wert | V17: 4.5 | W17: Schulfachraum | X17: 11 | Y17: 7.2 | AA17: x | AC17: 2
C18: m² | D18: 0 = Nein; 1 =Ja | F18: Nr. | G18: Bezeichnung | J18: W/m² | K18: W | O18: W | P18: W | Q18: Stück | R18: W | S18: W/m2 | V18: 5.1 | W18: Lebensmittelverkauf | X18: 14.9 | Y18: 9.7 | Z18: x | AC18: 0
A19: 1 | B19: Empfang | C19: 100 | D19: 1 | E19: 0 | F19: 2.2 | G19: =VLOOKUP(F19,$V$6:$Y$49,2,FALSE) -> Empfang, Lobby | H19: =VLOOKUP(F19,$V$6:$AC$49,8,FALSE) -> 0 | I19: =IF(H19=1,H19+1-(2*D19+E19),H19-(D19+E19)) -> -1 | J19: =(((VLOOKUP(F19,$V$6:$Y$49,3,FALSE))-(VLOOKUP(F19,$V$6:$Y$49,4,FALSE)))/2+(VLOOKUP(F19,$V$6:$Y$49,4,FALSE))) -> 5.45 | K19: =J19*C19 -> 545 | M19: 1.1 | N19: Stehleuchte | P19: =IF(O19<=0,Q19*R19,O19) -> 1000 | Q19: 10 | R19: 100 | S19: =IF(C19=0,0,P19/C19) -> 10 | V19: 5.2 | W19: Fachgeschäft | X19: 14.9 | Y19: 9.7 | Z19: x | AC19: 0
A20: 2 | B20: Gang | C20: 100 | D20: 0 | E20: 0 | F20: 12.1 | G20: Verkehrsfläche | H20: 1 | I20: =IF(H20=1,H20+1-(2*D20+E20),H20-(D20+E20)) -> 2 | J20: =(((VLOOKUP(F20,$V$6:$Y$49,3,FALSE))-(VLOOKUP(F20,$V$6:$Y$49,4,FALSE)))/2+(VLOOKUP(F20,$V$6:$Y$49,4,FALSE))) -> 2.9 | K20: 290 | M20: 1.2 | N20: Empfangleuchten | O20: 600 | P20: 600 | S20: 6 | V20: 5.3 | W20: Verkauf Möbel, Bau, Garten | X20: 12 | Y20: 7.8 | Z20: x | AC20: 0
A21: 3 | B21: Büro | C21: 100 | D21: 0 | E21: 0 | F21: 3.1 | G21: Einzel-, Gruppenbüro | H21: 2 | I21: 2 | J21: =(((VLOOKUP(F21,$V$6:$Y$49,3,FALSE))-(VLOOKUP(F21,$V$6:$Y$49,4,FALSE)))/2+(VLOOKUP(F21,$V$6:$Y$49,4,FALSE))) -> 10.3 | K21: 1030 | M21: 1.3 | N21: Downlight | P21: 420 | Q21: 20 | R21: 21 | S21: 4.2 | V21: 6.1 | W21: Restaurant | X21: 5.9 | Y21: 3.8 | AA21: x | AC21: 2
D22: 0 | E22: 0 | F22: x | G22: 0 | H22: 0 | I22: 0 | J22: =IF(I22<=0,VLOOKUP(F22,$V$6:$Y$49,3,FALSE),IF(I22=2,(VLOOKUP(F22,$V$6:$Y$49,4,FALSE)),IF(I22=1,(((VLOOKUP(F22,$V$6:$Y$49,3,FALSE))-(VLOOKUP(F22,$V$6:$Y$49,4,FALSE)))/2+(VLOOKUP(F22,$V$6:$Y$49,4,FALSE)))))) -> 0 | K22: 0 | P22: 0 | S22: 0 | V22: 6.2 | W22: Selbstbedienungsrestaurant | X22: 3.5 | Y22: 2.3 | AA22: x | AC22: 2
D23: 0 | E23: 0 | F23: x | G23: 0 | H23: 0 | I23: 0 | J23: 0 | K23: 0 | P23: 0 | S23: 0 | V23: 6.3 | W23: Küche zu Restaurant | X23: 18.8 | Y23: 12.2 | AC23: 0
D24: 0 | E24: 0 | F24: x | G24: 0 | H24: 0 | I24: 0 | J24: 0 | K24: 0 | P24: 0 | S24: 0 | V24: 6.4 | W24: Küche zu SB-Restaurant | X24: 14.7 | Y24: 9.5 | AC24: 0
D25: 0 | E25: 0 | F25: x | G25: 0 | H25: 0 | I25: 0 | J25: 0 | K25: 0 | P25: 0 | S25: 0 | V25: 7.1 | W25: Vorstellungsraum | X25: 7 | Y25: 4.5 | AC25: 0
D26: 0 | E26: 0 | F26: x | G26: 0 | H26: 0 | I26: 0 | J26: 0 | K26: 0 | P26: 0 | S26: 0 | V26: 7.2 | W26: Mehrzweckhalle | X26: 7 | Y26: 4.5 | AC26: 0
D27: 0 | E27: 0 | F27: x | G27: 0 | I27: 0 | J27: 0 | K27: 0 | P27: 0 | S27: 0 | V27: 7.3 | W27: Ausstellungshalle | X27: 7 | Y27: 4.5 | AC27: 0
D28: 0 | E28: 0 | F28: x | G28: 0 | H28: =VLOOKUP(F28,$V$6:$AC$49,8,FALSE) -> 0 | I28: 0 | J28: 0 | K28: 0 | P28: =IF(O28>=0,Q28*R28,O28) -> 0 | S28: 0 | V28: 8.1 | W28: Bettenzimmer | X28: 6.8 | Y28: 4.4 | AC28: 0
D29: 0 | E29: 0 | F29: x | G29: 0 | H29: 0 | I29: 0 | J29: 0 | K29: 0 | P29: 0 | S29: 0 | V29: 8.2 | W29: Stationszimmer | X29: 12.5 | Y29: 8.1 | AC29: 0
D30: 0 | E30: 0 | F30: x | G30: 0 | H30: 0 | I30: 0 | J30: 0 | K30: 0 | P30: 0 | S30: 0 | V30: 8.3 | W30: Behandlungsraum | X30: 12.5 | Y30: 8.1 | AC30: 0
D31: 0 | E31: 0 | F31: x | G31: 0 | H31: 0 | I31: 0 | J31: 0 | K31: 0 | P31: 0 | S31: 0 | V31: 9.1 | W31: Produktion (grobe Arbeit) | X31: 7 | Y31: 4.5 | AA31: x | AC31: 2
D32: 0 | E32: 0 | F32: x | G32: 0 | H32: 0 | I32: 0 | J32: 0 | K32: 0 | P32: 0 | S32: 0 | V32: 9.2 | W32: Produktion (feine Arbeit) | X32: 11.6 | Y32: 7.5 | AA32: x | AC32: 2
D33: 0 | E33: 0 | F33: x | G33: 0 | H33: 0 | I33: 0 | J33: 0 | K33: 0 | P33: 0 | S33: 0 | V33: 9.3 | W33: Laborraum | X33: 12.8 | Y33: 8.3 | Z33: x | AC33: 0
D34: 0 | E34: 0 | F34: x | G34: 0 | H34: 0 | I34: 0 | J34: 0 | K34: 0 | P34: 0 | S34: 0 | V34: 10.1 | W34: Lagerhalle | X34: 7.3 | Y34: 4.7 | AA34: x | AC34: 2
D35: 0 | E35: 0 | F35: x | G35: 0 | H35: 0 | I35: 0 | J35: 0 | K35: 0 | P35: 0 | S35: 0 | V35: 11.1 | W35: Turnhalle | X35: 11.3 | Y35: 7.3 | AA35: x | AC35: 2
D36: 0 | E36: 0 | F36: x | G36: 0 | H36: 0 | I36: 0 | J36: 0 | K36: 0 | P36: 0 | S36: 0 | V36: 11.2 | W36: Fitnessraum | X36: 6.4 | Y36: 4.1 | AA36: x | AC36: 2
D37: 0 | E37: 0 | F37: x | G37: 0 | H37: 0 | I37: 0 | J37: 0 | K37: 0 | P37: 0 | S37: 0 | V37: 11.3 | W37: Schwimmhalle | X37: 7.3 | Y37: 4.7 | AA37: x | AC37: 2
D38: 0 | E38: 0 | F38: x | G38: 0 | H38: 0 | I38: 0 | J38: 0 | K38: 0 | P38: 0 | S38: 0 | V38: 12.1 | W38: Verkehrsfläche | X38: 3.5 | Y38: 2.3 | AB38: x | AC38: 1
D39: 0 | E39: 0 | F39: x | G39: 0 | H39: 0 | I39: 0 | J39: 0 | K39: 0 | P39: 0 | S39: 0 | V39: 12.2 | W39: Verkehrsfläche 24h (Spitäler) | X39: 7.1 | Y39: 4.6 | AB39: x | AC39: 1
D40: 0 | E40: 0 | F40: x | G40: 0 | H40: 0 | I40: 0 | J40: 0 | K40: 0 | P40: 0 | S40: 0 | V40: 12.3 | W40: Treppenhaus | X40: 7.1 | Y40: 4.6 | AB40: x | AC40: 1
D41: 0 | E41: 0 | F41: x | G41: 0 | H41: 0 | I41: 0 | J41: 0 | K41: 0 | P41: 0 | S41: 0 | V41: 12.4 | W41: Nebenraum | X41: 3 | Y41: 1.9 | AB41: x | AC41: 1
D42: 0 | E42: 0 | F42: x | G42: 0 | H42: 0 | I42: 0 | J42: 0 | K42: 0 | P42: 0 | S42: 0 | V42: 12.5 | W42: Küche, Teeküche | X42: 5.1 | Y42: 3.3 | AB42: x | AC42: 1
D43: 0 | E43: 0 | F43: x | G43: 0 | H43: 0 | I43: 0 | J43: 0 | K43: 0 | P43: 0 | S43: 0 | V43: 12.6 | W43: WC, Bad, Dusche | X43: 6 | Y43: 3.9 | AB43: x | AC43: 1
D44: 0 | E44: 0 | F44: x | G44: 0 | H44: 0 | I44: 0 | J44: 0 | K44: 0 | P44: 0 | S44: 0 | V44: 12.7 | W44: WC | X44: 9.9 | Y44: 6.4 | AB44: x | AC44: 1
D45: 0 | E45: 0 | F45: x | G45: 0 | H45: 0 | I45: 0 | J45: 0 | K45: 0 | P45: 0 | S45: 0 | V45: 12.8 | W45: Garderobe, Dusche | X45: 5.7 | Y45: 3.7 | AB45: x | AC45: 1
D46: 0 | E46: 0 | F46: x | G46: 0 | H46: 0 | I46: 0 | J46: 0 | K46: 0 | P46: 0 | S46: 0 | V46: 12.9 | W46: Parkhaus | X46: 1.4 | Y46: 0.9 | AB46: x | AC46: 1
D47: 0 | E47: 0 | F47: x | G47: 0 | H47: 0 | I47: 0 | J47: 0 | K47: 0 | P47: 0 | S47: 0 | V47: 13.1 | W47: Wasch- und Trockenraum | X47: 8.5 | Y47: 5.5 | AB47: x | AC47: 1
D48: 0 | E48: 0 | F48: x | G48: 0 | H48: 0 | I48: 0 | J48: 0 | K48: 0 | P48: 0 | S48: 0 | V48: 12.11 | W48: Kühlraum | X48: 2.8 | Y48: 1.8 | AB48: x | AC48: 1
D49: 0 | E49: 0 | F49: x | G49: 0 | H49: 0 | I49: 0 | J49: 0 | K49: 0 | P49: 0 | S49: 0 | V49: 12.12 | W49: Serverraum | X49: 3.3 | Y49: 2.2 | Z49: x | AC49: 0
D50: 0 | E50: 0 | F50: x | G50: 0 | H50: 0 | I50: 0 | J50: 0 | K50: 0 | P50: 0 | S50: 0
D51: 0 | E51: 0 | F51: x | G51: 0 | H51: 0 | I51: 0 | J51: 0 | K51: 0 | P51: 0 | S51: 0
D52: 0 | E52: 0 | F52: x | G52: 0 | H52: 0 | I52: 0 | J52: 0 | K52: 0 | P52: 0 | S52: 0
D53: 0 | E53: 0 | F53: x | G53: 0 | H53: 0 | I53: 0 | J53: 0 | K53: 0 | P53: 0 | S53: 0
D54: 0 | E54: 0 | F54: x | G54: 0 | H54: 0 | I54: 0 | J54: 0 | K54: 0 | P54: 0 | S54: 0
D55: 0 | E55: 0 | F55: x | G55: 0 | H55: 0 | I55: 0 | J55: 0 | K55: 0 | P55: 0 | S55: 0
D56: 0 | E56: 0 | F56: x | G56: 0 | H56: 0 | I56: 0 | J56: 0 | K56: 0 | P56: 0 | S56: 0
D57: 0 | E57: 0 | F57: x | G57: 0 | H57: 0 | I57: 0 | J57: 0 | K57: 0 | P57: 0 | S57: 0
D58: 0 | E58: 0 | F58: x | G58: 0 | H58: 0 | I58: 0 | J58: 0 | K58: 0 | P58: 0 | S58: 0
D59: 0 | E59: 0 | F59: x | G59: 0 | H59: 0 | I59: 0 | J59: 0 | K59: 0 | P59: 0 | S59: 0
D60: 0 | E60: 0 | F60: x | G60: 0 | H60: 0 | I60: 0 | J60: 0 | K60: 0 | P60: 0 | S60: 0
D61: 0 | E61: 0 | F61: x | G61: 0 | H61: 0 | I61: 0 | J61: 0 | K61: 0 | P61: 0 | S61: 0
D62: 0 | E62: 0 | F62: x | G62: 0 | H62: 0 | I62: 0 | J62: 0 | K62: 0 | P62: 0 | S62: 0
D63: 0 | E63: 0 | F63: x | G63: 0 | H63: 0 | I63: 0 | J63: 0 | K63: 0 | P63: 0 | S63: 0
D64: 0 | E64: 0 | F64: x | G64: 0 | H64: 0 | I64: 0 | J64: 0 | K64: 0 | P64: 0 | S64: 0
D65: 0 | E65: 0 | F65: x | G65: 0 | H65: 0 | I65: 0 | J65: 0 | K65: 0 | P65: 0 | S65: 0
D66: 0 | E66: 0 | F66: x | G66: 0 | H66: 0 | I66: 0 | J66: 0 | K66: 0 | P66: 0 | S66: 0
D67: 0 | E67: 0 | F67: x | G67: 0 | H67: 0 | I67: 0 | J67: 0 | K67: 0 | P67: 0 | S67: 0
D68: 0 | E68: 0 | F68: x | G68: 0 | H68: 0 | I68: 0 | J68: 0 | K68: 0 | P68: 0 | S68: 0
D69: 0 | E69: 0 | F69: x | G69: 0 | H69: 0 | I69: 0 | J69: 0 | K69: 0 | P69: 0 | S69: 0
D70: 0 | E70: 0 | F70: x | G70: 0 | H70: 0 | I70: 0 | J70: 0 | K70: 0 | P70: 0 | S70: 0
D71: 0 | E71: 0 | F71: x | G71: 0 | H71: 0 | I71: 0 | J71: 0 | K71: 0 | P71: 0 | S71: 0
D72: 0 | E72: 0 | F72: x | G72: 0 | H72: 0 | I72: 0 | J72: 0 | K72: 0 | P72: 0 | S72: 0
D73: 0 | E73: 0 | F73: x | G73: 0 | H73: 0 | I73: 0 | J73: 0 | K73: 0 | P73: 0 | S73: 0
D74: 0 | E74: 0 | F74: x | G74: 0 | H74: 0 | I74: 0 | J74: 0 | K74: 0 | P74: 0 | S74: 0
D75: 0 | E75: 0 | F75: x | G75: 0 | H75: 0 | I75: 0 | J75: 0 | K75: 0 | P75: 0 | S75: 0
D76: 0 | E76: 0 | F76: x | G76: 0 | H76: 0 | I76: 0 | J76: 0 | K76: 0 | P76: 0 | S76: 0
D77: 0 | E77: 0 | F77: x | G77: 0 | H77: 0 | I77: 0 | J77: 0 | K77: 0 | P77: 0 | S77: 0
D78: 0 | E78: 0 | F78: x | G78: 0 | H78: 0 | I78: 0 | J78: 0 | K78: 0 | P78: 0 | S78: 0
D79: 0 | E79: 0 | F79: x | G79: 0 | H79: 0 | I79: 0 | J79: 0 | K79: 0 | P79: 0 | S79: 0
D80: 0 | E80: 0 | F80: x | G80: 0 | H80: 0 | I80: 0 | J80: 0 | K80: 0 | P80: 0 | S80: 0
D81: 0 | E81: 0 | F81: x | G81: 0 | H81: 0 | I81: 0 | J81: 0 | K81: 0 | P81: 0 | S81: 0
D82: 0 | E82: 0 | F82: x | G82: 0 | H82: 0 | I82: 0 | J82: 0 | K82: 0 | P82: 0 | S82: 0
D83: 0 | E83: 0 | F83: x | G83: =VLOOKUP(F83,$V$6:$Y$49,2,FALSE) -> 0 | H83: 0 | I83: 0 | J83: =IF(I83<=0,VLOOKUP(F83,$V$6:$Y$49,3,FALSE),IF(I83=2,(VLOOKUP(F83,$V$6:$Y$49,4,FALSE)),IF(I83=1,(((VLOOKUP(F83,$V$6:$Y$49,3,FALSE))-(VLOOKUP(F83,$V$6:$Y$49,4,FALSE)))/2+(VLOOKUP(F83,$V$6:$Y$49,4,FALSE)))))) -> 0 | K83: =J83*C83 -> 0 | P83: 0 | S83: =IF(C83=0,0,P83/C83) -> 0
D84: 0 | E84: 0 | F84: x | G84: 0 | H84: 0 | I84: =IF(H84=1,H84+1-(2*D84+E84),H84-(D84+E84)) -> 0 | J84: 0 | K84: 0 | P84: 0 | S84: 0
D85: 0 | E85: 0 | F85: x | G85: 0 | H85: 0 | I85: 0 | J85: 0 | K85: 0 | P85: 0 | S85: 0
D86: 0 | E86: 0 | F86: x | G86: 0 | H86: 0 | I86: 0 | J86: 0 | K86: 0 | P86: 0 | S86: 0
D87: 0 | E87: 0 | F87: x | G87: 0 | H87: 0 | I87: 0 | J87: 0 | K87: 0 | P87: 0 | S87: 0
D88: 0 | E88: 0 | F88: x | G88: 0 | H88: 0 | I88: 0 | J88: 0 | K88: 0 | P88: 0 | S88: 0
D89: 0 | E89: 0 | F89: x | G89: 0 | H89: 0 | I89: 0 | J89: 0 | K89: 0 | P89: 0 | S89: 0
D90: 0 | E90: 0 | F90: x | G90: 0 | H90: 0 | I90: 0 | J90: 0 | K90: 0 | P90: 0 | S90: 0
D91: 0 | E91: 0 | F91: x | G91: 0 | H91: 0 | I91: 0 | J91: 0 | K91: 0 | P91: 0 | S91: 0
D92: 0 | E92: 0 | F92: x | G92: 0 | H92: =VLOOKUP(F92,$V$6:$AC$49,8,FALSE) -> 0 | I92: 0 | J92: 0 | K92: 0 | P92: =IF(O92>=0,Q92*R92,O92) -> 0 | S92: 0
D93: 0 | E93: 0 | F93: x | G93: 0 | H93: 0 | I93: 0 | J93: 0 | K93: 0 | P93: 0 | S93: 0
D94: 0 | E94: 0 | F94: x | G94: 0 | H94: 0 | I94: 0 | J94: 0 | K94: 0 | P94: 0 | S94: 0
D95: 0 | E95: 0 | F95: x | G95: 0 | H95: 0 | I95: 0 | J95: 0 | K95: 0 | P95: 0 | S95: 0
D96: 0 | E96: 0 | F96: x | G96: 0 | H96: 0 | I96: 0 | J96: 0 | K96: 0 | P96: 0 | S96: 0
D97: 0 | E97: 0 | F97: x | G97: 0 | H97: 0 | I97: 0 | J97: 0 | K97: 0 | P97: 0 | S97: 0
D98: 0 | E98: 0 | F98: x | G98: 0 | H98: 0 | I98: 0 | J98: 0 | K98: 0 | P98: 0 | S98: 0
D99: 0 | E99: 0 | F99: x | G99: 0 | H99: 0 | I99: 0 | J99: 0 | K99: 0 | P99: 0 | S99: 0
D100: 0 | E100: 0 | F100: x | G100: 0 | H100: 0 | I100: 0 | J100: 0 | K100: 0 | P100: 0 | S100: 0
D101: 0 | E101: 0 | F101: x | G101: 0 | H101: 0 | I101: 0 | J101: 0 | K101: 0 | P101: 0 | S101: 0
D102: 0 | E102: 0 | F102: x | G102: 0 | H102: 0 | I102: 0 | J102: 0 | K102: 0 | P102: 0 | S102: 0
D103: 0 | E103: 0 | F103: x | G103: 0 | H103: 0 | I103: 0 | J103: 0 | K103: 0 | P103: 0 | S103: 0

Sheet Grenzwert (hidden)
A1: Nachweis spezifische Leistung für Beleuchtungsanlagen (Anforderung im Sinne der Norm SIA 387/4) | K1: =IF(H12=0,"",IF(H12<H13,"Nachweis erfüllt","Nachweis nicht erfüllt.")) ->  | V1: Daten der Raumnutzungen:
V2: für die Berechnung der Anforderung:
A3: Projektbezeichnung: | C3: Beispiel Präsentation
V4: Nr. | W4: Raumnutzung | X4: spezif. Leistung W/m2 | Z4: Standardnutzungen mit Präsenz
A5: Verantwortlich für Nachweis: | X5: für Grenzwert | Y5: für Zielwert | Z5: Dauernde Präsenz | AA5: normale Präsenz | AB5: sporadische Präsenz
A6: Datum / Unterschrift: | C6: =TODAY() -> 2022-12-15 | V6: 2.1 | W6: Hotelzimmer | X6: 7.7 | Y6: 5 | Z6: x | AC6: 0
V7: 2.2 | W7: Empfang, Lobby | X7: 6.6 | Y7: 4.3 | Z7: x | AC7: 0
V8: 3.1 | W8: Einzel-, Gruppenbüro | X8: 12.5 | Y8: 8.1 | AA8: x | AC8: 2
A9: Zusammenstellung / Ergebnis: | V9: 3.2 | W9: Grossraumbüro | X9: 9.8 | Y9: 6.4 | AA9: x | AC9: 2
A10: Summe aller Nettogeschossflächen | G10: ① Summe aus Spalte C | J10: =SUM(C19:C103) -> 300 | K10: m² | V10: 3.3 | W10: Sitzungszimmer | X10: 12.5 | Y10: 8.1 | AA10: x | AC10: 2
A11: Summe der elektrischen Leistungen | G11: ② Summe aus Spalte P | J11: =SUM(P19:P103) -> 2020 | K11: W | V11: 3.4 | W11: Schalterhalle, Empfang | X11: 7.1 | Y11: 4.6 | Z11: x | AC11: 0
A12: Projektwert Beleuchtung | G12: ③ = ②/① | J12: =J11/J10 -> 6.733333333 | K12: W/ m² | V12: x | X12: 0 | Y12: 0
A13: Anforderung Beleuchtung | G13: ④ flächengewichteter Mittelwert | J13: =SUMPRODUCT(C19:C103,J19:J103)/J10 -> 7.533333333 | K13: W/ m² | V13: 4.1 | W13: Schulzimmer | X13: 11 | Y13: 7.2 | AA13: x | AC13: 2
A14: Anforderung eingehalten? | G14: Prüfung ③ kleiner gleich ④ | J14: =IF(J12=0,"",IF(J12<J13,"erfüllt","nicht i.O.")) -> erfüllt | V14: 4.2 | W14: Lehrerzimmer | X14: 7.5 | Y14: 4.9 | AA14: x | AC14: 2
V15: 4.3 | W15: Bibliothek | X15: 5.9 | Y15: 3.8 | AA15: x | AC15: 2
A16: Bestimmung Nettogeschossfläche und Grenzwert: | M16: Leuchten | P16: evtl. Berechnung der Leistung | V16: 4.4 | W16: Hörsaal | X16: 9.8 | Y16: 6.4 | AA16: x | AC16: 2
A17: Nr. | B17: Raum/Räume | C17: ① Flächen | D17: Präsenz- melder | E17: Tages- licht- steuerung | F17: Nutzung gemäss SIA 2024 | H17: Steuerungs punkt gemäss Norm | I17: installierte Steuerung | J17: ④ Anforderung pV | K17: Summe Anforderung P_el | M17: Nr. | N17: Leuchten-Typ / Leuchten pro Nutzung | O17: Leistung Pel Total | P17: ② Pel | Q17: Anzahl Leuchten | R17: Leistung Leuchte | S17: Projekt wert | V17: 4.5 | W17: Schulfachraum | X17: 11 | Y17: 7.2 | AA17: x | AC17: 2
C18: m² | D18: 0 = Nein; 1 =Ja | F18: Nr. | G18: Bezeichnung | J18: W/m² | K18: W | O18: W | P18: W | Q18: Stück | R18: W | S18: W/m2 | V18: 5.1 | W18: Lebensmittelverkauf | X18: 14.9 | Y18: 9.7 | Z18: x | AC18: 0
A19: 1 | B19: Empfang | C19: 100 | D19: 1 | E19: 0 | F19: 2.2 | G19: =VLOOKUP(F19,$V$6:$Y$49,2,FALSE) -> Empfang, Lobby | H19: =VLOOKUP(F19,$V$6:$AC$49,8,FALSE) -> 0 | I19: =IF(H19=1,H19+1-(2*D19+E19),H19-(D19+E19)) -> -1 | J19: =VLOOKUP(F19,$V$6:$Y$49,3,FALSE) -> 6.6 | K19: =J19*C19 -> 660 | M19: 1.1 | N19: Stehleuchte | P19: =IF(O19<=0,Q19*R19,O19) -> 1000 | Q19: 10 | R19: 100 | S19: =IF(C19=0,0,P19/C19) -> 10 | V19: 5.2 | W19: Fachgeschäft | X19: 14.9 | Y19: 9.7 | Z19: x | AC19: 0
A20: 2 | B20: Gang | C20: 100 | D20: 0 | E20: 0 | F20: 12.1 | G20: Verkehrsfläche | H20: 1 | I20: =IF(H20=1,H20+1-(2*D20+E20),H20-(D20+E20)) -> 2 | J20: =VLOOKUP(F20,$V$6:$Y$49,3,FALSE) -> 3.5 | K20: 350 | M20: 1.2 | N20: Empfangleuchten | O20: 600 | P20: 600 | S20: 6 | V20: 5.3 | W20: Verkauf Möbel, Bau, Garten | X20: 12 | Y20: 7.8 | Z20: x | AC20: 0
A21: 3 | B21: Büro | C21: 100 | D21: 0 | E21: 0 | F21: 3.1 | G21: Einzel-, Gruppenbüro | H21: 2 | I21: 2 | J21: 12.5 | K21: 1250 | M21: 1.3 | N21: Downlight | P21: 420 | Q21: 20 | R21: 21 | S21: 4.2 | V21: 6.1 | W21: Restaurant | X21: 5.9 | Y21: 3.8 | AA21: x | AC21: 2
D22: 0 | E22: 0 | F22: x | G22: 0 | H22: 0 | I22: 0 | J22: 0 | K22: 0 | P22: 0 | S22: 0 | V22: 6.2 | W22: Selbstbedienungsrestaurant | X22: 3.5 | Y22: 2.3 | AA22: x | AC22: 2
D23: 0 | E23: 0 | F23: x | G23: 0 | H23: 0 | I23: 0 | J23: 0 | K23: 0 | P23: 0 | S23: 0 | V23: 6.3 | W23: Küche zu Restaurant | X23: 18.8 | Y23: 12.2 | AC23: 0
D24: 0 | E24: 0 | F24: x | G24: 0 | H24: 0 | I24: 0 | J24: 0 | K24: 0 | P24: 0 | S24: 0 | V24: 6.4 | W24: Küche zu SB-Restaurant | X24: 14.7 | Y24: 9.5 | AC24: 0
D25: 0 | E25: 0 | F25: x | G25: 0 | H25: 0 | I25: 0 | J25: 0 | K25: 0 | P25: 0 | S25: 0 | V25: 7.1 | W25: Vorstellungsraum | X25: 7 | Y25: 4.5 | AC25: 0
D26: 0 | E26: 0 | F26: x | G26: 0 | H26: 0 | I26: 0 | J26: 0 | K26: 0 | P26: 0 | S26: 0 | V26: 7.2 | W26: Mehrzweckhalle | X26: 7 | Y26: 4.5 | AC26: 0
D27: 0 | E27: 0 | F27: x | G27: 0 | I27: 0 | J27: 0 | K27: 0 | P27: 0 | S27: 0 | V27: 7.3 | W27: Ausstellungshalle | X27: 7 | Y27: 4.5 | AC27: 0
D28: 0 | E28: 0 | F28: x | G28: 0 | H28: =VLOOKUP(F28,$V$6:$AC$49,8,FALSE) -> 0 | I28: 0 | J28: =IF(I28<=0,VLOOKUP(F28,$V$6:$Y$49,3,FALSE),IF(I28=2,(VLOOKUP(F28,$V$6:$Y$49,4,FALSE)),IF(I28=1,(((VLOOKUP(F28,$V$6:$Y$49,3,FALSE))-(VLOOKUP(F28,$V$6:$Y$49,4,FALSE)))/2+(VLOOKUP(F28,$V$6:$Y$49,4,FALSE)))))) -> 0 | K28: 0 | P28: =IF(O28>=0,Q28*R28,O28) -> 0 | S28: 0 | V28: 8.1 | W28: Bettenzimmer | X28: 6.8 | Y28: 4.4 | AC28: 0
D29: 0 | E29: 0 | F29: x | G29: 0 | H29: 0 | I29: 0 | J29: 0 | K29: 0 | P29: 0 | S29: 0 | V29: 8.2 | W29: Stationszimmer | X29: 12.5 | Y29: 8.1 | AC29: 0
D30: 0 | E30: 0 | F30: x | G30: 0 | H30: 0 | I30: 0 | J30: 0 | K30: 0 | P30: 0 | S30: 0 | V30: 8.3 | W30: Behandlungsraum | X30: 12.5 | Y30: 8.1 | AC30: 0
D31: 0 | E31: 0 | F31: x | G31: 0 | H31: 0 | I31: 0 | J31: 0 | K31: 0 | P31: 0 | S31: 0 | V31: 9.1 | W31: Produktion (grobe Arbeit) | X31: 7 | Y31: 4.5 | AA31: x | AC31: 2
D32: 0 | E32: 0 | F32: x | G32: 0 | H32: 0 | I32: 0 | J32: 0 | K32: 0 | P32: 0 | S32: 0 | V32: 9.2 | W32: Produktion (feine Arbeit) | X32: 11.6 | Y32: 7.5 | AA32: x | AC32: 2
D33: 0 | E33: 0 | F33: x | G33: 0 | H33: 0 | I33: 0 | J33: 0 | K33: 0 | P33: 0 | S33: 0 | V33: 9.3 | W33: Laborraum | X33: 12.8 | Y33: 8.3 | Z33: x | AC33: 0
D34: 0 | E34: 0 | F34: x | G34: 0 | H34: 0 | I34: 0 | J34: 0 | K34: 0 | P34: 0 | S34: 0 | V34: 10.1 | W34: Lagerhalle | X34: 7.3 | Y34: 4.7 | AA34: x | AC34: 2
D35: 0 | E35: 0 | F35: x | G35: 0 | H35: 0 | I35: 0 | J35: 0 | K35: 0 | P35: 0 | S35: 0 | V35: 11.1 | W35: Turnhalle | X35: 11.3 | Y35: 7.3 | AA35: x | AC35: 2
D36: 0 | E36: 0 | F36: x | G36: 0 | H36: 0 | I36: 0 | J36: 0 | K36: 0 | P36: 0 | S36: 0 | V36: 11.2 | W36: Fitnessraum | X36: 6.4 | Y36: 4.1 | AA36: x | AC36: 2
D37: 0 | E37: 0 | F37: x | G37: 0 | H37: 0 | I37: 0 | J37: 0 | K37: 0 | P37: 0 | S37: 0 | V37: 11.3 | W37: Schwimmhalle | X37: 7.3 | Y37: 4.7 | AA37: x | AC37: 2
D38: 0 | E38: 0 | F38: x | G38: 0 | H38: 0 | I38: 0 | J38: 0 | K38: 0 | P38: 0 | S38: 0 | V38: 12.1 | W38: Verkehrsfläche | X38: 3.5 | Y38: 2.3 | AB38: x | AC38: 1
D39: 0 | E39: 0 | F39: x | G39: 0 | H39: 0 | I39: 0 | J39: 0 | K39: 0 | P39: 0 | S39: 0 | V39: 12.2 | W39: Verkehrsfläche 24h (Spitäler) | X39: 7.1 | Y39: 4.6 | AB39: x | AC39: 1
D40: 0 | E40: 0 | F40: x | G40: 0 | H40: 0 | I40: 0 | J40: 0 | K40: 0 | P40: 0 | S40: 0 | V40: 12.3 | W40: Treppenhaus | X40: 7.1 | Y40: 4.6 | AB40: x | AC40: 1
D41: 0 | E41: 0 | F41: x | G41: 0 | H41: 0 | I41: 0 | J41: 0 | K41: 0 | P41: 0 | S41: 0 | V41: 12.4 | W41: Nebenraum | X41: 3 | Y41: 1.9 | AB41: x | AC41: 1
D42: 0 | E42: 0 | F42: x | G42: 0 | H42: 0 | I42: 0 | J42: 0 | K42: 0 | P42: 0 | S42: 0 | V42: 12.5 | W42: Küche, Teeküche | X42: 5.1 | Y42: 3.3 | AB42: x | AC42: 1
D43: 0 | E43: 0 | F43: x | G43: 0 | H43: 0 | I43: 0 | J43: 0 | K43: 0 | P43: 0 | S43: 0 | V43: 12.6 | W43: WC, Bad, Dusche | X43: 6 | Y43: 3.9 | AB43: x | AC43: 1
D44: 0 | E44: 0 | F44: x | G44: 0 | H44: 0 | I44: 0 | J44: 0 | K44: 0 | P44: 0 | S44: 0 | V44: 12.7 | W44: WC | X44: 9.9 | Y44: 6.4 | AB44: x | AC44: 1
D45: 0 | E45: 0 | F45: x | G45: 0 | H45: 0 | I45: 0 | J45: 0 | K45: 0 | P45: 0 | S45: 0 | V45: 12.8 | W45: Garderobe, Dusche | X45: 5.7 | Y45: 3.7 | AB45: x | AC45: 1
D46: 0 | E46: 0 | F46: x | G46: 0 | H46: 0 | I46: 0 | J46: 0 | K46: 0 | P46: 0 | S46: 0 | V46: 12.9 | W46: Parkhaus | X46: 1.4 | Y46: 0.9 | AB46: x | AC46: 1
D47: 0 | E47: 0 | F47: x | G47: 0 | H47: 0 | I47: 0 | J47: 0 | K47: 0 | P47: 0 | S47: 0 | V47: 13.1 | W47: Wasch- und Trockenraum | X47: 8.5 | Y47: 5.5 | AB47: x | AC47: 1
D48: 0 | E48: 0 | F48: x | G48: 0 | H48: 0 | I48: 0 | J48: 0 | K48: 0 | P48: 0 | S48: 0 | V48: 12.11 | W48: Kühlraum | X48: 2.8 | Y48: 1.8 | AB48: x | AC48: 1
D49: 0 | E49: 0 | F49: x | G49: 0 | H49: 0 | I49: 0 | J49: 0 | K49: 0 | P49: 0 | S49: 0 | V49: 12.12 | W49: Serverraum | X49: 3.3 | Y49: 2.2 | Z49: x | AC49: 0
D50: 0 | E50: 0 | F50: x | G50: 0 | H50: 0 | I50: 0 | J50: 0 | K50: 0 | P50: 0 | S50: 0
D51: 0 | E51: 0 | F51: x | G51: 0 | H51: 0 | I51: 0 | J51: 0 | K51: 0 | P51: 0 | S51: 0
D52: 0 | E52: 0 | F52: x | G52: 0 | H52: 0 | I52: 0 | J52: 0 | K52: 0 | P52: 0 | S52: 0
D53: 0 | E53: 0 | F53: x | G53: 0 | H53: 0 | I53: 0 | J53: 0 | K53: 0 | P53: 0 | S53: 0
D54: 0 | E54: 0 | F54: x | G54: 0 | H54: 0 | I54: 0 | J54: 0 | K54: 0 | P54: 0 | S54: 0
D55: 0 | E55: 0 | F55: x | G55: 0 | H55: 0 | I55: 0 | J55: 0 | K55: 0 | P55: 0 | S55: 0
D56: 0 | E56: 0 | F56: x | G56: 0 | H56: 0 | I56: 0 | J56: 0 | K56: 0 | P56: 0 | S56: 0
D57: 0 | E57: 0 | F57: x | G57: 0 | H57: 0 | I57: 0 | J57: 0 | K57: 0 | P57: 0 | S57: 0
D58: 0 | E58: 0 | F58: x | G58: 0 | H58: 0 | I58: 0 | J58: 0 | K58: 0 | P58: 0 | S58: 0
D59: 0 | E59: 0 | F59: x | G59: 0 | H59: 0 | I59: 0 | J59: 0 | K59: 0 | P59: 0 | S59: 0
D60: 0 | E60: 0 | F60: x | G60: 0 | H60: 0 | I60: 0 | J60: 0 | K60: 0 | P60: 0 | S60: 0
D61: 0 | E61: 0 | F61: x | G61: 0 | H61: 0 | I61: 0 | J61: 0 | K61: 0 | P61: 0 | S61: 0
D62: 0 | E62: 0 | F62: x | G62: 0 | H62: 0 | I62: 0 | J62: 0 | K62: 0 | P62: 0 | S62: 0
D63: 0 | E63: 0 | F63: x | G63: 0 | H63: 0 | I63: 0 | J63: 0 | K63: 0 | P63: 0 | S63: 0
D64: 0 | E64: 0 | F64: x | G64: 0 | H64: 0 | I64: 0 | J64: 0 | K64: 0 | P64: 0 | S64: 0
D65: 0 | E65: 0 | F65: x | G65: 0 | H65: 0 | I65: 0 | J65: 0 | K65: 0 | P65: 0 | S65: 0
D66: 0 | E66: 0 | F66: x | G66: 0 | H66: 0 | I66: 0 | J66: 0 | K66: 0 | P66: 0 | S66: 0
D67: 0 | E67: 0 | F67: x | G67: 0 | H67: 0 | I67: 0 | J67: 0 | K67: 0 | P67: 0 | S67: 0
D68: 0 | E68: 0 | F68: x | G68: 0 | H68: 0 | I68: 0 | J68: 0 | K68: 0 | P68: 0 | S68: 0
D69: 0 | E69: 0 | F69: x | G69: 0 | H69: 0 | I69: 0 | J69: 0 | K69: 0 | P69: 0 | S69: 0
D70: 0 | E70: 0 | F70: x | G70: 0 | H70: 0 | I70: 0 | J70: 0 | K70: 0 | P70: 0 | S70: 0
D71: 0 | E71: 0 | F71: x | G71: 0 | H71: 0 | I71: 0 | J71: 0 | K71: 0 | P71: 0 | S71: 0
D72: 0 | E72: 0 | F72: x | G72: 0 | H72: 0 | I72: 0 | J72: 0 | K72: 0 | P72: 0 | S72: 0
D73: 0 | E73: 0 | F73: x | G73: 0 | H73: 0 | I73: 0 | J73: 0 | K73: 0 | P73: 0 | S73: 0
D74: 0 | E74: 0 | F74: x | G74: 0 | H74: 0 | I74: 0 | J74: 0 | K74: 0 | P74: 0 | S74: 0
D75: 0 | E75: 0 | F75: x | G75: 0 | H75: 0 | I75: 0 | J75: 0 | K75: 0 | P75: 0 | S75: 0
D76: 0 | E76: 0 | F76: x | G76: 0 | H76: 0 | I76: 0 | J76: 0 | K76: 0 | P76: 0 | S76: 0
D77: 0 | E77: 0 | F77: x | G77: 0 | H77: 0 | I77: 0 | J77: 0 | K77: 0 | P77: 0 | S77: 0
D78: 0 | E78: 0 | F78: x | G78: 0 | H78: 0 | I78: 0 | J78: 0 | K78: 0 | P78: 0 | S78: 0
D79: 0 | E79: 0 | F79: x | G79: 0 | H79: 0 | I79: 0 | J79: 0 | K79: 0 | P79: 0 | S79: 0
D80: 0 | E80: 0 | F80: x | G80: 0 | H80: 0 | I80: 0 | J80: 0 | K80: 0 | P80: 0 | S80: 0
D81: 0 | E81: 0 | F81: x | G81: 0 | H81: 0 | I81: 0 | J81: 0 | K81: 0 | P81: 0 | S81: 0
D82: 0 | E82: 0 | F82: x | G82: 0 | H82: 0 | I82: 0 | J82: 0 | K82: 0 | P82: 0 | S82: 0
D83: 0 | E83: 0 | F83: x | G83: =VLOOKUP(F83,$V$6:$Y$49,2,FALSE) -> 0 | H83: 0 | I83: 0 | J83: 0 | K83: =J83*C83 -> 0 | P83: 0 | S83: =IF(C83=0,0,P83/C83) -> 0
D84: 0 | E84: 0 | F84: x | G84: 0 | H84: 0 | I84: =IF(H84=1,H84+1-(2*D84+E84),H84-(D84+E84)) -> 0 | J84: 0 | K84: 0 | P84: 0 | S84: 0
D85: 0 | E85: 0 | F85: x | G85: 0 | H85: 0 | I85: 0 | J85: 0 | K85: 0 | P85: 0 | S85: 0
D86: 0 | E86: 0 | F86: x | G86: 0 | H86: 0 | I86: 0 | J86: =IF(I86<=0,VLOOKUP(F86,$V$6:$Y$49,3,FALSE),IF(I86=2,(VLOOKUP(F86,$V$6:$Y$49,4,FALSE)),IF(I86=1,(((VLOOKUP(F86,$V$6:$Y$49,3,FALSE))-(VLOOKUP(F86,$V$6:$Y$49,4,FALSE)))/2+(VLOOKUP(F86,$V$6:$Y$49,4,FALSE)))))) -> 0 | K86: 0 | P86: 0 | S86: 0
D87: 0 | E87: 0 | F87: x | G87: 0 | H87: 0 | I87: 0 | J87: 0 | K87: 0 | P87: 0 | S87: 0
D88: 0 | E88: 0 | F88: x | G88: 0 | H88: 0 | I88: 0 | J88: 0 | K88: 0 | P88: 0 | S88: 0
D89: 0 | E89: 0 | F89: x | G89: 0 | H89: 0 | I89: 0 | J89: 0 | K89: 0 | P89: 0 | S89: 0
D90: 0 | E90: 0 | F90: x | G90: 0 | H90: 0 | I90: 0 | J90: 0 | K90: 0 | P90: 0 | S90: 0
D91: 0 | E91: 0 | F91: x | G91: 0 | H91: 0 | I91: 0 | J91: 0 | K91: 0 | P91: 0 | S91: 0
D92: 0 | E92: 0 | F92: x | G92: 0 | H92: =VLOOKUP(F92,$V$6:$AC$49,8,FALSE) -> 0 | I92: 0 | J92: 0 | K92: 0 | P92: =IF(O92>=0,Q92*R92,O92) -> 0 | S92: 0
D93: 0 | E93: 0 | F93: x | G93: 0 | H93: 0 | I93: 0 | J93: 0 | K93: 0 | P93: 0 | S93: 0
D94: 0 | E94: 0 | F94: x | G94: 0 | H94: 0 | I94: 0 | J94: 0 | K94: 0 | P94: 0 | S94: 0
D95: 0 | E95: 0 | F95: x | G95: 0 | H95: 0 | I95: 0 | J95: 0 | K95: 0 | P95: 0 | S95: 0
D96: 0 | E96: 0 | F96: x | G96: 0 | H96: 0 | I96: 0 | J96: 0 | K96: 0 | P96: 0 | S96: 0
D97: 0 | E97: 0 | F97: x | G97: 0 | H97: 0 | I97: 0 | J97: 0 | K97: 0 | P97: 0 | S97: 0
D98: 0 | E98: 0 | F98: x | G98: 0 | H98: 0 | I98: 0 | J98: 0 | K98: 0 | P98: 0 | S98: 0
D99: 0 | E99: 0 | F99: x | G99: 0 | H99: 0 | I99: 0 | J99: 0 | K99: 0 | P99: 0 | S99: 0
D100: 0 | E100: 0 | F100: x | G100: 0 | H100: 0 | I100: 0 | J100: 0 | K100: 0 | P100: 0 | S100: 0
D101: 0 | E101: 0 | F101: x | G101: 0 | H101: 0 | I101: 0 | J101: 0 | K101: 0 | P101: 0 | S101: 0
D102: 0 | E102: 0 | F102: x | G102: 0 | H102: 0 | I102: 0 | J102: 0 | K102: 0 | P102: 0 | S102: 0
D103: 0 | E103: 0 | F103: x | G103: 0 | H103: 0 | I103: 0 | J103: 0 | K103: 0 | P103: 0 | S103: 0
